{"text_format":"1","workbook":"xlsx","n_sheets":2,"sheets":["СЕНТЯБРЬ ТАБЕЛЬ АДМ  ","ГРАФИК И.Б. СЕНТЯБРЬ"],"not_rendered":{"charts":0,"images":0,"macros":1,"external_links":5,"defined_names":44,"comments":0,"pivot_tables":0},"unopened":[],"bounds":{"document_bytes":16777216,"sheet_cells":100000,"rows_first":2000,"rows_last":500,"rows_between":2000,"halvings":0,"cell_chars":16384,"cell_head_chars":4096},"cells_cut":0,"cells_raw":0,"read":"whole","date_system":"1900"}

{"sheet":"СЕНТЯБРЬ ТАБЕЛЬ АДМ  ","index":0,"n_rows":69,"n_cols":60,"rows_kept":69,"cut":false,"hidden":false,"merged":[[44,5,44,48],[45,5,45,48],[40,0,40,6],[40,8,40,13],[40,15,40,17],[40,19,40,23],[41,8,41,13],[41,15,41,17],[41,19,41,23],[42,15,43,26],[35,0,36,0],[35,2,36,2],[35,3,36,3],[35,37,36,37],[35,38,36,38],[39,8,39,13],[39,15,39,17],[39,19,39,23],[31,0,32,0],[31,2,32,2],[31,3,32,3],[31,37,32,37],[31,38,32,38],[33,0,34,0],[33,2,34,2],[33,3,34,3],[33,37,34,37],[33,38,34,38],[27,0,28,0],[27,2,28,2],[27,3,28,3],[27,37,28,37],[27,38,28,38],[29,0,30,0],[29,2,30,2],[29,3,30,3],[29,37,30,37],[29,38,30,38],[23,0,24,0],[23,2,24,2],[23,3,24,3],[23,37,24,37],[23,38,24,38],[25,0,26,0],[25,2,26,2],[25,3,26,3],[25,37,26,37],[25,38,26,38],[19,0,20,0],[19,2,20,2],[19,3,20,3],[19,37,20,37],[19,38,20,38],[21,0,22,0],[21,2,22,2],[21,3,22,3],[21,37,22,37],[21,38,22,38],[15,0,16,0],[15,2,16,2],[15,3,16,3],[15,37,16,37],[15,38,16,38],[17,0,18,0],[17,2,18,2],[17,3,18,3],[17,37,18,37],[17,38,18,38],[9,37,11,37],[9,26,11,26],[9,27,11,27],[9,28,11,28],[9,29,11,29],[9,30,11,30],[9,31,11,31],[13,46,13,55],[9,51,11,51],[9,52,11,52],[9,53,11,53],[9,54,11,54],[9,55,11,55],[10,39,11,39],[10,40,10,45],[9,38,11,38],[9,39,9,45],[9,47,11,47],[9,48,11,48],[9,49,11,49],[9,50,11,50],[8,38,8,45],[8,46,11,46],[8,47,8,55],[8,56,11,56],[9,5,11,5],[9,6,11,6],[9,7,11,7],[9,8,11,8],[9,9,11,9],[9,10,11,10],[9,20,11,20],[9,21,11,21],[9,22,11,22],[9,23,11,23],[9,24,11,24],[9,25,11,25],[9,14,11,14],[9,15,11,15],[9,16,11,16],[9,17,11,17],[9,18,11,18],[9,19,11,19],[9,32,11,32],[9,33,11,33],[7,17,7,22],[8,0,11,0],[8,1,11,1],[8,2,11,2],[8,3,11,3],[8,4,11,4],[8,5,8,36],[9,11,11,11],[9,12,11,12],[9,13,11,13],[9,34,11,34],[9,35,11,35],[9,36,11,36],[1,0,1,6],[1,44,1,48],[2,2,2,12],[2,24,2,26],[2,27,2,29],[3,0,3,2],[3,38,3,42],[6,4,6,16],[6,17,6,22],[6,23,6,25],[6,38,6,42],[6,43,6,46],[6,48,6,56],[3,51,3,56],[4,0,4,6],[5,8,5,20],[5,38,5,41],[5,44,5,46],[5,48,5,53]]}
[]
[]
[]
[]
["название структурного подразделения"]
[null,null,null,null,null,null,null,null,"ГРАФИК РАБОТЫ",null,null,null,null,null,null,null,null,null,null,null,null,null,null,null,null,null,null,null,null,null,null,null,null,null,null,null,null,null,null,null,null,null,"с",null,null,null,null,"по"]
[null,null,null,null,"обслуживающего персонала на",null,null,null,null,null,null,null,null,null,null,null,null,{"$f":"IF(DAY(D48)>=28,EDATE(D48,1),D48)","v":"2020-09-01"},null,null,null,null,null,"года",null,null,null,null,null,null,null,null,null,null,null,null,null,null,null,null,null,null,null,"Рабочих дней",null,null,null,{"$f":"VLOOKUP(AM8,'[1]производственный календарь '!$B$2:$D$13,3,0)","v":22},"Рабочих часов",null,null,null,null,null,null,null,null,{"$f":"VLOOKUP(AM8,'[1]производственный календарь '!$B$2:D13,2,0)","v":176}]
[null,null,null,null,null,null,null,null,null,null,null,null,null,null,null,null,null,"МАРТ",null,null,null,null,null,null,null,null,null,null,null,null,null,null,null,null,null,null,null,null,"СЕНТЯБРЬ"]
["№ п/п","Табельний номер","Фамилия, и., о.","Профессия,\nдолжность","номер","Отметки о явках и неявках на работу по числам месяца (часов)",null,null,null,null,null,null,null,null,null,null,null,null,null,null,null,null,null,null,null,null,null,null,null,null,null,null,null,null,null,null,null," ","отработано за месяц",null,null,null,null,null,null,null,"Всего неявок","Дни неявок",null,null,null,null,null,null,null,null,"Выходные дни"]
[null,null,null,null,null,1,2,3,4,5,6,7,8,9,10,11,12,13,14,15,"X",16,17,18,19,20,21,22,23,24,25,26,27,28,29,30,31,"дни явок","всего отработано","часов",null,null,null,null,null,null,null,"Очередной отпуск","Больничные","Бесплатный отпуск (А)","Отпуск родовой","Учеьный отпуск","Отпуск ЧАЭС","Прогул","Отпуск женский","Командировка"]
[null,null,null,null,null,null,null,null,null,null,null,null,null,null,null,null,null,null,null,null,null,null,null,null,null,null,null,null,null,null,null,null,null,null,null,null,null,null,null,"всего отработано","из них"]
[null,null,null,null,null,null," "," ",null,null,null,null,null," ",null,null,null,null,null,null,null,null,null,null,null,null,null,null,null,null,null,null,null,null,null,null,null,null,null,null,"Ночные","Вечерние","Праздничные","Сверхурочные","Работы в выходной","Переработка"]
[null,null,null,null,null,null,null,null,null,null,null,null,null,null,null,null,null,null,null,null,"Х"]
[1,"2","3","4","5",null,null,null,null,null,null,null,null,null,null,null,null,null,null,null,"6",null,null,null,null,null,null,null,null,null,null,null,null,null,null,null,null,"7",null,"9",null,null,null,null,null,null,"10",null,null,null,null,null,null,null,null,null,"11",null,null,"Столбец1"]
[null,null,null,null,null,null,null,null,null,null,null,null,null,null,null,null,null,null,null,null,null,null,null,null,null,null,null,null,null,null,null,null,null,null,null,null,null,null,null,null,null,null,null,null,null,null,null,null,null,null,null,null,null,null,null,null,null,null,null,"управляющий участка"]
[]
[]
[]
[]
[{"$f":"IF(ISBLANK(C20),\"\",COUNTA($C$16:C20))","v":1},null,{"$f":"'[1]ГРАФИК И.Б. ИЮНЬ 2020 '!F39","v":"Лагутенко В.А., кассир билетный"},"кассир билетный",null,{"$f":"IFERROR(INDEX('ГРАФИК И.Б. СЕНТЯБРЬ'!$AC$42:$HF$42,1,MATCH(F$10,'ГРАФИК И.Б. СЕНТЯБРЬ'!$AC$19:$HF$19,0)),\"\")","v":0.50000000000000011},{"$f":"IFERROR(INDEX('ГРАФИК И.Б. СЕНТЯБРЬ'!$AC$42:$HF$42,1,MATCH(G$10,'ГРАФИК И.Б. СЕНТЯБРЬ'!$AC$19:$HF$19,0)),\"\")","v":0},{"$f":"IFERROR(INDEX('ГРАФИК И.Б. СЕНТЯБРЬ'!$AC$42:$HF$42,1,MATCH(H$10,'ГРАФИК И.Б. СЕНТЯБРЬ'!$AC$19:$HF$19,0)),\"\")","v":0.45833333333333331},{"$f":"IFERROR(INDEX('ГРАФИК И.Б. СЕНТЯБРЬ'!$AC$42:$HF$42,1,MATCH(I$10,'ГРАФИК И.Б. СЕНТЯБРЬ'!$AC$19:$HF$19,0)),\"\")","v":0},{"$f":"IFERROR(INDEX('ГРАФИК И.Б. СЕНТЯБРЬ'!$AC$42:$HF$42,1,MATCH(J$10,'ГРАФИК И.Б. СЕНТЯБРЬ'!$AC$19:$HF$19,0)),\"\")","v":0.50000000000000011},{"$f":"IFERROR(INDEX('ГРАФИК И.Б. СЕНТЯБРЬ'!$AC$42:$HF$42,1,MATCH(K$10,'ГРАФИК И.Б. СЕНТЯБРЬ'!$AC$19:$HF$19,0)),\"\")","v":0},{"$f":"IFERROR(INDEX('ГРАФИК И.Б. СЕНТЯБРЬ'!$AC$42:$HF$42,1,MATCH(L$10,'ГРАФИК И.Б. СЕНТЯБРЬ'!$AC$19:$HF$19,0)),\"\")","v":0.45833333333333331},{"$f":"IFERROR(INDEX('ГРАФИК И.Б. СЕНТЯБРЬ'!$AC$42:$HF$42,1,MATCH(M$10,'ГРАФИК И.Б. СЕНТЯБРЬ'!$AC$19:$HF$19,0)),\"\")","v":0},{"$f":"IFERROR(INDEX('ГРАФИК И.Б. СЕНТЯБРЬ'!$AC$42:$HF$42,1,MATCH(N$10,'ГРАФИК И.Б. СЕНТЯБРЬ'!$AC$19:$HF$19,0)),\"\")","v":0.45833333333333331},{"$f":"IFERROR(INDEX('ГРАФИК И.Б. СЕНТЯБРЬ'!$AC$42:$HF$42,1,MATCH(O$10,'ГРАФИК И.Б. СЕНТЯБРЬ'!$AC$19:$HF$19,0)),\"\")","v":0},{"$f":"IFERROR(INDEX('ГРАФИК И.Б. СЕНТЯБРЬ'!$AC$42:$HF$42,1,MATCH(P$10,'ГРАФИК И.Б. СЕНТЯБРЬ'!$AC$19:$HF$19,0)),\"\")","v":0.45833333333333331},{"$f":"IFERROR(INDEX('ГРАФИК И.Б. СЕНТЯБРЬ'!$AC$42:$HF$42,1,MATCH(Q$10,'ГРАФИК И.Б. СЕНТЯБРЬ'!$AC$19:$HF$19,0)),\"\")","v":0},{"$f":"IFERROR(INDEX('ГРАФИК И.Б. СЕНТЯБРЬ'!$AC$42:$HF$42,1,MATCH(R$10,'ГРАФИК И.Б. СЕНТЯБРЬ'!$AC$19:$HF$19,0)),\"\")","v":0.50000000000000011},{"$f":"IFERROR(INDEX('ГРАФИК И.Б. СЕНТЯБРЬ'!$AC$42:$HF$42,1,MATCH(S$10,'ГРАФИК И.Б. СЕНТЯБРЬ'!$AC$19:$HF$19,0)),\"\")","v":0},{"$f":"IFERROR(INDEX('ГРАФИК И.Б. СЕНТЯБРЬ'!$AC$42:$HF$42,1,MATCH(T$10,'ГРАФИК И.Б. СЕНТЯБРЬ'!$AC$19:$HF$19,0)),\"\")","v":0.50000000000000011},{"$f":"IFERROR(INDEX('ГРАФИК И.Б. СЕНТЯБРЬ'!$AC$42:$HF$42,1,MATCH(U$10,'ГРАФИК И.Б. СЕНТЯБРЬ'!$AC$19:$HF$19,0)),\"\")","v":""},{"$f":"IFERROR(INDEX('ГРАФИК И.Б. СЕНТЯБРЬ'!$AC$42:$HF$42,1,MATCH(V$10,'ГРАФИК И.Б. СЕНТЯБРЬ'!$AC$19:$HF$19,0)),\"\")","v":0},{"$f":"IFERROR(INDEX('ГРАФИК И.Б. СЕНТЯБРЬ'!$AC$42:$HF$42,1,MATCH(W$10,'ГРАФИК И.Б. СЕНТЯБРЬ'!$AC$19:$HF$19,0)),\"\")","v":0.50000000000000011},{"$f":"IFERROR(INDEX('ГРАФИК И.Б. СЕНТЯБРЬ'!$AC$42:$HF$42,1,MATCH(X$10,'ГРАФИК И.Б. СЕНТЯБРЬ'!$AC$19:$HF$19,0)),\"\")","v":0},{"$f":"IFERROR(INDEX('ГРАФИК И.Б. СЕНТЯБРЬ'!$AC$42:$HF$42,1,MATCH(Y$10,'ГРАФИК И.Б. СЕНТЯБРЬ'!$AC$19:$HF$19,0)),\"\")","v":0.50000000000000011},{"$f":"IFERROR(INDEX('ГРАФИК И.Б. СЕНТЯБРЬ'!$AC$42:$HF$42,1,MATCH(Z$10,'ГРАФИК И.Б. СЕНТЯБРЬ'!$AC$19:$HF$19,0)),\"\")","v":0},{"$f":"IFERROR(INDEX('ГРАФИК И.Б. СЕНТЯБРЬ'!$AC$42:$HF$42,1,MATCH(AA$10,'ГРАФИК И.Б. СЕНТЯБРЬ'!$AC$19:$HF$19,0)),\"\")","v":0.50000000000000011},{"$f":"IFERROR(INDEX('ГРАФИК И.Б. СЕНТЯБРЬ'!$AC$42:$HF$42,1,MATCH(AB$10,'ГРАФИК И.Б. СЕНТЯБРЬ'!$AC$19:$HF$19,0)),\"\")","v":0},{"$f":"IFERROR(INDEX('ГРАФИК И.Б. СЕНТЯБРЬ'!$AC$42:$HF$42,1,MATCH(AC$10,'ГРАФИК И.Б. СЕНТЯБРЬ'!$AC$19:$HF$19,0)),\"\")","v":0.50000000000000011},{"$f":"IFERROR(INDEX('ГРАФИК И.Б. СЕНТЯБРЬ'!$AC$42:$HF$42,1,MATCH(AD$10,'ГРАФИК И.Б. СЕНТЯБРЬ'!$AC$19:$HF$19,0)),\"\")","v":0},{"$f":"IFERROR(INDEX('ГРАФИК И.Б. СЕНТЯБРЬ'!$AC$42:$HF$42,1,MATCH(AE$10,'ГРАФИК И.Б. СЕНТЯБРЬ'!$AC$19:$HF$19,0)),\"\")","v":0.50000000000000011},{"$f":"IFERROR(INDEX('ГРАФИК И.Б. СЕНТЯБРЬ'!$AC$42:$HF$42,1,MATCH(AF$10,'ГРАФИК И.Б. СЕНТЯБРЬ'!$AC$19:$HF$19,0)),\"\")","v":0},{"$f":"IFERROR(INDEX('ГРАФИК И.Б. СЕНТЯБРЬ'!$AC$42:$HF$42,1,MATCH(AG$10,'ГРАФИК И.Б. СЕНТЯБРЬ'!$AC$19:$HF$19,0)),\"\")","v":0.50000000000000011},{"$f":"IFERROR(INDEX('ГРАФИК И.Б. СЕНТЯБРЬ'!$AC$42:$HF$42,1,MATCH(AH$10,'ГРАФИК И.Б. СЕНТЯБРЬ'!$AC$19:$HF$19,0)),\"\")","v":0},{"$f":"IFERROR(INDEX('ГРАФИК И.Б. СЕНТЯБРЬ'!$AC$42:$HF$42,1,MATCH(AI$10,'ГРАФИК И.Б. СЕНТЯБРЬ'!$AC$19:$HF$19,0)),\"\")","v":0.50000000000000011},{"$f":"IFERROR(INDEX('ГРАФИК И.Б. СЕНТЯБРЬ'!$AC$42:$HF$42,1,MATCH(AJ$10,'ГРАФИК И.Б. СЕНТЯБРЬ'!$AC$19:$HF$19,0)),\"\")","v":0},{"$f":"IFERROR(INDEX('ГРАФИК И.Б. СЕНТЯБРЬ'!$AC$42:$HF$42,1,MATCH(AK$10,'ГРАФИК И.Б. СЕНТЯБРЬ'!$AC$19:$HF$19,0)),\"\")","v":""},{"$f":"COUNTIF($F20:$AK20,\">0\")","v":15},{"$f":"SUM($F20:$AK20)","v":7.3333333333333339}]
[null,null,null,null,null,{"$f":"IF(F20=0,IF(INDEX( 'ГРАФИК И.Б. СЕНТЯБРЬ'!$AC$21:$HF$44,MATCH($C20, 'ГРАФИК И.Б. СЕНТЯБРЬ'!$F$21:$F$44),MATCH(F$10, 'ГРАФИК И.Б. СЕНТЯБРЬ'!$AC$19:$HF$19,))=\"ОТ\",\"ОТ\",\"В\"),\"Я\")","v":"Я"},{"$f":"IF(G20=0,IF(INDEX( 'ГРАФИК И.Б. СЕНТЯБРЬ'!$AC$21:$HF$44,MATCH($C20, 'ГРАФИК И.Б. СЕНТЯБРЬ'!$F$21:$F$44),MATCH(G$10, 'ГРАФИК И.Б. СЕНТЯБРЬ'!$AC$19:$HF$19,))=\"ОТ\",\"ОТ\",\"В\"),\"Я\")","v":{"$error":"#N/A"}},{"$f":"IF(H20=0,IF(INDEX( 'ГРАФИК И.Б. СЕНТЯБРЬ'!$AC$21:$HF$44,MATCH($C20, 'ГРАФИК И.Б. СЕНТЯБРЬ'!$F$21:$F$44),MATCH(H$10, 'ГРАФИК И.Б. СЕНТЯБРЬ'!$AC$19:$HF$19,))=\"ОТ\",\"ОТ\",\"В\"),\"Я\")","v":"Я"},{"$f":"IF(I20=0,IF(INDEX( 'ГРАФИК И.Б. СЕНТЯБРЬ'!$AC$21:$HF$44,MATCH($C20, 'ГРАФИК И.Б. СЕНТЯБРЬ'!$F$21:$F$44),MATCH(I$10, 'ГРАФИК И.Б. СЕНТЯБРЬ'!$AC$19:$HF$19,))=\"ОТ\",\"ОТ\",\"В\"),\"Я\")","v":{"$error":"#N/A"}},{"$f":"IF(J20=0,IF(INDEX( 'ГРАФИК И.Б. СЕНТЯБРЬ'!$AC$21:$HF$44,MATCH($C20, 'ГРАФИК И.Б. СЕНТЯБРЬ'!$F$21:$F$44),MATCH(J$10, 'ГРАФИК И.Б. СЕНТЯБРЬ'!$AC$19:$HF$19,))=\"ОТ\",\"ОТ\",\"В\"),\"Я\")","v":"Я"},{"$f":"IF(K20=0,IF(INDEX( 'ГРАФИК И.Б. СЕНТЯБРЬ'!$AC$21:$HF$44,MATCH($C20, 'ГРАФИК И.Б. СЕНТЯБРЬ'!$F$21:$F$44),MATCH(K$10, 'ГРАФИК И.Б. СЕНТЯБРЬ'!$AC$19:$HF$19,))=\"ОТ\",\"ОТ\",\"В\"),\"Я\")","v":{"$error":"#N/A"}},{"$f":"IF(L20=0,IF(INDEX( 'ГРАФИК И.Б. СЕНТЯБРЬ'!$AC$21:$HF$44,MATCH($C20, 'ГРАФИК И.Б. СЕНТЯБРЬ'!$F$21:$F$44),MATCH(L$10, 'ГРАФИК И.Б. СЕНТЯБРЬ'!$AC$19:$HF$19,))=\"ОТ\",\"ОТ\",\"В\"),\"Я\")","v":"Я"},{"$f":"IF(M20=0,IF(INDEX( 'ГРАФИК И.Б. СЕНТЯБРЬ'!$AC$21:$HF$44,MATCH($C20, 'ГРАФИК И.Б. СЕНТЯБРЬ'!$F$21:$F$44),MATCH(M$10, 'ГРАФИК И.Б. СЕНТЯБРЬ'!$AC$19:$HF$19,))=\"ОТ\",\"ОТ\",\"В\"),\"Я\")","v":{"$error":"#N/A"}},{"$f":"IF(N20=0,IF(INDEX( 'ГРАФИК И.Б. СЕНТЯБРЬ'!$AC$21:$HF$44,MATCH($C20, 'ГРАФИК И.Б. СЕНТЯБРЬ'!$F$21:$F$44),MATCH(N$10, 'ГРАФИК И.Б. СЕНТЯБРЬ'!$AC$19:$HF$19,))=\"ОТ\",\"ОТ\",\"В\"),\"Я\")","v":"Я"},{"$f":"IF(O20=0,IF(INDEX( 'ГРАФИК И.Б. СЕНТЯБРЬ'!$AC$21:$HF$44,MATCH($C20, 'ГРАФИК И.Б. СЕНТЯБРЬ'!$F$21:$F$44),MATCH(O$10, 'ГРАФИК И.Б. СЕНТЯБРЬ'!$AC$19:$HF$19,))=\"ОТ\",\"ОТ\",\"В\"),\"Я\")","v":{"$error":"#N/A"}},{"$f":"IF(P20=0,IF(INDEX( 'ГРАФИК И.Б. СЕНТЯБРЬ'!$AC$21:$HF$44,MATCH($C20, 'ГРАФИК И.Б. СЕНТЯБРЬ'!$F$21:$F$44),MATCH(P$10, 'ГРАФИК И.Б. СЕНТЯБРЬ'!$AC$19:$HF$19,))=\"ОТ\",\"ОТ\",\"В\"),\"Я\")","v":"Я"},{"$f":"IF(Q20=0,IF(INDEX( 'ГРАФИК И.Б. СЕНТЯБРЬ'!$AC$21:$HF$44,MATCH($C20, 'ГРАФИК И.Б. СЕНТЯБРЬ'!$F$21:$F$44),MATCH(Q$10, 'ГРАФИК И.Б. СЕНТЯБРЬ'!$AC$19:$HF$19,))=\"ОТ\",\"ОТ\",\"В\"),\"Я\")","v":{"$error":"#N/A"}},{"$f":"IF(R20=0,IF(INDEX( 'ГРАФИК И.Б. СЕНТЯБРЬ'!$AC$21:$HF$44,MATCH($C20, 'ГРАФИК И.Б. СЕНТЯБРЬ'!$F$21:$F$44),MATCH(R$10, 'ГРАФИК И.Б. СЕНТЯБРЬ'!$AC$19:$HF$19,))=\"ОТ\",\"ОТ\",\"В\"),\"Я\")","v":"Я"},{"$f":"IF(S20=0,IF(INDEX( 'ГРАФИК И.Б. СЕНТЯБРЬ'!$AC$21:$HF$44,MATCH($C20, 'ГРАФИК И.Б. СЕНТЯБРЬ'!$F$21:$F$44),MATCH(S$10, 'ГРАФИК И.Б. СЕНТЯБРЬ'!$AC$19:$HF$19,))=\"ОТ\",\"ОТ\",\"В\"),\"Я\")","v":{"$error":"#N/A"}},{"$f":"IF(T20=0,IF(INDEX( 'ГРАФИК И.Б. СЕНТЯБРЬ'!$AC$21:$HF$44,MATCH($C20, 'ГРАФИК И.Б. СЕНТЯБРЬ'!$F$21:$F$44),MATCH(T$10, 'ГРАФИК И.Б. СЕНТЯБРЬ'!$AC$19:$HF$19,))=\"ОТ\",\"ОТ\",\"В\"),\"Я\")","v":"Я"},{"$f":"IF(U20=0,IF(INDEX( 'ГРАФИК И.Б. СЕНТЯБРЬ'!$AC$21:$HF$44,MATCH($C20, 'ГРАФИК И.Б. СЕНТЯБРЬ'!$F$21:$F$44),MATCH(U$10, 'ГРАФИК И.Б. СЕНТЯБРЬ'!$AC$19:$HF$19,))=\"ОТ\",\"ОТ\",\"В\"),\"Я\")","v":"Я"},{"$f":"IF(V20=0,IF(INDEX( 'ГРАФИК И.Б. СЕНТЯБРЬ'!$AC$21:$HF$44,MATCH($C20, 'ГРАФИК И.Б. СЕНТЯБРЬ'!$F$21:$F$44),MATCH(V$10, 'ГРАФИК И.Б. СЕНТЯБРЬ'!$AC$19:$HF$19,))=\"ОТ\",\"ОТ\",\"В\"),\"Я\")","v":{"$error":"#N/A"}},{"$f":"IF(W20=0,IF(INDEX( 'ГРАФИК И.Б. СЕНТЯБРЬ'!$AC$21:$HF$44,MATCH($C20, 'ГРАФИК И.Б. СЕНТЯБРЬ'!$F$21:$F$44),MATCH(W$10, 'ГРАФИК И.Б. СЕНТЯБРЬ'!$AC$19:$HF$19,))=\"ОТ\",\"ОТ\",\"В\"),\"Я\")","v":"Я"},{"$f":"IF(X20=0,IF(INDEX( 'ГРАФИК И.Б. СЕНТЯБРЬ'!$AC$21:$HF$44,MATCH($C20, 'ГРАФИК И.Б. СЕНТЯБРЬ'!$F$21:$F$44),MATCH(X$10, 'ГРАФИК И.Б. СЕНТЯБРЬ'!$AC$19:$HF$19,))=\"ОТ\",\"ОТ\",\"В\"),\"Я\")","v":{"$error":"#N/A"}},{"$f":"IF(Y20=0,IF(INDEX( 'ГРАФИК И.Б. СЕНТЯБРЬ'!$AC$21:$HF$44,MATCH($C20, 'ГРАФИК И.Б. СЕНТЯБРЬ'!$F$21:$F$44),MATCH(Y$10, 'ГРАФИК И.Б. СЕНТЯБРЬ'!$AC$19:$HF$19,))=\"ОТ\",\"ОТ\",\"В\"),\"Я\")","v":"Я"},{"$f":"IF(Z20=0,IF(INDEX( 'ГРАФИК И.Б. СЕНТЯБРЬ'!$AC$21:$HF$44,MATCH($C20, 'ГРАФИК И.Б. СЕНТЯБРЬ'!$F$21:$F$44),MATCH(Z$10, 'ГРАФИК И.Б. СЕНТЯБРЬ'!$AC$19:$HF$19,))=\"ОТ\",\"ОТ\",\"В\"),\"Я\")","v":{"$error":"#N/A"}},{"$f":"IF(AA20=0,IF(INDEX( 'ГРАФИК И.Б. СЕНТЯБРЬ'!$AC$21:$HF$44,MATCH($C20, 'ГРАФИК И.Б. СЕНТЯБРЬ'!$F$21:$F$44),MATCH(AA$10, 'ГРАФИК И.Б. СЕНТЯБРЬ'!$AC$19:$HF$19,))=\"ОТ\",\"ОТ\",\"В\"),\"Я\")","v":"Я"},{"$f":"IF(AB20=0,IF(INDEX( 'ГРАФИК И.Б. СЕНТЯБРЬ'!$AC$21:$HF$44,MATCH($C20, 'ГРАФИК И.Б. СЕНТЯБРЬ'!$F$21:$F$44),MATCH(AB$10, 'ГРАФИК И.Б. СЕНТЯБРЬ'!$AC$19:$HF$19,))=\"ОТ\",\"ОТ\",\"В\"),\"Я\")","v":{"$error":"#N/A"}},{"$f":"IF(AC20=0,IF(INDEX( 'ГРАФИК И.Б. СЕНТЯБРЬ'!$AC$21:$HF$44,MATCH($C20, 'ГРАФИК И.Б. СЕНТЯБРЬ'!$F$21:$F$44),MATCH(AC$10, 'ГРАФИК И.Б. СЕНТЯБРЬ'!$AC$19:$HF$19,))=\"ОТ\",\"ОТ\",\"В\"),\"Я\")","v":"Я"},{"$f":"IF(AD20=0,IF(INDEX( 'ГРАФИК И.Б. СЕНТЯБРЬ'!$AC$21:$HF$44,MATCH($C20, 'ГРАФИК И.Б. СЕНТЯБРЬ'!$F$21:$F$44),MATCH(AD$10, 'ГРАФИК И.Б. СЕНТЯБРЬ'!$AC$19:$HF$19,))=\"ОТ\",\"ОТ\",\"В\"),\"Я\")","v":{"$error":"#N/A"}},{"$f":"IF(AE20=0,IF(INDEX( 'ГРАФИК И.Б. СЕНТЯБРЬ'!$AC$21:$HF$44,MATCH($C20, 'ГРАФИК И.Б. СЕНТЯБРЬ'!$F$21:$F$44),MATCH(AE$10, 'ГРАФИК И.Б. СЕНТЯБРЬ'!$AC$19:$HF$19,))=\"ОТ\",\"ОТ\",\"В\"),\"Я\")","v":"Я"},{"$f":"IF(AF20=0,IF(INDEX( 'ГРАФИК И.Б. СЕНТЯБРЬ'!$AC$21:$HF$44,MATCH($C20, 'ГРАФИК И.Б. СЕНТЯБРЬ'!$F$21:$F$44),MATCH(AF$10, 'ГРАФИК И.Б. СЕНТЯБРЬ'!$AC$19:$HF$19,))=\"ОТ\",\"ОТ\",\"В\"),\"Я\")","v":{"$error":"#N/A"}},{"$f":"IF(AG20=0,IF(INDEX( 'ГРАФИК И.Б. СЕНТЯБРЬ'!$AC$21:$HF$44,MATCH($C20, 'ГРАФИК И.Б. СЕНТЯБРЬ'!$F$21:$F$44),MATCH(AG$10, 'ГРАФИК И.Б. СЕНТЯБРЬ'!$AC$19:$HF$19,))=\"ОТ\",\"ОТ\",\"В\"),\"Я\")","v":"Я"},{"$f":"IF(AH20=0,IF(INDEX( 'ГРАФИК И.Б. СЕНТЯБРЬ'!$AC$21:$HF$44,MATCH($C20, 'ГРАФИК И.Б. СЕНТЯБРЬ'!$F$21:$F$44),MATCH(AH$10, 'ГРАФИК И.Б. СЕНТЯБРЬ'!$AC$19:$HF$19,))=\"ОТ\",\"ОТ\",\"В\"),\"Я\")","v":{"$error":"#N/A"}},{"$f":"IF(AI20=0,IF(INDEX( 'ГРАФИК И.Б. СЕНТЯБРЬ'!$AC$21:$HF$44,MATCH($C20, 'ГРАФИК И.Б. СЕНТЯБРЬ'!$F$21:$F$44),MATCH(AI$10, 'ГРАФИК И.Б. СЕНТЯБРЬ'!$AC$19:$HF$19,))=\"ОТ\",\"ОТ\",\"В\"),\"Я\")","v":"Я"},{"$f":"IF(AJ20=0,IF(INDEX( 'ГРАФИК И.Б. СЕНТЯБРЬ'!$AC$21:$HF$44,MATCH($C20, 'ГРАФИК И.Б. СЕНТЯБРЬ'!$F$21:$F$44),MATCH(AJ$10, 'ГРАФИК И.Б. СЕНТЯБРЬ'!$AC$19:$HF$19,))=\"ОТ\",\"ОТ\",\"В\"),\"Я\")","v":{"$error":"#N/A"}},{"$f":"IF(AK20=0,IF(INDEX( 'ГРАФИК И.Б. СЕНТЯБРЬ'!$AC$21:$HF$44,MATCH($C20, 'ГРАФИК И.Б. СЕНТЯБРЬ'!$F$21:$F$44),MATCH(AK$10, 'ГРАФИК И.Б. СЕНТЯБРЬ'!$AC$19:$HF$19,))=\"ОТ\",\"ОТ\",\"В\"),\"Я\")","v":"Я"}]
[{"$f":"IF(ISBLANK(C22),\"\",COUNTA($C$16:C22))","v":2},null,{"$f":"'[1]ГРАФИК И.Б. ИЮНЬ 2020 '!F45","v":"Купцова Г.И., кассир билетный"},"кассир билетный",null,{"$f":"IFERROR(INDEX('ГРАФИК И.Б. СЕНТЯБРЬ'!$AC$48:$HF$48,1,MATCH(F$10,'ГРАФИК И.Б. СЕНТЯБРЬ'!$AC$19:$HF$19,0)),\"\")","v":0},{"$f":"IFERROR(INDEX('ГРАФИК И.Б. СЕНТЯБРЬ'!$AC$48:$HF$48,1,MATCH(G$10,'ГРАФИК И.Б. СЕНТЯБРЬ'!$AC$19:$HF$19,0)),\"\")","v":0.50000000000000011},{"$f":"IFERROR(INDEX('ГРАФИК И.Б. СЕНТЯБРЬ'!$AC$48:$HF$48,1,MATCH(H$10,'ГРАФИК И.Б. СЕНТЯБРЬ'!$AC$19:$HF$19,0)),\"\")","v":0},{"$f":"IFERROR(INDEX('ГРАФИК И.Б. СЕНТЯБРЬ'!$AC$48:$HF$48,1,MATCH(I$10,'ГРАФИК И.Б. СЕНТЯБРЬ'!$AC$19:$HF$19,0)),\"\")","v":0.45833333333333331},{"$f":"IFERROR(INDEX('ГРАФИК И.Б. СЕНТЯБРЬ'!$AC$48:$HF$48,1,MATCH(J$10,'ГРАФИК И.Б. СЕНТЯБРЬ'!$AC$19:$HF$19,0)),\"\")","v":0},{"$f":"IFERROR(INDEX('ГРАФИК И.Б. СЕНТЯБРЬ'!$AC$48:$HF$48,1,MATCH(K$10,'ГРАФИК И.Б. СЕНТЯБРЬ'!$AC$19:$HF$19,0)),\"\")","v":0.50000000000000011},{"$f":"IFERROR(INDEX('ГРАФИК И.Б. СЕНТЯБРЬ'!$AC$48:$HF$48,1,MATCH(L$10,'ГРАФИК И.Б. СЕНТЯБРЬ'!$AC$19:$HF$19,0)),\"\")","v":0},{"$f":"IFERROR(INDEX('ГРАФИК И.Б. СЕНТЯБРЬ'!$AC$48:$HF$48,1,MATCH(M$10,'ГРАФИК И.Б. СЕНТЯБРЬ'!$AC$19:$HF$19,0)),\"\")","v":0.45833333333333331},{"$f":"IFERROR(INDEX('ГРАФИК И.Б. СЕНТЯБРЬ'!$AC$48:$HF$48,1,MATCH(N$10,'ГРАФИК И.Б. СЕНТЯБРЬ'!$AC$19:$HF$19,0)),\"\")","v":0},{"$f":"IFERROR(INDEX('ГРАФИК И.Б. СЕНТЯБРЬ'!$AC$48:$HF$48,1,MATCH(O$10,'ГРАФИК И.Б. СЕНТЯБРЬ'!$AC$19:$HF$19,0)),\"\")","v":0.45833333333333331},{"$f":"IFERROR(INDEX('ГРАФИК И.Б. СЕНТЯБРЬ'!$AC$48:$HF$48,1,MATCH(P$10,'ГРАФИК И.Б. СЕНТЯБРЬ'!$AC$19:$HF$19,0)),\"\")","v":0},{"$f":"IFERROR(INDEX('ГРАФИК И.Б. СЕНТЯБРЬ'!$AC$48:$HF$48,1,MATCH(Q$10,'ГРАФИК И.Б. СЕНТЯБРЬ'!$AC$19:$HF$19,0)),\"\")","v":0.50000000000000011},{"$f":"IFERROR(INDEX('ГРАФИК И.Б. СЕНТЯБРЬ'!$AC$48:$HF$48,1,MATCH(R$10,'ГРАФИК И.Б. СЕНТЯБРЬ'!$AC$19:$HF$19,0)),\"\")","v":0},{"$f":"IFERROR(INDEX('ГРАФИК И.Б. СЕНТЯБРЬ'!$AC$48:$HF$48,1,MATCH(S$10,'ГРАФИК И.Б. СЕНТЯБРЬ'!$AC$19:$HF$19,0)),\"\")","v":0.45833333333333331},{"$f":"IFERROR(INDEX('ГРАФИК И.Б. СЕНТЯБРЬ'!$AC$48:$HF$48,1,MATCH(T$10,'ГРАФИК И.Б. СЕНТЯБРЬ'!$AC$19:$HF$19,0)),\"\")","v":0},{"$f":"IFERROR(INDEX('ГРАФИК И.Б. СЕНТЯБРЬ'!$AC$48:$HF$48,1,MATCH(U$10,'ГРАФИК И.Б. СЕНТЯБРЬ'!$AC$19:$HF$19,0)),\"\")","v":""},{"$f":"IFERROR(INDEX('ГРАФИК И.Б. СЕНТЯБРЬ'!$AC$48:$HF$48,1,MATCH(V$10,'ГРАФИК И.Б. СЕНТЯБРЬ'!$AC$19:$HF$19,0)),\"\")","v":0.50000000000000011},{"$f":"IFERROR(INDEX('ГРАФИК И.Б. СЕНТЯБРЬ'!$AC$48:$HF$48,1,MATCH(W$10,'ГРАФИК И.Б. СЕНТЯБРЬ'!$AC$19:$HF$19,0)),\"\")","v":0},{"$f":"IFERROR(INDEX('ГРАФИК И.Б. СЕНТЯБРЬ'!$AC$48:$HF$48,1,MATCH(X$10,'ГРАФИК И.Б. СЕНТЯБРЬ'!$AC$19:$HF$19,0)),\"\")","v":0.50000000000000011},{"$f":"IFERROR(INDEX('ГРАФИК И.Б. СЕНТЯБРЬ'!$AC$48:$HF$48,1,MATCH(Y$10,'ГРАФИК И.Б. СЕНТЯБРЬ'!$AC$19:$HF$19,0)),\"\")","v":0},{"$f":"IFERROR(INDEX('ГРАФИК И.Б. СЕНТЯБРЬ'!$AC$48:$HF$48,1,MATCH(Z$10,'ГРАФИК И.Б. СЕНТЯБРЬ'!$AC$19:$HF$19,0)),\"\")","v":0.50000000000000011},{"$f":"IFERROR(INDEX('ГРАФИК И.Б. СЕНТЯБРЬ'!$AC$48:$HF$48,1,MATCH(AA$10,'ГРАФИК И.Б. СЕНТЯБРЬ'!$AC$19:$HF$19,0)),\"\")","v":0},{"$f":"IFERROR(INDEX('ГРАФИК И.Б. СЕНТЯБРЬ'!$AC$48:$HF$48,1,MATCH(AB$10,'ГРАФИК И.Б. СЕНТЯБРЬ'!$AC$19:$HF$19,0)),\"\")","v":0.50000000000000011},{"$f":"IFERROR(INDEX('ГРАФИК И.Б. СЕНТЯБРЬ'!$AC$48:$HF$48,1,MATCH(AC$10,'ГРАФИК И.Б. СЕНТЯБРЬ'!$AC$19:$HF$19,0)),\"\")","v":0},{"$f":"IFERROR(INDEX('ГРАФИК И.Б. СЕНТЯБРЬ'!$AC$48:$HF$48,1,MATCH(AD$10,'ГРАФИК И.Б. СЕНТЯБРЬ'!$AC$19:$HF$19,0)),\"\")","v":0.50000000000000011},{"$f":"IFERROR(INDEX('ГРАФИК И.Б. СЕНТЯБРЬ'!$AC$48:$HF$48,1,MATCH(AE$10,'ГРАФИК И.Б. СЕНТЯБРЬ'!$AC$19:$HF$19,0)),\"\")","v":0},{"$f":"IFERROR(INDEX('ГРАФИК И.Б. СЕНТЯБРЬ'!$AC$48:$HF$48,1,MATCH(AF$10,'ГРАФИК И.Б. СЕНТЯБРЬ'!$AC$19:$HF$19,0)),\"\")","v":0.50000000000000011},{"$f":"IFERROR(INDEX('ГРАФИК И.Б. СЕНТЯБРЬ'!$AC$48:$HF$48,1,MATCH(AG$10,'ГРАФИК И.Б. СЕНТЯБРЬ'!$AC$19:$HF$19,0)),\"\")","v":0},{"$f":"IFERROR(INDEX('ГРАФИК И.Б. СЕНТЯБРЬ'!$AC$48:$HF$48,1,MATCH(AH$10,'ГРАФИК И.Б. СЕНТЯБРЬ'!$AC$19:$HF$19,0)),\"\")","v":0.50000000000000011},{"$f":"IFERROR(INDEX('ГРАФИК И.Б. СЕНТЯБРЬ'!$AC$48:$HF$48,1,MATCH(AI$10,'ГРАФИК И.Б. СЕНТЯБРЬ'!$AC$19:$HF$19,0)),\"\")","v":0},{"$f":"IFERROR(INDEX('ГРАФИК И.Б. СЕНТЯБРЬ'!$AC$48:$HF$48,1,MATCH(AJ$10,'ГРАФИК И.Б. СЕНТЯБРЬ'!$AC$19:$HF$19,0)),\"\")","v":0.50000000000000011},{"$f":"IFERROR(INDEX('ГРАФИК И.Б. СЕНТЯБРЬ'!$AC$48:$HF$48,1,MATCH(AK$10,'ГРАФИК И.Б. СЕНТЯБРЬ'!$AC$19:$HF$19,0)),\"\")","v":""},15,7.3333333333333339]
[null,null,null,null,null,{"$f":"IF(F22=0,IF(INDEX( 'ГРАФИК И.Б. СЕНТЯБРЬ'!$AC$21:$HF$50,MATCH($C22, 'ГРАФИК И.Б. СЕНТЯБРЬ'!$F$21:$F$50),MATCH(F$10, 'ГРАФИК И.Б. СЕНТЯБРЬ'!$AC$19:$HF$19,))=\"ОТ\",\"ОТ\",\"В\"),\"Я\")","v":{"$error":"#N/A"}},{"$f":"IF(G22=0,IF(INDEX( 'ГРАФИК И.Б. СЕНТЯБРЬ'!$AC$21:$HF$50,MATCH($C22, 'ГРАФИК И.Б. СЕНТЯБРЬ'!$F$21:$F$50),MATCH(G$10, 'ГРАФИК И.Б. СЕНТЯБРЬ'!$AC$19:$HF$19,))=\"ОТ\",\"ОТ\",\"В\"),\"Я\")","v":"Я"},{"$f":"IF(H22=0,IF(INDEX( 'ГРАФИК И.Б. СЕНТЯБРЬ'!$AC$21:$HF$50,MATCH($C22, 'ГРАФИК И.Б. СЕНТЯБРЬ'!$F$21:$F$50),MATCH(H$10, 'ГРАФИК И.Б. СЕНТЯБРЬ'!$AC$19:$HF$19,))=\"ОТ\",\"ОТ\",\"В\"),\"Я\")","v":{"$error":"#N/A"}},{"$f":"IF(I22=0,IF(INDEX( 'ГРАФИК И.Б. СЕНТЯБРЬ'!$AC$21:$HF$50,MATCH($C22, 'ГРАФИК И.Б. СЕНТЯБРЬ'!$F$21:$F$50),MATCH(I$10, 'ГРАФИК И.Б. СЕНТЯБРЬ'!$AC$19:$HF$19,))=\"ОТ\",\"ОТ\",\"В\"),\"Я\")","v":"Я"},{"$f":"IF(J22=0,IF(INDEX( 'ГРАФИК И.Б. СЕНТЯБРЬ'!$AC$21:$HF$50,MATCH($C22, 'ГРАФИК И.Б. СЕНТЯБРЬ'!$F$21:$F$50),MATCH(J$10, 'ГРАФИК И.Б. СЕНТЯБРЬ'!$AC$19:$HF$19,))=\"ОТ\",\"ОТ\",\"В\"),\"Я\")","v":{"$error":"#N/A"}},{"$f":"IF(K22=0,IF(INDEX( 'ГРАФИК И.Б. СЕНТЯБРЬ'!$AC$21:$HF$50,MATCH($C22, 'ГРАФИК И.Б. СЕНТЯБРЬ'!$F$21:$F$50),MATCH(K$10, 'ГРАФИК И.Б. СЕНТЯБРЬ'!$AC$19:$HF$19,))=\"ОТ\",\"ОТ\",\"В\"),\"Я\")","v":"Я"},{"$f":"IF(L22=0,IF(INDEX( 'ГРАФИК И.Б. СЕНТЯБРЬ'!$AC$21:$HF$50,MATCH($C22, 'ГРАФИК И.Б. СЕНТЯБРЬ'!$F$21:$F$50),MATCH(L$10, 'ГРАФИК И.Б. СЕНТЯБРЬ'!$AC$19:$HF$19,))=\"ОТ\",\"ОТ\",\"В\"),\"Я\")","v":{"$error":"#N/A"}},{"$f":"IF(M22=0,IF(INDEX( 'ГРАФИК И.Б. СЕНТЯБРЬ'!$AC$21:$HF$50,MATCH($C22, 'ГРАФИК И.Б. СЕНТЯБРЬ'!$F$21:$F$50),MATCH(M$10, 'ГРАФИК И.Б. СЕНТЯБРЬ'!$AC$19:$HF$19,))=\"ОТ\",\"ОТ\",\"В\"),\"Я\")","v":"Я"},{"$f":"IF(N22=0,IF(INDEX( 'ГРАФИК И.Б. СЕНТЯБРЬ'!$AC$21:$HF$50,MATCH($C22, 'ГРАФИК И.Б. СЕНТЯБРЬ'!$F$21:$F$50),MATCH(N$10, 'ГРАФИК И.Б. СЕНТЯБРЬ'!$AC$19:$HF$19,))=\"ОТ\",\"ОТ\",\"В\"),\"Я\")","v":{"$error":"#N/A"}},{"$f":"IF(O22=0,IF(INDEX( 'ГРАФИК И.Б. СЕНТЯБРЬ'!$AC$21:$HF$50,MATCH($C22, 'ГРАФИК И.Б. СЕНТЯБРЬ'!$F$21:$F$50),MATCH(O$10, 'ГРАФИК И.Б. СЕНТЯБРЬ'!$AC$19:$HF$19,))=\"ОТ\",\"ОТ\",\"В\"),\"Я\")","v":"Я"},{"$f":"IF(P22=0,IF(INDEX( 'ГРАФИК И.Б. СЕНТЯБРЬ'!$AC$21:$HF$50,MATCH($C22, 'ГРАФИК И.Б. СЕНТЯБРЬ'!$F$21:$F$50),MATCH(P$10, 'ГРАФИК И.Б. СЕНТЯБРЬ'!$AC$19:$HF$19,))=\"ОТ\",\"ОТ\",\"В\"),\"Я\")","v":{"$error":"#N/A"}},{"$f":"IF(Q22=0,IF(INDEX( 'ГРАФИК И.Б. СЕНТЯБРЬ'!$AC$21:$HF$50,MATCH($C22, 'ГРАФИК И.Б. СЕНТЯБРЬ'!$F$21:$F$50),MATCH(Q$10, 'ГРАФИК И.Б. СЕНТЯБРЬ'!$AC$19:$HF$19,))=\"ОТ\",\"ОТ\",\"В\"),\"Я\")","v":"Я"},{"$f":"IF(R22=0,IF(INDEX( 'ГРАФИК И.Б. СЕНТЯБРЬ'!$AC$21:$HF$50,MATCH($C22, 'ГРАФИК И.Б. СЕНТЯБРЬ'!$F$21:$F$50),MATCH(R$10, 'ГРАФИК И.Б. СЕНТЯБРЬ'!$AC$19:$HF$19,))=\"ОТ\",\"ОТ\",\"В\"),\"Я\")","v":{"$error":"#N/A"}},{"$f":"IF(S22=0,IF(INDEX( 'ГРАФИК И.Б. СЕНТЯБРЬ'!$AC$21:$HF$50,MATCH($C22, 'ГРАФИК И.Б. СЕНТЯБРЬ'!$F$21:$F$50),MATCH(S$10, 'ГРАФИК И.Б. СЕНТЯБРЬ'!$AC$19:$HF$19,))=\"ОТ\",\"ОТ\",\"В\"),\"Я\")","v":"Я"},{"$f":"IF(T22=0,IF(INDEX( 'ГРАФИК И.Б. СЕНТЯБРЬ'!$AC$21:$HF$50,MATCH($C22, 'ГРАФИК И.Б. СЕНТЯБРЬ'!$F$21:$F$50),MATCH(T$10, 'ГРАФИК И.Б. СЕНТЯБРЬ'!$AC$19:$HF$19,))=\"ОТ\",\"ОТ\",\"В\"),\"Я\")","v":{"$error":"#N/A"}},{"$f":"IF(U22=0,IF(INDEX( 'ГРАФИК И.Б. СЕНТЯБРЬ'!$AC$21:$HF$50,MATCH($C22, 'ГРАФИК И.Б. СЕНТЯБРЬ'!$F$21:$F$50),MATCH(U$10, 'ГРАФИК И.Б. СЕНТЯБРЬ'!$AC$19:$HF$19,))=\"ОТ\",\"ОТ\",\"В\"),\"Я\")","v":"Я"},{"$f":"IF(V22=0,IF(INDEX( 'ГРАФИК И.Б. СЕНТЯБРЬ'!$AC$21:$HF$50,MATCH($C22, 'ГРАФИК И.Б. СЕНТЯБРЬ'!$F$21:$F$50),MATCH(V$10, 'ГРАФИК И.Б. СЕНТЯБРЬ'!$AC$19:$HF$19,))=\"ОТ\",\"ОТ\",\"В\"),\"Я\")","v":"Я"},{"$f":"IF(W22=0,IF(INDEX( 'ГРАФИК И.Б. СЕНТЯБРЬ'!$AC$21:$HF$50,MATCH($C22, 'ГРАФИК И.Б. СЕНТЯБРЬ'!$F$21:$F$50),MATCH(W$10, 'ГРАФИК И.Б. СЕНТЯБРЬ'!$AC$19:$HF$19,))=\"ОТ\",\"ОТ\",\"В\"),\"Я\")","v":{"$error":"#N/A"}},{"$f":"IF(X22=0,IF(INDEX( 'ГРАФИК И.Б. СЕНТЯБРЬ'!$AC$21:$HF$50,MATCH($C22, 'ГРАФИК И.Б. СЕНТЯБРЬ'!$F$21:$F$50),MATCH(X$10, 'ГРАФИК И.Б. СЕНТЯБРЬ'!$AC$19:$HF$19,))=\"ОТ\",\"ОТ\",\"В\"),\"Я\")","v":"Я"},{"$f":"IF(Y22=0,IF(INDEX( 'ГРАФИК И.Б. СЕНТЯБРЬ'!$AC$21:$HF$50,MATCH($C22, 'ГРАФИК И.Б. СЕНТЯБРЬ'!$F$21:$F$50),MATCH(Y$10, 'ГРАФИК И.Б. СЕНТЯБРЬ'!$AC$19:$HF$19,))=\"ОТ\",\"ОТ\",\"В\"),\"Я\")","v":{"$error":"#N/A"}},{"$f":"IF(Z22=0,IF(INDEX( 'ГРАФИК И.Б. СЕНТЯБРЬ'!$AC$21:$HF$50,MATCH($C22, 'ГРАФИК И.Б. СЕНТЯБРЬ'!$F$21:$F$50),MATCH(Z$10, 'ГРАФИК И.Б. СЕНТЯБРЬ'!$AC$19:$HF$19,))=\"ОТ\",\"ОТ\",\"В\"),\"Я\")","v":"Я"},{"$f":"IF(AA22=0,IF(INDEX( 'ГРАФИК И.Б. СЕНТЯБРЬ'!$AC$21:$HF$50,MATCH($C22, 'ГРАФИК И.Б. СЕНТЯБРЬ'!$F$21:$F$50),MATCH(AA$10, 'ГРАФИК И.Б. СЕНТЯБРЬ'!$AC$19:$HF$19,))=\"ОТ\",\"ОТ\",\"В\"),\"Я\")","v":{"$error":"#N/A"}},{"$f":"IF(AB22=0,IF(INDEX( 'ГРАФИК И.Б. СЕНТЯБРЬ'!$AC$21:$HF$50,MATCH($C22, 'ГРАФИК И.Б. СЕНТЯБРЬ'!$F$21:$F$50),MATCH(AB$10, 'ГРАФИК И.Б. СЕНТЯБРЬ'!$AC$19:$HF$19,))=\"ОТ\",\"ОТ\",\"В\"),\"Я\")","v":"Я"},{"$f":"IF(AC22=0,IF(INDEX( 'ГРАФИК И.Б. СЕНТЯБРЬ'!$AC$21:$HF$50,MATCH($C22, 'ГРАФИК И.Б. СЕНТЯБРЬ'!$F$21:$F$50),MATCH(AC$10, 'ГРАФИК И.Б. СЕНТЯБРЬ'!$AC$19:$HF$19,))=\"ОТ\",\"ОТ\",\"В\"),\"Я\")","v":{"$error":"#N/A"}},{"$f":"IF(AD22=0,IF(INDEX( 'ГРАФИК И.Б. СЕНТЯБРЬ'!$AC$21:$HF$50,MATCH($C22, 'ГРАФИК И.Б. СЕНТЯБРЬ'!$F$21:$F$50),MATCH(AD$10, 'ГРАФИК И.Б. СЕНТЯБРЬ'!$AC$19:$HF$19,))=\"ОТ\",\"ОТ\",\"В\"),\"Я\")","v":"Я"},{"$f":"IF(AE22=0,IF(INDEX( 'ГРАФИК И.Б. СЕНТЯБРЬ'!$AC$21:$HF$50,MATCH($C22, 'ГРАФИК И.Б. СЕНТЯБРЬ'!$F$21:$F$50),MATCH(AE$10, 'ГРАФИК И.Б. СЕНТЯБРЬ'!$AC$19:$HF$19,))=\"ОТ\",\"ОТ\",\"В\"),\"Я\")","v":{"$error":"#N/A"}},{"$f":"IF(AF22=0,IF(INDEX( 'ГРАФИК И.Б. СЕНТЯБРЬ'!$AC$21:$HF$50,MATCH($C22, 'ГРАФИК И.Б. СЕНТЯБРЬ'!$F$21:$F$50),MATCH(AF$10, 'ГРАФИК И.Б. СЕНТЯБРЬ'!$AC$19:$HF$19,))=\"ОТ\",\"ОТ\",\"В\"),\"Я\")","v":"Я"},{"$f":"IF(AG22=0,IF(INDEX( 'ГРАФИК И.Б. СЕНТЯБРЬ'!$AC$21:$HF$50,MATCH($C22, 'ГРАФИК И.Б. СЕНТЯБРЬ'!$F$21:$F$50),MATCH(AG$10, 'ГРАФИК И.Б. СЕНТЯБРЬ'!$AC$19:$HF$19,))=\"ОТ\",\"ОТ\",\"В\"),\"Я\")","v":{"$error":"#N/A"}},{"$f":"IF(AH22=0,IF(INDEX( 'ГРАФИК И.Б. СЕНТЯБРЬ'!$AC$21:$HF$50,MATCH($C22, 'ГРАФИК И.Б. СЕНТЯБРЬ'!$F$21:$F$50),MATCH(AH$10, 'ГРАФИК И.Б. СЕНТЯБРЬ'!$AC$19:$HF$19,))=\"ОТ\",\"ОТ\",\"В\"),\"Я\")","v":"Я"},{"$f":"IF(AI22=0,IF(INDEX( 'ГРАФИК И.Б. СЕНТЯБРЬ'!$AC$21:$HF$50,MATCH($C22, 'ГРАФИК И.Б. СЕНТЯБРЬ'!$F$21:$F$50),MATCH(AI$10, 'ГРАФИК И.Б. СЕНТЯБРЬ'!$AC$19:$HF$19,))=\"ОТ\",\"ОТ\",\"В\"),\"Я\")","v":{"$error":"#N/A"}},{"$f":"IF(AJ22=0,IF(INDEX( 'ГРАФИК И.Б. СЕНТЯБРЬ'!$AC$21:$HF$50,MATCH($C22, 'ГРАФИК И.Б. СЕНТЯБРЬ'!$F$21:$F$50),MATCH(AJ$10, 'ГРАФИК И.Б. СЕНТЯБРЬ'!$AC$19:$HF$19,))=\"ОТ\",\"ОТ\",\"В\"),\"Я\")","v":"Я"},{"$f":"IF(AK22=0,IF(INDEX( 'ГРАФИК И.Б. СЕНТЯБРЬ'!$AC$21:$HF$50,MATCH($C22, 'ГРАФИК И.Б. СЕНТЯБРЬ'!$F$21:$F$50),MATCH(AK$10, 'ГРАФИК И.Б. СЕНТЯБРЬ'!$AC$19:$HF$19,))=\"ОТ\",\"ОТ\",\"В\"),\"Я\")","v":"Я"}]
[]
[]
[]
[]
[]
[]
[]
[]
[]
[]
[]
[]
[]
[]
[null,null,null,null,null,{"$f":"COUNTIF(F16:F37,\"Я\")","v":1},1,1,1,1,1,1,1,1,1,1,1,1,1,1,2,1,1,1,1,1,1,1,1,1,1,1,1,1,1,1,null,null,{"$f":"SUM($F$38:$AJ$38)","v":32}]
[null,null,null,null,null,null,null,null,null,null,null,null,null,null,null,null,null,null,null,null,null,null,null,null,null,null,null,null,null,null,null,null,null,null,null,null,null,null,{"$f":"SUM(H39:AL39)","v":0}]
[]
[]
[]
[null,null,null,null,null,null,null,null,null,null,null,null,null,null,null,"почему формула выдаёт ошибку????"]
[]
[]
[]
[]
[null,null,null,"2020-09-01"]
[null,null,null,2020]
[null,null,null,9]
[null,null,null,1,2,3,4,5,6,7,8,9,10,11,12,13,14,15,16,17,18,19,20,21,22,23,24,25,26,27,28,29,30,31]
[]
[null,null,null,null,null,null,null,null,null,null,null,null,null,null,null,null,null,null,null,null,null,null,null,null,null,null,null,null,null,null,null,null,null,null,null,null,null,null,"2020-01-01"]
[null,null,null,null,null,null,null,null,null,null,null,null,null,null,null,null,null,null,null,null,null,null,null,null,null,null,null,null,null,null,null,null,null,null,null,null,null,null,"2020-01-02"]
[null,null,null,null,null,null,null,null,null,null,null,null,null,null,null,null,null,null,null,null,null,null,null,null,null,null,null,null,null,null,null,null,null,null,null,null,null,null,"2020-01-03"]
[null,null,null,null,null,null,null,null,null,null,null,null,null,null,null,null,null,null,null,null,null,null,null,null,null,null,null,null,null,null,null,null,null,null,null,null,null,null,"2020-01-04"]
[null,null,null,null,null,null,null,null,null,null,null,null,null,null,null,null,null,null,null,null,null,null,null,null,null,null,null,null,null,null,null,null,null,null,null,null,null,null,"2020-01-05"]
[null,null,null,null,null,null,null,null,null,null,null,null,null,null,null,null,null,null,null,null,null,null,null,null,null,null,null,null,null,null,null,null,null,null,null,null,null,null,"2020-01-06"]
[null,null,null,null,null,null,null,null,null,null,null,null,null,null,null,null,null,null,null,null,null,null,null,null,null,null,null,null,null,null,null,null,null,null,null,null,null,null,"2020-01-07"]
[null,null,null,null,null,null,null,null,null,null,null,null,null,null,null,null,null,null,null,null,null,null,null,null,null,null,null,null,null,null,null,null,null,null,null,null,null,null,"2020-01-08"]
[null,null,null,null,null,null,null,null,null,null,null,null,null,null,null,null,null,null,null,null,null,null,null,null,null,null,null,null,null,null,null,null,null,null,null,null,null,null,"2020-02-23"]
[null,null,null,null,null,null,null,null,null,null,null,null,null,null,null,null,null,null,null,null,null,null,null,null,null,null,null,null,null,null,null,null,null,null,null,null,null,null,"2020-03-08"]
[null,null,null,null,null,null,null,null,null,null,null,null,null,null,null,null,null,null,null,null,null,null,null,null,null,null,null,null,null,null,null,null,null,null,null,null,null,null,"2020-05-01"]
[]
[]
[null,null,null,null,null,null,null,null,null,null,null,null,null,null,null,null,null,null,null,null,null,null,null,null,null,null,null,null,null,null,null,null,null,null,null,null,null,null,"2020-05-09"]
[]
[null,null,null,null,null,null,null,null,null,null,null,null,null,null,null,null,null,null,null,null,null,null,null,null,null,null,null,null,null,null,null,null,null,null,null,null,null,null,"2020-06-12"]
[null,null,null,null,null,null,null,null,null,null,null,null,null,null,null,null,null,null,null,null,null,null,null,null,null,null,null,null,null,null,null,null,null,null,null,null,null,null,"2020-11-04"]

{"sheet":"ГРАФИК И.Б. СЕНТЯБРЬ","index":1,"n_rows":110,"n_cols":248,"rows_kept":110,"cut":false,"hidden":false,"merged":[[109,5,109,7],[109,8,109,21],[109,27,109,56],[109,63,109,95],[107,5,107,7],[107,8,107,21],[107,27,107,56],[107,63,107,95],[108,5,108,7],[108,8,108,21],[108,27,108,56],[108,63,108,95],[105,5,105,7],[105,8,105,21],[105,27,105,56],[105,63,105,95],[106,5,106,7],[106,8,106,21],[106,27,106,56],[106,63,106,95],[103,5,103,7],[103,8,103,21],[103,27,103,56],[103,63,103,95],[104,5,104,7],[104,8,104,21],[104,27,104,56],[104,63,104,95],[101,5,101,7],[101,8,101,21],[101,27,101,56],[101,63,101,95],[102,5,102,7],[102,8,102,21],[102,27,102,56],[102,63,102,95],[99,5,99,7],[99,8,99,21],[99,27,99,56],[99,63,99,95],[100,5,100,7],[100,8,100,21],[100,27,100,56],[100,63,100,95],[93,214,93,220],[96,5,96,21],[98,5,98,7],[98,8,98,21],[98,27,98,56],[98,63,98,95],[93,166,93,171],[93,172,93,177],[93,178,93,183],[93,184,93,189],[93,190,93,195],[93,196,93,201],[93,130,93,135],[93,136,93,141],[93,142,93,147],[93,148,93,153],[93,154,93,159],[93,160,93,165],[93,94,93,99],[93,100,93,105],[93,106,93,111],[93,112,93,117],[93,118,93,123],[93,124,93,129],[93,58,93,63],[93,64,93,69],[93,70,93,75],[93,76,93,81],[93,82,93,87],[93,88,93,93],[93,24,93,27],[93,28,93,33],[93,34,93,39],[93,40,93,45],[93,46,93,51],[93,52,93,57],[92,184,92,189],[92,190,92,195],[92,196,92,201],[92,202,92,207],[92,208,92,213],[92,214,92,220],[92,148,92,153],[92,154,92,159],[92,160,92,165],[92,166,92,171],[92,172,92,177],[92,178,92,183],[92,112,92,117],[92,118,92,123],[92,124,92,129],[92,130,92,135],[92,136,92,141],[92,142,92,147],[92,76,92,81],[92,82,92,87],[92,88,92,93],[92,94,92,99],[92,100,92,105],[92,106,92,111],[93,202,93,207],[93,208,93,213],[91,208,91,213],[92,24,92,27],[92,28,92,33],[92,34,92,39],[92,40,92,45],[92,46,92,51],[92,52,92,57],[92,58,92,63],[92,64,92,69],[92,70,92,75],[91,172,91,177],[91,178,91,183],[91,184,91,189],[91,190,91,195],[91,196,91,201],[91,202,91,207],[91,136,91,141],[91,142,91,147],[91,148,91,153],[91,154,91,159],[91,160,91,165],[91,166,91,171],[91,100,91,105],[91,106,91,111],[91,112,91,117],[91,118,91,123],[91,124,91,129],[91,130,91,135],[91,64,91,69],[91,70,91,75],[91,76,91,81],[91,82,91,87],[91,88,91,93],[91,94,91,99],[90,202,90,207],[90,208,90,213],[90,214,91,220],[90,221,91,228],[91,28,91,33],[91,34,91,39],[91,40,91,45],[91,46,91,51],[91,52,91,57],[91,58,91,63],[90,166,90,171],[90,172,90,177],[90,178,90,183],[90,184,90,189],[90,190,90,195],[90,196,90,201],[90,130,90,135],[90,136,90,141],[90,142,90,147],[90,148,90,153],[90,154,90,159],[90,160,90,165],[90,94,90,99],[90,100,90,105],[90,106,90,111],[90,112,90,117],[90,118,90,123],[90,124,90,129],[90,58,90,63],[90,64,90,69],[90,70,90,75],[90,76,90,81],[90,82,90,87],[90,88,90,93],[90,23,91,27],[90,28,90,33],[90,34,90,39],[90,40,90,45],[90,46,90,51],[90,52,90,57],[89,172,89,177],[89,178,89,183],[89,184,89,189],[89,190,89,195],[89,196,89,201],[89,202,89,207],[89,136,89,141],[89,142,89,147],[89,148,89,153],[89,154,89,159],[89,160,89,165],[89,166,89,171],[89,100,89,105],[89,106,89,111],[89,112,89,117],[89,118,89,123],[89,124,89,129],[89,130,89,135],[89,64,89,69],[89,70,89,75],[89,76,89,81],[89,82,89,87],[89,88,89,93],[89,94,89,99],[89,28,89,33],[89,34,89,39],[89,40,89,45],[89,46,89,51],[89,52,89,57],[89,58,89,63],[88,184,88,189],[88,190,88,195],[88,196,88,201],[88,202,88,207],[88,208,88,213],[88,221,89,228],[89,208,89,213],[88,148,88,153],[88,154,88,159],[88,160,88,165],[88,166,88,171],[88,172,88,177],[88,178,88,183],[88,112,88,117],[88,118,88,123],[88,124,88,129],[88,130,88,135],[88,136,88,141],[88,142,88,147],[88,76,88,81],[88,82,88,87],[88,88,88,93],[88,94,88,99],[88,100,88,105],[88,106,88,111],[87,208,87,213],[88,23,89,27],[88,28,88,33],[88,34,88,39],[88,40,88,45],[88,46,88,51],[88,52,88,57],[88,58,88,63],[88,64,88,69],[88,70,88,75],[87,172,87,177],[87,178,87,183],[87,184,87,189],[87,190,87,195],[87,196,87,201],[87,202,87,207],[87,136,87,141],[87,142,87,147],[87,148,87,153],[87,154,87,159],[87,160,87,165],[87,166,87,171],[87,100,87,105],[87,106,87,111],[87,112,87,117],[87,118,87,123],[87,124,87,129],[87,130,87,135],[87,64,87,69],[87,70,87,75],[87,76,87,81],[87,82,87,87],[87,88,87,93],[87,94,87,99],[86,196,86,201],[86,202,86,207],[86,208,86,213],[86,214,89,220],[87,28,87,33],[87,34,87,39],[87,40,87,45],[87,46,87,51],[87,52,87,57],[87,58,87,63],[86,160,86,165],[86,166,86,171],[86,172,86,177],[86,178,86,183],[86,184,86,189],[86,190,86,195],[86,124,86,129],[86,130,86,135],[86,136,86,141],[86,142,86,147],[86,148,86,153],[86,154,86,159],[86,88,86,93],[86,94,86,99],[86,100,86,105],[86,106,86,111],[86,112,86,117],[86,118,86,123],[86,52,86,57],[86,58,86,63],[86,64,86,69],[86,70,86,75],[86,76,86,81],[86,82,86,87],[85,202,85,207],[85,208,85,213],[85,214,85,220],[86,0,93,4],[86,5,93,22],[86,23,87,27],[86,28,86,33],[86,34,86,39],[86,40,86,45],[86,46,86,51],[85,166,85,171],[85,172,85,177],[85,178,85,183],[85,184,85,189],[85,190,85,195],[85,196,85,201],[85,130,85,135],[85,136,85,141],[85,142,85,147],[85,148,85,153],[85,154,85,159],[85,160,85,165],[85,94,85,99],[85,100,85,105],[85,106,85,111],[85,112,85,117],[85,118,85,123],[85,124,85,129],[85,58,85,63],[85,64,85,69],[85,70,85,75],[85,76,85,81],[85,82,85,87],[85,88,85,93],[85,24,85,27],[85,28,85,33],[85,34,85,39],[85,40,85,45],[85,46,85,51],[85,52,85,57],[84,184,84,189],[84,190,84,195],[84,196,84,201],[84,202,84,207],[84,208,84,213],[84,214,84,220],[84,148,84,153],[84,154,84,159],[84,160,84,165],[84,166,84,171],[84,172,84,177],[84,178,84,183],[84,112,84,117],[84,118,84,123],[84,124,84,129],[84,130,84,135],[84,136,84,141],[84,142,84,147],[84,76,84,81],[84,82,84,87],[84,88,84,93],[84,94,84,99],[84,100,84,105],[84,106,84,111],[83,214,83,220],[84,24,84,27],[84,28,84,33],[84,34,84,39],[84,40,84,45],[84,46,84,51],[84,52,84,57],[84,58,84,63],[84,64,84,69],[84,70,84,75],[83,166,83,171],[83,172,83,177],[83,178,83,183],[83,184,83,189],[83,190,83,195],[83,196,83,201],[83,130,83,135],[83,136,83,141],[83,142,83,147],[83,148,83,153],[83,154,83,159],[83,160,83,165],[83,94,83,99],[83,100,83,105],[83,106,83,111],[83,112,83,117],[83,118,83,123],[83,124,83,129],[83,58,83,63],[83,64,83,69],[83,70,83,75],[83,76,83,81],[83,82,83,87],[83,88,83,93],[83,24,83,27],[83,28,83,33],[83,34,83,39],[83,40,83,45],[83,46,83,51],[83,52,83,57],[82,166,82,171],[82,172,82,177],[82,178,82,183],[82,184,82,189],[82,190,82,195],[82,196,82,201],[82,130,82,135],[82,136,82,141],[82,142,82,147],[82,148,82,153],[82,154,82,159],[82,160,82,165],[82,94,82,99],[82,100,82,105],[82,106,82,111],[82,112,82,117],[82,118,82,123],[82,124,82,129],[82,58,82,63],[82,64,82,69],[82,70,82,75],[82,76,82,81],[82,82,82,87],[82,88,82,93],[82,24,82,27],[82,28,82,33],[82,34,82,39],[82,40,82,45],[82,46,82,51],[82,52,82,57],[81,184,81,189],[81,190,81,195],[81,196,81,201],[81,202,81,207],[81,208,81,213],[81,232,83,232],[82,202,82,207],[82,208,82,213],[83,202,83,207],[83,208,83,213],[81,148,81,153],[81,154,81,159],[81,160,81,165],[81,166,81,171],[81,172,81,177],[81,178,81,183],[81,112,81,117],[81,118,81,123],[81,124,81,129],[81,130,81,135],[81,136,81,141],[81,142,81,147],[81,76,81,81],[81,82,81,87],[81,88,81,93],[81,94,81,99],[81,100,81,105],[81,106,81,111],[80,208,80,213],[80,214,82,220],[81,28,81,33],[81,34,81,39],[81,40,81,45],[81,46,81,51],[81,52,81,57],[81,58,81,63],[81,64,81,69],[81,70,81,75],[80,172,80,177],[80,178,80,183],[80,184,80,189],[80,190,80,195],[80,196,80,201],[80,202,80,207],[80,136,80,141],[80,142,80,147],[80,148,80,153],[80,154,80,159],[80,160,80,165],[80,166,80,171],[80,100,80,105],[80,106,80,111],[80,112,80,117],[80,118,80,123],[80,124,80,129],[80,130,80,135],[80,64,80,69],[80,70,80,75],[80,76,80,81],[80,82,80,87],[80,88,80,93],[80,94,80,99],[79,214,79,218],[80,1,85,4],[80,5,85,21],[80,24,81,27],[80,28,80,33],[80,34,80,39],[80,40,80,45],[80,46,80,51],[80,52,80,57],[80,58,80,63],[79,178,79,183],[79,184,79,189],[79,190,79,195],[79,196,79,201],[79,202,79,207],[79,208,79,212],[79,142,79,147],[79,148,79,153],[79,154,79,159],[79,160,79,165],[79,166,79,171],[79,172,79,177],[79,106,79,111],[79,112,79,117],[79,118,79,123],[79,124,79,129],[79,130,79,135],[79,136,79,141],[79,70,79,75],[79,76,79,81],[79,82,79,87],[79,88,79,93],[79,94,79,99],[79,100,79,105],[78,208,78,212],[78,214,78,218],[79,24,79,27],[79,28,79,33],[79,34,79,39],[79,40,79,45],[79,46,79,51],[79,52,79,57],[79,58,79,63],[79,64,79,69],[78,172,78,177],[78,178,78,183],[78,184,78,189],[78,190,78,195],[78,196,78,201],[78,202,78,207],[78,136,78,141],[78,142,78,147],[78,148,78,153],[78,154,78,159],[78,160,78,165],[78,166,78,171],[78,100,78,105],[78,106,78,111],[78,112,78,117],[78,118,78,123],[78,124,78,129],[78,130,78,135],[78,64,78,69],[78,70,78,75],[78,76,78,81],[78,82,78,87],[78,88,78,93],[78,94,78,99],[77,202,77,207],[77,208,77,212],[77,214,77,220],[78,24,78,27],[78,28,78,33],[78,34,78,39],[78,40,78,45],[78,46,78,51],[78,52,78,57],[78,58,78,63],[77,166,77,171],[77,172,77,177],[77,178,77,183],[77,184,77,189],[77,190,77,195],[77,196,77,201],[77,130,77,135],[77,136,77,141],[77,142,77,147],[77,148,77,153],[77,154,77,159],[77,160,77,165],[77,94,77,99],[77,100,77,105],[77,106,77,111],[77,112,77,117],[77,118,77,123],[77,124,77,129],[77,58,77,63],[77,64,77,69],[77,70,77,75],[77,76,77,81],[77,82,77,87],[77,88,77,93],[77,24,77,27],[77,28,77,33],[77,34,77,39],[77,40,77,45],[77,46,77,51],[77,52,77,57],[76,178,76,183],[76,70,76,75],[76,76,76,81],[76,82,76,87],[76,88,76,93],[76,94,76,99],[76,100,76,105],[76,184,76,189],[76,190,76,195],[76,196,76,201],[76,202,76,207],[76,208,76,212],[76,142,76,147],[76,148,76,153],[76,154,76,159],[76,160,76,165],[76,166,76,171],[76,172,76,177],[76,106,76,111],[76,112,76,117],[76,118,76,123],[76,124,76,129],[76,130,76,135],[76,136,76,141],[75,202,75,207],[75,208,75,212],[76,24,76,27],[76,28,76,33],[76,34,76,39],[76,40,76,45],[76,46,76,51],[76,52,76,57],[76,58,76,63],[76,64,76,69],[75,166,75,171],[75,172,75,177],[75,178,75,183],[75,184,75,189],[75,190,75,195],[75,196,75,201],[75,130,75,135],[75,136,75,141],[75,142,75,147],[75,148,75,153],[75,154,75,159],[75,160,75,165],[75,94,75,99],[75,100,75,105],[75,106,75,111],[75,112,75,117],[75,118,75,123],[75,124,75,129],[75,58,75,63],[75,64,75,69],[75,70,75,75],[75,76,75,81],[75,82,75,87],[75,88,75,93],[74,196,74,201],[74,202,74,207],[74,208,74,213],[74,214,76,220],[74,232,76,232],[75,28,75,33],[75,34,75,39],[75,40,75,45],[75,46,75,51],[75,52,75,57],[74,160,74,165],[74,166,74,171],[74,172,74,177],[74,178,74,183],[74,184,74,189],[74,190,74,195],[74,124,74,129],[74,130,74,135],[74,136,74,141],[74,142,74,147],[74,148,74,153],[74,154,74,159],[74,88,74,93],[74,94,74,99],[74,100,74,105],[74,106,74,111],[74,112,74,117],[74,118,74,123],[74,52,74,57],[74,58,74,63],[74,64,74,69],[74,70,74,75],[74,76,74,81],[74,82,74,87],[73,202,73,207],[73,208,73,213],[73,214,73,220],[74,1,79,4],[74,5,79,21],[74,24,75,27],[74,28,74,33],[74,34,74,39],[74,40,74,45],[74,46,74,51],[73,166,73,171],[73,172,73,177],[73,178,73,183],[73,184,73,189],[73,190,73,195],[73,196,73,201],[73,130,73,135],[73,136,73,141],[73,142,73,147],[73,148,73,153],[73,154,73,159],[73,160,73,165],[73,94,73,99],[73,100,73,105],[73,106,73,111],[73,112,73,117],[73,118,73,123],[73,124,73,129],[73,58,73,63],[73,64,73,69],[73,70,73,75],[73,76,73,81],[73,82,73,87],[73,88,73,93],[72,202,72,207],[72,208,72,213],[72,214,72,220],[72,221,73,228],[73,24,73,27],[73,28,73,33],[73,34,73,39],[73,40,73,45],[73,46,73,51],[73,52,73,57],[72,166,72,171],[72,172,72,177],[72,178,72,183],[72,184,72,189],[72,190,72,195],[72,196,72,201],[72,130,72,135],[72,136,72,141],[72,142,72,147],[72,148,72,153],[72,154,72,159],[72,160,72,165],[72,94,72,99],[72,100,72,105],[72,106,72,111],[72,112,72,117],[72,118,72,123],[72,124,72,129],[72,58,72,63],[72,64,72,69],[72,70,72,75],[72,76,72,81],[72,82,72,87],[72,88,72,93],[72,24,72,27],[72,28,72,33],[72,34,72,39],[72,40,72,45],[72,46,72,51],[72,52,72,57],[71,184,71,189],[71,190,71,195],[71,196,71,201],[71,202,71,207],[71,208,71,213],[71,214,71,220],[71,148,71,153],[71,154,71,159],[71,160,71,165],[71,166,71,171],[71,172,71,177],[71,178,71,183],[71,112,71,117],[71,118,71,123],[71,124,71,129],[71,130,71,135],[71,136,71,141],[71,142,71,147],[71,76,71,81],[71,82,71,87],[71,88,71,93],[71,94,71,99],[71,100,71,105],[71,106,71,111],[70,221,71,228],[71,24,71,27],[71,28,71,33],[71,34,71,39],[71,40,71,45],[71,46,71,51],[71,52,71,57],[71,58,71,63],[71,64,71,69],[71,70,71,75],[70,178,70,183],[70,184,70,189],[70,190,70,195],[70,196,70,201],[70,202,70,207],[70,208,70,213],[70,142,70,147],[70,148,70,153],[70,154,70,159],[70,160,70,165],[70,166,70,171],[70,172,70,177],[70,106,70,111],[70,112,70,117],[70,118,70,123],[70,124,70,129],[70,130,70,135],[70,136,70,141],[70,70,70,75],[70,76,70,81],[70,82,70,87],[70,88,70,93],[70,94,70,99],[70,100,70,105],[69,202,69,207],[69,208,69,213],[70,24,70,27],[70,28,70,33],[70,34,70,39],[70,40,70,45],[70,46,70,51],[70,52,70,57],[70,58,70,63],[70,64,70,69],[69,166,69,171],[69,172,69,177],[69,178,69,183],[69,184,69,189],[69,190,69,195],[69,196,69,201],[69,130,69,135],[69,136,69,141],[69,142,69,147],[69,148,69,153],[69,154,69,159],[69,160,69,165],[69,94,69,99],[69,100,69,105],[69,106,69,111],[69,112,69,117],[69,118,69,123],[69,124,69,129],[69,58,69,63],[69,64,69,69],[69,70,69,75],[69,76,69,81],[69,82,69,87],[69,88,69,93],[68,196,68,201],[68,202,68,207],[68,208,68,213],[68,214,70,220],[68,232,70,232],[69,28,69,33],[69,34,69,39],[69,40,69,45],[69,46,69,51],[69,52,69,57],[68,160,68,165],[68,166,68,171],[68,172,68,177],[68,178,68,183],[68,184,68,189],[68,190,68,195],[68,124,68,129],[68,130,68,135],[68,136,68,141],[68,142,68,147],[68,148,68,153],[68,154,68,159],[68,88,68,93],[68,94,68,99],[68,100,68,105],[68,106,68,111],[68,112,68,117],[68,118,68,123],[68,52,68,57],[68,58,68,63],[68,64,68,69],[68,70,68,75],[68,76,68,81],[68,82,68,87],[67,202,67,207],[67,208,67,213],[67,214,67,220],[68,0,73,4],[68,5,73,22],[68,23,69,27],[68,28,68,33],[68,34,68,39],[68,40,68,45],[68,46,68,51],[67,166,67,171],[67,172,67,177],[67,178,67,183],[67,184,67,189],[67,190,67,195],[67,196,67,201],[67,130,67,135],[67,136,67,141],[67,142,67,147],[67,148,67,153],[67,154,67,159],[67,160,67,165],[67,94,67,99],[67,100,67,105],[67,106,67,111],[67,112,67,117],[67,118,67,123],[67,124,67,129],[67,58,67,63],[67,64,67,69],[67,70,67,75],[67,76,67,81],[67,82,67,87],[67,88,67,93],[66,202,66,207],[66,208,66,213],[66,214,66,220],[66,221,67,228],[67,24,67,27],[67,28,67,33],[67,34,67,39],[67,40,67,45],[67,46,67,51],[67,52,67,57],[66,166,66,171],[66,172,66,177],[66,178,66,183],[66,184,66,189],[66,190,66,195],[66,196,66,201],[66,130,66,135],[66,136,66,141],[66,142,66,147],[66,148,66,153],[66,154,66,159],[66,160,66,165],[66,94,66,99],[66,100,66,105],[66,106,66,111],[66,112,66,117],[66,118,66,123],[66,124,66,129],[66,58,66,63],[66,64,66,69],[66,70,66,75],[66,76,66,81],[66,82,66,87],[66,88,66,93],[66,24,66,27],[66,28,66,33],[66,34,66,39],[66,40,66,45],[66,46,66,51],[66,52,66,57],[65,184,65,189],[65,76,65,81],[65,82,65,87],[65,88,65,93],[65,94,65,99],[65,100,65,105],[65,106,65,111],[65,190,65,195],[65,196,65,201],[65,202,65,207],[65,208,65,213],[65,214,65,220],[65,148,65,153],[65,154,65,159],[65,160,65,165],[65,166,65,171],[65,172,65,177],[65,178,65,183],[65,112,65,117],[65,118,65,123],[65,124,65,129],[65,130,65,135],[65,136,65,141],[65,142,65,147],[64,221,65,228],[65,24,65,27],[65,28,65,33]],"merged_total":2396,"flags":["merged_cut"]}
[null,null,null,null,null,null,null,null,null,null,null,null,null,null,null,null,null,null,null,null,null,null,null,null,null,null,null,null,null,null,null,null,null,null,null,null,null,null,null,null,null,null,null,null,null,null,null,null,null,null,null,null,null,null,null,null,null,null,null,null,null,null,null,null,null,null,null,null,null,null,null,null,null,null,null,null,null,null,null,null,null,null,null,null,null,null,null,null,null,null,null,null,null,null,null,null,null,null,null,null,null,null,null,null,null,null,null,null,null,null,null,null,null,null,null,null,null,null,null,null,null,null,null,null,null,null,null,null,null,null,null,null,null,null,null,null,null,null,null,null,null,null,null,null,null,null,null,null,null,null,null,null,null,null,null,null,null,null,null,null,null,null,null,null,null,null,null,null,null,null,null,null,null,null,null,null,null,null,null,null,null,null,null,null,null,null,null,null,null,null,null,null,null,null,null,null,null,null,null,null,null,null,null,null,null,null,null,null,null,null,null,null,null,null,null,null,null,null,null,null,null,null,null,null,null,null,null,null,null,null,null,null,null,null,null,null,null,null,null,null,null,"СЕГОДНЯ"]
[null,null,null,null,null,null,null,null,null,null,null,null,null,null,null,null,null,null,null,null,null,null,null,null,null,null,null,null,null,null,null,null,null,null,null,null,null,null,null,null,null,null,null,null,null,null,null,null,null,null,null,null,null,null,null,null,null,null,null,null,null,null,null,null,null,null,null,null,null,null,null,null,null,null,null,null,null,null,null,null,null,null,null,null,null,null,null,null,null,null,null,null,null,null,null,null,null,null,null,null,null,null,null,null,null,null,null,null,null,null,null,null,null,null,null,null,null,null,null,null,null,null,null,null,null,null,null,null,null,null,null,null,null,null,null,null,null,null,null,null,null,null,null,null,null,null,null,null,null,null,null,null,null,null,null,null,null,null,null,null,null,null,null,null,null,null,null,null,null,null,null,null,null,null,null,null,null,null,null,null,null,null,null,null,null,null,null,null,null,null,null,null,null,null,null,null,null,null,null,null,null,null,null,null,null,null,null,null,null,null,null,null,null,null,null,null,null,null,null,null,null,null,null,null,null,null,null,null,null,null,null,null,null,null,null,null,null,null,null,null,null,{"$f":"TODAY()","v":"2020-06-06"}]
[null,null,null,null,null,null,null,null,null,null,null,null,null,null,null,null,null,null,null,null,null,null,null,null,null,null,null,null,null,null,null,null,null,null,null,null,null,null,null,null,null,null,null,null,null,null,null,null,null,null,null,null,null,null,null,null,null,null,null,null,null,null,null,null,null,null,null,null,null,null,null,null,null,null,null,null,null,null,null,null,null,null,null,null,null,null,null,null,null,null,null,null,null,null,null,null,null,null,null,null,null,null,null,null,null,null,null,null,null,null,null,null,null,null,null,null,null,null,null,null,null,null,null,null,null,null,null,null,null,null,null,null,null,null,null,null,null,null,null,null,null,null,null,null,null,null,null,null,null,null,null,null,null,null,null,null,null,null,null,null,null,null,null,null,null,null,null,null,null,null,null,null,null,null,null,null,null,null,null,null,null,null,null,null,null,null,null,null,null,null,null,null,null,null,null,null,null,null,null,null,null,null,null,null,null,null,null,null,null,null,null,null,null,null,null,null,null,null,null,null,null,null,null,null,null,null,null,null,null,null,null,null,null,null,null,null,null,null,null,null,null,{"$f":"TEXT(HZ2,\"дддд\")","v":"суббота"}]
[null,null,null,null,null,null,null,null,null,null,null,null,null,null,null,null,null,null,null,null,null,null,null,null,null,null,null,null,null,null,null,null,null,null,null,null,null,null,null,null,null,null,null,null,null,null,null,null,null,null,null,null,null,null,null,null,null,null,null,null,null,null,null,null,null,null,null,null,null,null,null,null,null,null,null,null,null,null,null,null,null,null,null,null,null,null,null,null,null,null,null,null,null,null,null,null,null,null,null,null,null,null,null,null,null,null,null,null,null,null,null,null,null,null,null,null,null,null,null,null,null,null,null,null,null,null,null,null,null,null,null,null,null,null,null,null,null,null,null,null,null,null,null,null,null,null,null,null,null,null,null,null,null,null,null,null,null,null,null,null,null,null,null,null,null,null,null,null,null,null,null,null,null,null,null,null,null,null,null,null,null,null,null,null,null,null,null,null,null,null,null,null,null,null,null,null,null,null,null,null,null,null,null,null,null,null,null,null,null,null,null,null,null,null,null,null,null,null,null,null,null,null,null,null,null,null,null,null,null,null,null,null,null,null,null,null,null,null,null,null,null,{"$f":"WEEKNUM(IH2,2)&\"-ая неделя\"","v":"23-ая неделя"}]
[null,null,null,null,null,null,null,null,{"$f":"IF(OR(#REF!<D3,AND(#REF!<D2,#REF!=D3)),$CN$19,IF(OR(#REF!>D3,AND(#REF!>D2,#REF!=D3)),0,DAY(A2)))","v":{"$error":"#REF!"}},null,null,null,null,null,null,null,null,null,null,null,null,null,null,null,null,null,null,null,null,null,null,null,null,null,null,null,null,null,null,null,null,null,null,null,null,null,null,null,null,null,null,null,null,null,null,null,null,null,null,null,null,null,null,null,null,null,null,null,null,null,null,null,null,null,null,null,null,null,null,null,null,null,null,null,null,null,null,null,null,null,null,null,null,null,null,null,null,null,null,null,null,null,null,null,null,null,null,null,null,null,null,null,null,null,null,null,null,null,null,null,null,null,null,null,null,null,null,null,null,null,null,null,null,null,null,null,null,null,null,null,null,null,null,null,null,null,null,null,null,null,null,null,null,null,null,null,null,null,null,null,null,null,null,null,null,null,null,null,null,null,null,null,null,null,null,null,null,null,null,null,null,null,null,null,null,null,null,null,null,null,null,null,null,null,null,null,null,null,null,null,null,null,null,null,null,null,null,null,null,null,null,null,null,null,null,null,null,null,null,null,null,null,null,null,null,null,null,null,null,null,null,null,null,null,null,null,null,null,null,null,null,{"$f":"IF(OR(#REF!<IC3,AND(#REF!<IC2,#REF!=IC3)),$CN$19,IF(OR(#REF!>IC3,AND(#REF!>IC2,#REF!=IC3)),0,DAY(HZ2)))","v":{"$error":"#REF!"}}]
[null,null,null,null,null,null,null,null,null,null,null,null,null,null,null,null,null,null,null,null,null,null,null,null,null,null,null,null,null,null,null,null,null,null,null,null,null,null,null,null,null,null,null,null,null,null,null,null,null,null,null,null,null,null,null,null,null,null,null,null,null,null,null,null,null,null,null,null,null,null,null,null,null,null,null,null,null,null,null,null,null,null,null,null,null,null,null,null,null,null,null,null,null,null,null,null,null,null,null,null,null,null,null,null,null,null,null,null,null,null,null,null,null,null,null,null,null,null,null,null,null,null,null,null,null,null,null,null,null,null,null,null,null,null,null,null,null,null,null,null,null,null,null,null,null,null,null,null,null,null,null,null,null,null,null,null,null,null,null,null,null,null,null,null,null,null,null,null,null,null,null,null,null,null,null,null,null,null,null,null,null,null,null,null,null,null,null,null,null,null,null,null,null,null,null,null,null,null,null,null,null,null,null,null,null,null,null,null,null,null,null,null,null,null,null,null,null,null,null,null,null,null,null,null,null,null,null,null,null,null,null,null,null,null,null,null,null,null,null,null,"время"]
[null,null,null,null,null,null,null,null,null,null,null,null,null,null,null,null,null,null,null,null,null,null,null,null,null,null,null,null,null,null,null,null,null,null,null,null,null,null,null,null,null,null,null,null,null,null,null,null,null,null,null,null,null,null,null,null,null,null,null,null,null,null,null,null,null,null,null,null,null,null,null,null,null,null,null,null,null,null,null,null,null,null,null,null,null,null,null,null,null,null,null,null,null,null,null,null,null,null,null,null,null,null,null,null,null,null,null,null,null,null,null,null,null,null,null,null,null,null,null,null,null,null,null,null,null,null,null,null,null,null,null,null,null,null,null,null,null,null,null,null,null,null,null,null,null,null,null,null,null,null,null,null,null,null,null,null,null,null,null,null,null,null,null,null,null,null,null,null,null,null,null,null,null,null,null,null,null,null,null,null,null,null,null,null,null,null,null,null,null,null,null,null,null,null,null,null,null,null,null,null,null,null,null,null,null,null,null,null,1,null,null,null,null,null,null,null,null,null,null,null,null,null,null,null,null,null,null,null,null,null,null,null,null,null,null,"количество дней месяца",null,null,{"$f":"VLOOKUP(HY17,'[1]производственный календарь '!B2:F13,5,0)","v":30}]
[null,null,null,null,null,null,null,null,null,null,null,null,null,null,null,null,null,null,null,null,null,null,null,null,null,null,null,null,null,null,null,null,null,null,null,null,null,null,null,null,null,null,null,null,null,null,null,null,null,null,null,null,null,null,null,null,null,null,null,null,null,null,null,null,null,null,null,null,null,null,null,null,null,null,null,null,null,null,null,null,null,null,null,null,null,null,null,null,null,null,null,null,null,null,null,null,null,null,null,null,null,null,null,null,null,null,null,null,null,null,null,null,null,null,null,null,null,null,null,null,null,null,null,null,null,null,null,null,null,null,null,null,null,null,null,null,null,null,null,null,null,null,null,null,null,null,null,null,null,null,null,null,null,null,null,null,null,null,null,null,null,null,null,null,null,null,null,null,null,null,null,null,null,null,null,null,null,null,null,null,null,null,null,null,null,null,null,null,null,null,null,null,null,null,null,null,null,null,null,null,null,null,null,null,null,null,null,null,2,null,null,null,null,null,null,null,null,null,null,null,null,null,null,null,null,null,null,null,null,null,null,null,null,null,null,"месяц",null,null,{"$f":"VLOOKUP(HY17,'[1]производственный календарь '!B2:F13,4,0)","v":9},null,"Столбец1"]
[null,null,null,null,null,null,null,null,null,null,null,null,null,null,null,null,null,null,null,null,null,null,null,null,null,null,null,null,null,null,null,null,null,null,null,null,null,null,null,null,null,null,null,null,null,null,null,null,null,null,null,null,null,null,null,null,null,null,null,null,null,null,null,null,null,null,null,null,null,null,null,null,null,null,null,null,null,null,null,null,null,null,null,null,null,null,null,null,null,null,null,null,null,null,null,null,null,null,null,null,null,null,null,null,null,null,null,null,null,null,null,null,null,null,null,null,null,null,null,null,null,null,null,null,null,null,null,null,null,null,null,null,null,null,null,null,null,null,null,null,null,null,null,null,null,null,null,null,null,null,null,null,null,null,null,null,null,null,null,null,null,null,null,null,null,null,null,null,null,null,null,null,null,null,null,null,null,null,null,null,null,null,null,null,null,null,null,null,null,null,null,null,null,null,null,null,null,null,null,null,null,null,null,null,null,null,null,null,null,null,null,null,null,null,null,null,null,null,null,null,null,null,null,null,null,null,null,null,null,null,null,null,null,null,null,"год",null,null,{"$f":"YEAR(A17)","v":2020},null,0]
[null,null,null,null,null,null,null,null,null,null,null,null,null,null,null,null,null,null,null,null,null,null,null,null,null,null,null,null,null,null,null,null,null,null,null,null,null,null,null,null,null,null,null,null,null,null,null,null,null,null,null,null,null,null,null,null,null,null,null,null,null,null,null,null,null,null,null,null,null,null,null,null,null,null,null,null,null,null,null,null,null,null,null,null,null,null,null,null,null,null,null,null,null,null,null,null,null,null,null,null,null,null,null,null,null,null,null,null,null,null,null,null,null,null,null,null,null,null,null,null,null,null,null,null,null,null,null,null,null,null,null,null,null,null,null,null,null,null,null,null,null,null,null,null,null,null,null,null,null,null,null,null,null,null,null,null,null,null,null,null,null,null,null,null,null,null,null,null,null,null,null,null,null,null,null,null,null,null,null,null,null,null,null,null,null,null,null,null,null,null,"УТВЕРЖДАЮ",null,null,null,null,null,null,null,null,null,null,null,null,null,null,null,null,null,null,null,null,null,null,null,null,null,null,null,null,null,null,null,null,null,null,null,null,null,null,null,null,null,null,null,null,null,null,null,null,null,0.3125]
[null,null,null,null,null,null,null,null,null,null,null,null,null,null,null,null,null,null,null,null,null,null,null,null,null,null,null,null,null,null,null,null,null,null,null,null,null,null,null,null,null,null,null,null,null,null,null,null,null,null,null,null,null,null,null,null,null,null,null,null,null,null,null,null,null,null,null,null,null,null,null,null,null,null,null,null,null,null,null,null,null,null,null,null,null,null,null,null,null,null,null,null,null,null,null,null,null,null,null,null,null,null,null,null,null,null,null,null,null,null,null,null,null,null,null,null,null,null,null,null,null,null,null,null,null,null,null,null,null,null,null,null,null,null,null,null,null,null,null,null,null,null,null,null,null,null,null,null,null,null,null,null,null,null,null,null,null,null,null,null,null,null,null,null,null,null,null,null,null,null,null,null,null,null,null,null,null,null,null,null,null,null,null,null,null,null,null,null,null,null," ",null,null,null,null,null,null,null,null,null,null,null,null,null,null,null,null,null,null,null,null,null,null,null,null,null,null,null,null,null,null,null,null,null,null,null,null,null,null,null,null,null,null,null,null,"0бед",null,null,4.1666666666666664E-2,null,0.33333333333333331]
[null,null,null,null,null,null,null,null,null,null,null,null,null,null,null,null,null,null,null,null,null,null,null,null,null,null,null,null,null,null,null,null,null,null,null,null,null,null,null,null,null,null,null,null,null,null,null,null,null,null,null,null,null,null,null,null,null,null,null,null,null,null,null,null,null,null,null,null,null,null,null,null,null,null,null,null,null,null,null,null,null,null,null,null,null,null,null,null,null,null,null,null,null,null,null,null,null,null,null,null,null,null,null,null,null,null,null,null,null,null,null,null,null,null,null,null,null,null,null,null,null,null,null,null,null,null,null,null,null,null,null,null,null,null,null,null,null,null,null,null,null,null,null,null,null,null,null,null,null,null,null,null,null,null,null,null,null,null,null,null,null,null,null,null,null,null,null,null,null,null,null,null,null,null,null,null,null,null,null,null,null,null,null,null,null,null,null,null,null,null,"_______________С. А. Сорокина",null,null,null,null,null,null,null,null,null,null,null,null,null,null,null,null,null,null,null,null,null,null,null,null,null,null,null,null,null,null,null,null,null,null,null,null,null,null,null,null,null,null,null,null,null,null,null,null,null,0.375]
[null,null,null,null,null,null,null,null,null,null,null,null,null,null,null,null,null,null,null,null,null,null,null,null,null,null,null,null,null,null,null,null,null,null,null,null,null,null,null,null,null,null,null,null,null,null,null,null,null,null,null,null,null,null,null,null,null,null,null,null,null,null,null,null,null,null,null,null,null,null,null,null,null,null,null,null,null,null,null,null,null,null,null,null,null,null,null,null,null,null,null,null,null,null,null,null,null,null,null,null,null,null,null,null,null,null,null,null,null,null,null,null,null,null,null,null,null,null,null,null,null,null,null,null,null,null,null,null,null,null,null,null,null,null,null,null,null,null,null,null,null,null,null,null,null,null,null,null,null,null,null,null,null,null,null,null,null,null,null,null,null,null,null,null,null,null,null,null,null,null,null,null,null,null,null,null,null,null,null,null,null,null,null,null,null,null,null,null,null,"\"__\"________2020",null,null,null,null,null,null,null,null,null,null,null,null,null,null,null,null,null,null,null,null,null,null,null,null,null,null,null,null,null,null,null,null,null,null,null,null,null,null,null,null,null,null,null,null,null,null,null,null,null,null,0.41666666666666669]
[null,null,null,null,null,null,null,null,null,null,null,null,null,null,null,null,null,null,null,null,null,null,null,null,null,null,null,null,null,null,null,null,null,null,null,null,null,null,null,null,null,null,null,null,null,null,null,null,null,null,null,null,null,null,null,null,null,null,null,null,null,null,null,null,null,null,null,null,null,null,null,null,null,null,null,null,null,null,null,null,null,null,null,null,null,null,null,null,null,null,null,null,null,null,null,null,null,null,null,null,null,null,null,null,null,null,null,null,null,null,null,null,null,null,null,null,null,null,null,null,null,null,null,null,null,null,null,null,null,null,null,null,null,null,null,null,null,null,null,null,null,null,null,null,null,null,null,null,null,null,null,null,null,null,null,null,null,null,null,null,null,null,null,null,null,null,null,null,null,null,null,null,null,null,null,null,null,null,null,null,null,null,null,null,null,null,null,null,null,null,null,null,null,null,null,null,null,null,null,null,null,null,null,null,null,null,null,null,null,null,null,null,null,null,null,null,null,null,null,null,null,null,null,null,null,null,null,null,null,null,null,null,null,null,null,null,null,null,null,null,0.45833333333333331,null,null,"Столбец1","Столбец2","Столбец3","Столбец4","Столбец5"]
["ГРАФИК",null,null,null,null,null,null,null,null,null,null,null,null,null,null,null,null,null,null,null,null,null,null,null,null,null,null,null,null,null,null,null,null,null,null,null,null,null,null,null,null,null,null,null,null,null,null,null,null,null,null,null,null,null,null,null,null,null,null,null,null,null,null,null,null,null,null,null,null,null,null,null,null,null,null,null,null,null,null,null,null,null,null,null,null,null,null,null,null,null,null,null,null,null,null,null,null,null,null,null,null,null,null,null,null,null,null,null,null,null,null,null,null,null,null,null,null,null,null,null,null,null,null,null,null,null,null,null,null,null,null,null,null,null,null,null,null,null,null,null,null,null,null,null,null,null,null,null,null,null,null,null,null,null,null,null,null,null,null,null,null,null,null,null,null,null,null,null,null,null,null,null,null,null,null,null,null,null,null,null,null,null,null,null,null,null,null,null,null,null,null,null,null,null,null,null,null,null,null,null,null,null,null,null,null,null,null,null,null,null,null,null,null,null,null,null,null,null,null,null,null,null,null,null,null,null,null,null,null,null,null,null,null,null,null,null,null,null,null,null,0.5,null,null,"Сапожников А.С.,  управляющий участка"]
["УЧЕТА ИСПОЛЬЗОВАНИЯ РАБОЧЕГО ВРЕМЕНИ ОБСЛУЖИВАЮЩЕГО ПЕРСОНАЛА",null,null,null,null,null,null,null,null,null,null,null,null,null,null,null,null,null,null,null,null,null,null,null,null,null,null,null,null,null,null,null,null,null,null,null,null,null,null,null,null,null,null,null,null,null,null,null,null,null,null,null,null,null,null,null,null,null,null,null,null,null,null,null,null,null,null,null,null,null,null,null,null,null,null,null,null,null,null,null,null,null,null,null,null,null,null,null,null,null,null,null,null,null,null,null,null,null,null,null,null,null,null,null,null,null,null,null,null,null,null,null,null,null,null,null,null,null,null,null,null,null,null,null,null,null,null,null,null,null,null,null,null,null,null,null,null,null,null,null,null,null,null,null,null,null,null,null,null,null,null,null,null,null,null,null,null,null,null,null,null,null,null,null,null,null,null,null,null,null,null,null,null,null,null,null,null,null,null,null,null,null,null,null,null,null,null,null,null,null,null,null,null,null,null,null,null,null,null,null,null,null,null,null,null,null,null,null,null,null,null,null,null,null,null,null,null,null,null,null,null,null,null,null,null,null,null,null,null,null,null,null,null,null,null,null,null,null,null,null,0.54166666666666663,null,null,"Сперанский А.А., слесарь-ремонтник"]
["2020-09-01",null,null,null,null,null,null,null,null,null,null,null,null,null,null,null,null,null,null,null,null,null,null,null,null,null,null,null,null,null,null,null,null,null,null,null,null,null,null,null,null,null,null,null,null,null,null,null,null,null,null,null,null,null,null,null,null,null,null,null,null,null,null,null,null,null,null,null,null,null,null,null,null,null,null,null,null,null,null,null,null,null,null,null,null,null,null,null,null,null,null,null,null,null,null,null,null,null,null,null,null,null,null,null,null,null,null,null,null,null,null,null,null,null,null,null,null,null,null,null,null,null,null,null,null,null,null,null,null,null,null,null,null,null,null,null,null,null,null,null,null,null,null,null,null,null,null,null,null,null,null,null,null,null,null,null,null,null,null,null,null,null,null,null,null,null,null,null,null,null,null,null,null,null,null,null,null,null,null,null,null,null,null,null,null,null,null,null,null,null,null,null,null,null,null,null,null,null,null,null,null,null,null,null,null,null,null,null,null,null,null,null,null,null,null,null,null,null,null,null,null,null,null,null,null,null,null,null,null,null,null,null,"сентябрь",null,null,null,null,null,null,null,0.58333333333333337,null,null,"Лагутенко В.А., кассир билетный Ч"]
[null,null,null,null,null,null,null,null,null,null,null,null,null,null,null,null,null,null,null,null,null,null,null,null,null,null,null,null,null,null,null,null,null,null,null,null,null,null,null,null,null,null,null,null,null,null,null,null,null,null,null,null,null,null,null,null,null,null,null,null,null,null,null,null,null,null,null,null,null,null,null,null,null,null,null,null,null,null,null,null,null,null,null,null,null,null,null,null,null,null,null,null,null,null,null,null,null,null,null,null,null,null,null,null,null,null,null,null,null,null,null,null,null,null,null,null,null,null,null,null,null,null,null,null,null,null,null,null,null,null,null,null,null,null,null,null,null,null,null,null,null,null,null,null,null,null,null,null,null,null,null,null,null,null,null,null,null,null,null,null,null,null,null,null,null,null,null,null,null,null,null,null,null,null,null,null,null,null,null,null,null,null,null,null,null,null,null,null,null,null,null,null,null,null,null,null,null,null,null,null,null,null,null,null,null,null,null,null,null,null,null,null,null,null,null,null,null,null,null,null,null,null,null,null,null,null,null,null,null,null,null,null,null,null,null,null,null,null,null,null,0.625,null,null,"Купцова Г.И., кассир билетный НЧ"]
["№ п/п",null,null,null,null,"Фамилия Инициалы",null,null,null,null,null,null,null,null,null,null,null,null,null,null,null,null,null,"Ставка",null,null,null,null,"1900-01-01",null,null,null,null,null,2,null,null,null,null,null,"1900-01-03",null,null,null,null,null,4,null,null,null,null,null,5,null,null,null,null,null,6,null,null,null,null,null,7,null,null,null,null,null,8,null,null,null,null,null,9,null,null,null,null,null,10,null,null,null,null,null,11,null,null,null,null,null,12,null,null,null,null,null,13,null,null,null,null,null,14,null,null,null,null,null,15,null,null,null,null,null,16,null,null,null,null,null,17,null,null,null,null,null,18,null,null,null,null,null,19,null,null,null,null,null,20,null,null,null,null,null,21,null,null,null,null,null,22,null,null,null,null,null,23,null,null,null,null,null,24,null,null,null,null,null,25,null,null,null,null,null,26,null,null,null,null,null,27,null,null,null,null,null,28,null,null,null,null,null,{"$f":"IF(29<=$IE$7,29,\"-\")","v":29},null,null,null,null,null,{"$f":"IF(30<=$IE$7,30,\"-\")","v":30},null,null,null,null,null,{"$f":"IF(31<=$IE$7,31,\"-\")","v":"-"},null,null,null,null,null,"ВСЕГО",null,null,null,null,null,null,null,null,null,null,null,null,null,null,null,null,null,null,null,null,null,null,null,null,null,0.66666666666666663,null,null,"Кипкаева Л.А., дворник"]
[null,null,null,null,null,null,null,null,null,null,null,null,null,null,null,null,null,null,null,null,null,null,null,null,null,null,null,null,null,null,null,null,null,null,null,null,null,null,null,null,null,null,null,null,null,null,null,null,null,null,null,null,null,null,null,null,null,null,null,null,null,null,null,null,null,null,null,null,null,null,null,null,null,null,null,null,null,null,null,null,null,null,null,null,null,null,null,null,null,null,null,null,null,null,null,null,null,null,null,null,null,null,null,null,null,null,null,null,null,null,null,null,null,null,null,null,null,null,null,null,null,null,null,null,null,null,null,null,null,null,null,null,null,null,null,null,null,null,null,null,null,null,null,null,null,null,null,null,null,null,null,null,null,null,null,null,null,null,null,null,null,null,null,null,null,null,null,null,null,null,null,null,null,null,null,null,null,null,null,null,null,null,null,null,null,null,null,null,null,null,null,null,null,null,null,null,null,null,null,null,null,null,null,null,null,null,null,null,null,null,null,null,null,null,"дней",null,null,null,null,null,null,null,null,null,null,null,null,null,null,null,null,null,"часов",null,null,null,null,null,null,null,0.70833333333333337,null,null,"Сапожников А.С.,  управляющий участка"]
[null,null,null,null,null,null,null,null,null,null,null,null,null,null,null,null,null,null,null,null,null,null,null,null,null,null,null,null,{"$f":"IFERROR($A$17+AC19-1,\"-\")","v":"2020-09-01"},null,null,null,null,null,{"$f":"IFERROR($A$17+AI19-1,\"-\")","v":"2020-09-02"},null,null,null,null,null,{"$f":"IFERROR($A$17+AO19-1,\"-\")","v":"2020-09-03"},null,null,null,null,null,{"$f":"IFERROR($A$17+AU19-1,\"-\")","v":"2020-09-04"},null,null,null,null,null,{"$f":"IFERROR($A$17+BA19-1,\"-\")","v":"2020-09-05"},null,null,null,null,null,{"$f":"IFERROR($A$17+BG19-1,\"-\")","v":"2020-09-06"},null,null,null,null,null,{"$f":"IFERROR($A$17+BM19-1,\"-\")","v":"2020-09-07"},null,null,null,null,null,{"$f":"IFERROR($A$17+BS19-1,\"-\")","v":"2020-09-08"},null,null,null,null,null,{"$f":"IFERROR($A$17+BY19-1,\"-\")","v":"2020-09-09"},null,null,null,null,null,{"$f":"IFERROR($A$17+CE19-1,\"-\")","v":"2020-09-10"},null,null,null,null,null,{"$f":"IFERROR($A$17+CK19-1,\"-\")","v":"2020-09-11"},null,null,null,null,null,{"$f":"IFERROR($A$17+CQ19-1,\"-\")","v":"2020-09-12"},null,null,null,null,null,{"$f":"IFERROR($A$17+CW19-1,\"-\")","v":"2020-09-13"},null,null,null,null,null,{"$f":"IFERROR($A$17+DC19-1,\"-\")","v":"2020-09-14"},null,null,null,null,null,{"$f":"IFERROR($A$17+DI19-1,\"-\")","v":"2020-09-15"},null,null,null,null,null,{"$f":"IFERROR($A$17+DO19-1,\"-\")","v":"2020-09-16"},null,null,null,null,null,{"$f":"IFERROR($A$17+DU19-1,\"-\")","v":"2020-09-17"},null,null,null,null,null,{"$f":"IFERROR($A$17+EA19-1,\"-\")","v":"2020-09-18"},null,null,null,null,null,{"$f":"IFERROR($A$17+EG19-1,\"-\")","v":"2020-09-19"},null,null,null,null,null,{"$f":"IFERROR($A$17+EM19-1,\"-\")","v":"2020-09-20"},null,null,null,null,null,{"$f":"IFERROR($A$17+ES19-1,\"-\")","v":"2020-09-21"},null,null,null,null,null,{"$f":"IFERROR($A$17+EY19-1,\"-\")","v":"2020-09-22"},null,null,null,null,null,{"$f":"IFERROR($A$17+FE19-1,\"-\")","v":"2020-09-23"},null,null,null,null,null,{"$f":"IFERROR($A$17+FK19-1,\"-\")","v":"2020-09-24"},null,null,null,null,null,{"$f":"IFERROR($A$17+FQ19-1,\"-\")","v":"2020-09-25"},null,null,null,null,null,{"$f":"IFERROR($A$17+FW19-1,\"-\")","v":"2020-09-26"},null,null,null,null,null,{"$f":"IFERROR($A$17+GC19-1,\"-\")","v":"2020-09-27"},null,null,null,null,null,{"$f":"IFERROR($A$17+GI19-1,\"-\")","v":"2020-09-28"},null,null,null,null,null,{"$f":"IFERROR($A$17+GO19-1,\"-\")","v":"2020-09-29"},null,null,null,null,null,{"$f":"IFERROR($A$17+GU19-1,\"-\")","v":"2020-09-30"},null,null,null,null,null,{"$f":"IFERROR($A$17+HA19-1,\"-\")","v":"-"},null,null,null,null,null,null,null,null,null,null,null,null,null,null,null,null,null,null,null,null,null,null,null,null,null,null,null,null,null,null,null,0.75,null,null,"Сперанский А.А., слесарь-ремонтник"]
[null,null,null,null,null,null,null,null,null,null,null,null,null,null,null,null,null,null,null,null,null,null,null,null,null,null,null,null,"В",null,null,null,null,null,null,null,null,null,null,null,"В",null,null,null,null,null,null,null,null,null,null,null,null,null,null,null,null,null,"В",null,null,null,null,null,null,null,null,null,null,null,"В",null,null,null,null,null,null,null,null,null,null,null,"В",null,null,null,null,null,null,null,null,null,null,null,null,null,null,null,null,null,"В",null,null,null,null,null,null,null,null,null,null,null,"В",null,null,null,null,null,null,null,null,null,null,null,"В",null,null,null,null,null,null,null,null,null,null,null,null,null,null,null,null,null,"В",null,null,null,null,null,null,null,null,null,null,null,"В",null,null,null,null,null,null,null,null,null,null,null,"В",null,null,null,null,null,null,null,null,null,null,null,null,null,null,null,null,null,"В",null,null,null,null,null,null,null,null,null,null,null,"В",null,null,null,null,null,null,null,null,null,null,null,null,null,null,null,null,null,null,null,null,null,null,null,null,null,null,null,null,null,null,null,null,null,null,null,null,null,null,null,null,null,null,null,null,null,null,"Лагутенко В.А., кассир билетный НЧ"]
[null,null,null,null,null,null,null,null,null,null,null,null,null,null,null,null,null,null,null,null,null,null,null,null,null,null,null,null,"В",null,null,null,null,null,null,null,null,null,null,null,"В",null,null,null,null,null,null,null,null,null,null,null,null,null,null,null,null,null,"В",null,null,null,null,null,null,null,null,null,null,null,"В",null,null,null,null,null,null,null,null,null,null,null,"В",null,null,null,null,null,null,null,null,null,null,null,null,null,null,null,null,null,"В",null,null,null,null,null,null,null,null,null,null,null,"В",null,null,null,null,null,null,null,null,null,null,null,"В",null,null,null,null,null,null,null,null,null,null,null,null,null,null,null,null,null,"В",null,null,null,null,null,null,null,null,null,null,null,"В",null,null,null,null,null,null,null,null,null,null,null,"В",null,null,null,null,null,null,null,null,null,null,null,null,null,null,null,null,null,"В",null,null,null,null,null,null,null,null,null,null,null,"В",null,null,null,null,null,null,null,null,null,null,null,null,null,null,null,null,null,null,null,null,null,null,null,null,null,null,null,null,null,null,null,null,null,null,null,null,null,null,null,null,null,null,null,null,null,null,"Купцова Г.И., кассир билетный НЧ"]
[null,null,null,null,null,null,null,null,null,null,null,null,null,null,null,null,null,null,null,null,null,null,null,null,null,null,null,null,"В",null,null,null,null,null,null,null,null,null,null,null,"В",null,null,null,null,null,null,null,null,null,null,null,null,null,null,null,null,null,"В",null,null,null,null,null,null,null,null,null,null,null,"В",null,null,null,null,null,null,null,null,null,null,null,"В",null,null,null,null,null,null,null,null,null,null,null,null,null,null,null,null,null,"В",null,null,null,null,null,null,null,null,null,null,null,"В",null,null,null,null,null,null,null,null,null,null,null,"В",null,null,null,null,null,null,null,null,null,null,null,null,null,null,null,null,null,"В",null,null,null,null,null,null,null,null,null,null,null,"В",null,null,null,null,null,null,null,null,null,null,null,"В",null,null,null,null,null,null,null,null,null,null,null,null,null,null,null,null,null,"В",null,null,null,null,null,null,null,null,null,null,null,"В",null,null,null,null,null,null,null,null,null,null,null,null,null,null,null,null,null,null,null,null,null,null,null,null,null,null,null,null,null,null,null,null,null,null,null,null,null,null,null,null,null,null,null,null,null,null,"Кипкаева Л.А., дворник"]
[null,null,null,null,null,null,null,null,null,null,null,null,null,null,null,null,null,null,null,null,null,null,null,null,null,null,null,null,null,null,null,null,null,null,null,null,null,null,null,null,null,null,null,null,null,null,null,null,null,null,null,null,null,null,null,null,null,null,null,null,null,null,null,null,null,null,null,null,null,null,null,null,null,null,null,null,null,null,null,null,null,null,null,null,null,null,null,null,null,null,null,null,null,null,null,null,null,null,null,null,null,null,null,null,null,null,null,null,null,null,null,null,null,null,null,null,null,null,null,null,null,null,null,null,null,null,null,null,null,null,null,null,null,null,null,null,null,null,null,null,null,null,null,null,null,null,null,null,null,null,null,null,null,null,null,null,null,null,null,null,null,null,null,null,null,null,null,null,null,null,null,null,null,null,null,null,null,null,null,null,null,null,null,null,null,null,null,null,null,null,null,null,null,null,null,null,null,null,null,null,null,null,null,null,null,null,null,null,null,null,null,null,null,null,null,null,null,null,null,null,null,null,null,null,null,null,null,null,null,null,null,null,null,null,null,null,null,null,null,null,null,null,null,"Морозова Г.Н., контролёр-посадчик аттракциона НЧ"]
[null,null,null,null,null,null,null,null,null,null,null,null,null,null,null,null,null,null,null,null,null,null,null,null,null,null,null,null,null,null,null,null,null,null,null,null,null,null,null,null,null,null,null,null,null,null,null,null,null,null,null,null,null,null,null,null,null,null,null,null,null,null,null,null,null,null,null,null,null,null,null,null,null,null,null,null,null,null,null,null,null,null,null,null,null,null,null,null,null,null,null,null,null,null,null,null,null,null,null,null,null,null,null,null,null,null,null,null,null,null,null,null,null,null,null,null,null,null,null,null,null,null,null,null,null,null,null,null,null,null,null,null,null,null,null,null,null,null,null,null,null,null,null,null,null,null,null,null,null,null,null,null,null,null,null,null,null,null,null,null,null,null,null,null,null,null,null,null,null,null,null,null,null,null,null,null,null,null,null,null,null,null,null,null,null,null,null,null,null,null,null,null,null,null,null,null,null,null,null,null,null,null,null,null,null,null,null,null,null,null,null,null,null,null,null,null,null,null,null,null,null,null,null,null,null,null,null,null,null,null,null,null,null,null,null,null,null,null,null,null,null,null,null,"Нурлиева Е.А., котролёр-посадчик аттракциона Ч"]
[1,null,null,null,null,"Сапожников А.С.,  управляющий участка",null,null,null,null,null,null,null,null,null,null,null,null,null,null,null,null,null,1,null,null,null,null,0.41666666666666669,null,null,null,null,null,"В",null,null,null,null,null,0.375,null,null,null,null,null,0.375,null,null,null,null,null,0.375,null,null,null,null,null,0.375,null,null,null,null,null,0.375,null,null,null,null,null,0.41666666666666669,null,null,null,null,null,"В",null,null,null,null,null,0.375,null,null,null,null,null,0.375,null,null,null,null,null,0.375,null,null,null,null,null,0.375,null,null,null,null,null,0.375,null,null,null,null,null,0.41666666666666669,null,null,null,null,null,"В",null,null,null,null,null,0.375,null,null,null,null,null,0.375,null,null,null,null,null,0.375,null,null,null,null,null,0.375,null,null,null,null,null,0.375,null,null,null,null,null,0.41666666666666669,null,null,null,null,null,"В",null,null,null,null,null,0.375,null,null,null,null,null,0.375,null,null,null,null,null,0.375,null,null,null,null,null,0.375,null,null,null,null,null,0.375,null,null,null,null,null,0.41666666666666669,null,null,null,null,null,"В",null,null,null,null,null,null,null,null,null,null,null,{"$f":"COUNT(AC27:HF27)","v":25},null,null,null,null,null,null,null,null,null,null,null,null,null,null,null,null,null,{"$f":"SUM(IFERROR(AC28:HF28-AC27:HF27-AC29:HF29,0))","v":7.3333333333333321},null,{"$f":"VLOOKUP($HY$17,'[1]производственный календарь '!$B$2:$F$13,2,0)","v":176},null,7.333333333333333,null,null,null,0.79166666666666663,null,null,"Нурлиева Е.А., котролёр-посадчик аттракциона НЧ"]
[null,null,null,null,null,null,null,null,null,null,null,null,null,null,null,null,null,null,null,null,null,null,null,null,null,null,null,null,0.66666666666666663,null,null,null,null,null,"В",null,null,null,null,null,0.83333333333333337,null,null,null,null,null,0.83333333333333337,null,null,null,null,null,0.83333333333333337,null,null,null,null,null,0.83333333333333337,null,null,null,null,null,0.83333333333333337,null,null,null,null,null,0.66666666666666663,null,null,null,null,null,"В",null,null,null,null,null,0.83333333333333337,null,null,null,null,null,0.83333333333333337,null,null,null,null,null,0.875,null,null,null,null,null,0.875,null,null,null,null,null,0.83333333333333337,null,null,null,null,null,0.66666666666666663,null,null,null,null,null,"В",null,null,null,null,null,0.875,null,null,null,null,null,0.875,null,null,null,null,null,0.83333333333333337,null,null,null,null,null,0.875,null,null,null,null,null,0.875,null,null,null,null,null,0.66666666666666663,null,null,null,null,null,"В",null,null,null,null,null,0.875,null,null,null,null,null,0.875,null,null,null,null,null,0.875,null,null,null,null,null,0.875,null,null,null,null,null,0.875,null,null,null,null,null,0.66666666666666663,null,null,null,null,null,"В",null,null,null,null,null,null,null,null,null,null,null,null,null,null,null,null,null,null,null,null,null,null,null,null,null,null,null,null,null,null,null,null,null,null,null,null,null,0.83333333333333337,null,null,"Хомченко Л.Е., контролёр-посадчик аттракциона НЧ"]
[null,null,null,null,null,null,null,null,null,null,null,null,null,null,null,null,null,null,null,null,null,null,null,"обед","обед",null,null,null,"01:00:00",null,null,null,null,null,"В",null,null,null,null,null,"04:00:00",null,null,null,null,null,"04:00:00",null,null,null,null,null,0.16666666666666666,null,null,null,null,null,0.16666666666666666,null,null,null,null,null,"04:00:00",null,null,null,null,null,"01:00:00",null,null,null,null,null,"В",null,null,null,null,null,"04:00:00",null,null,null,null,null,"04:00:00",null,null,null,null,null,0.16666666666666666,null,null,null,null,null,0.16666666666666666,null,null,null,null,null,"04:00:00",null,null,null,null,null,"01:00:00",null,null,null,null,null,"В",null,null,null,null,null,"04:00:00",null,null,null,null,null,"04:00:00",null,null,null,null,null,0.16666666666666666,null,null,null,null,null,0.16666666666666666,null,null,null,null,null,"04:00:00",null,null,null,null,null,"01:00:00",null,null,null,null,null,"В",null,null,null,null,null,"04:00:00",null,null,null,null,null,"04:00:00",null,null,null,null,null,0.16666666666666666,null,null,null,null,null,0.16666666666666666,null,null,null,null,null,"04:00:00",null,null,null,null,null,"01:00:00",null,null,null,null,null,"В",null,null,null,null,null,null,null,null,null,null,null,null,null,null,null,null,null,null,null,null,null,null,null,null,null,null,null,null,null,null,null,null,null,null,null,null,null,0.875,null,null,"Кондратюк Н.В., сторож"]
[null,null,null,null,null,null,null,null,null,null,null,null,null,null,null,null,null,null,null,null,null,null,null,null,"р.д.",null,null,null,{"$f":"IFERROR(AC28-AC27-AC29,0)","v":"05:00:00"},null,null,null,null,null,{"$f":"IFERROR(AI28-AI27-AI29,0)","v":"00:00:00"},null,null,null,null,null,{"$f":"IFERROR(AO28-AO27-AO29,0)","v":"07:00:00"},null,null,null,null,null,{"$f":"IFERROR(AU28-AU27-AU29,0)","v":0.29166666666666674},null,null,null,null,null,{"$f":"IFERROR(BA28-BA27-BA29,0)","v":0.29166666666666674},null,null,null,null,null,{"$f":"IFERROR(BG28-BG27-BG29,0)","v":0.29166666666666674},null,null,null,null,null,{"$f":"IFERROR(BM28-BM27-BM29,0)","v":"07:00:00"},null,null,null,null,null,{"$f":"IFERROR(BS28-BS27-BS29,0)","v":"05:00:00"},null,null,null,null,null,{"$f":"IFERROR(BY28-BY27-BY29,0)","v":"00:00:00"},null,null,null,null,null,{"$f":"IFERROR(CE28-CE27-CE29,0)","v":"07:00:00"},null,null,null,null,null,{"$f":"IFERROR(CK28-CK27-CK29,0)","v":0.29166666666666674},null,null,null,null,null,{"$f":"IFERROR(CQ28-CQ27-CQ29,0)","v":0.33333333333333337},null,null,null,null,null,{"$f":"IFERROR(CW28-CW27-CW29,0)","v":0.33333333333333337},null,null,null,null,null,{"$f":"IFERROR(DC28-DC27-DC29,0)","v":"07:00:00"},null,null,null,null,null,{"$f":"IFERROR(DI28-DI27-DI29,0)","v":"05:00:00"},null,null,null,null,null,{"$f":"IFERROR(DO28-DO27-DO29,0)","v":"00:00:00"},null,null,null,null,null,{"$f":"IFERROR(DU28-DU27-DU29,0)","v":"08:00:00"},null,null,null,null,null,{"$f":"IFERROR(EA28-EA27-EA29,0)","v":0.33333333333333337},null,null,null,null,null,{"$f":"IFERROR(EG28-EG27-EG29,0)","v":0.29166666666666674},null,null,null,null,null,{"$f":"IFERROR(EM28-EM27-EM29,0)","v":0.33333333333333337},null,null,null,null,null,{"$f":"IFERROR(ES28-ES27-ES29,0)","v":"08:00:00"},null,null,null,null,null,{"$f":"IFERROR(EY28-EY27-EY29,0)","v":"05:00:00"},null,null,null,null,null,{"$f":"IFERROR(FE28-FE27-FE29,0)","v":"00:00:00"},null,null,null,null,null,{"$f":"IFERROR(FK28-FK27-FK29,0)","v":"08:00:00"},null,null,null,null,null,{"$f":"IFERROR(FQ28-FQ27-FQ29,0)","v":0.33333333333333337},null,null,null,null,null,{"$f":"IFERROR(FW28-FW27-FW29,0)","v":0.33333333333333337},null,null,null,null,null,{"$f":"IFERROR(GC28-GC27-GC29,0)","v":0.33333333333333337},null,null,null,null,null,{"$f":"IFERROR(GI28-GI27-GI29,0)","v":"08:00:00"},null,null,null,null,null,{"$f":"IFERROR(GO28-GO27-GO29,0)","v":"05:00:00"},null,null,null,null,null,{"$f":"IFERROR(GU28-GU27-GU29,0)","v":"00:00:00"},null,null,null,null,null,{"$f":"IFERROR(HA28-HA27-HA29,0)","v":"00:00:00"},null,null,null,null,null,null,null,null,null,null,null,null,null,null,null,null,null,null,null,null,null,null,null,{"$f":"SUM(AC30:HF30)","v":7.3333333333333321},null,null,null,null,null,null,null,0.91666666666666663,null,null,"Лагутенко В.А., кассир билетный  НЧ"]
[null,null,null,null,null,null,null,null,null,null,null,null,null,null,null,null,null,null,null,null,null,null,null,"пр","пр",null,null,null,null,null,null,null,null,null,null,null,null,null,null,null,null,null,null,null,null,null,null,null,null,null,null,null,null,null,null,null,null,null,null,null,null,null,null,null,null,null,null,null,null,null,null,null,null,null,null,null,null,null,null,null,null,null,null,null,null,null,null,null,null,null,null,null,null,null,null,null,null,null,null,null,null,null,null,null,null,null,null,null,null,null,null,null,null,null,null,null,null,null,null,null,null,null,null,null,null,null,null,null,null,null,null,null,null,null,null,null,null,null,null,null,null,null,null,null,null,null,null,null,null,null,null,null,null,null,null,null,null,null,null,null,null,null,null,null,null,null,null,null,null,null,null,null,null,null,null,null,null,null,null,null,null,null,null,null,null,null,null,null,null,null,null,null,null,null,null,null,null,null,null,null,null,null,null,null,null,null,null,null,null,null,null,null,null,null,{"$f":"SUM(AC31:HF31)","v":"00:00:00"},null,null,null,null,null,null,null,null,null,null,null,null,null,null,null,null,null,null,null,null,null,null,null,null,null,0.95833333333333337,null,null,"Купцова Г.И., кассир билетный Ч"]
[null,null,null,null,null,null,null,null,null,null,null,null,null,null,null,null,null,null,null,null,null,null,null,null,"от",null,null,null,null,null,null,null,null,null,null,null,null,null,null,null,null,null,null,null,null,null,null,null,null,null,null,null,null,null,null,null,null,null,null,null,null,null,null,null,null,null,null,null,null,null,null,null,null,null,null,null,null,null,null,null,null,null,null,null,null,null,null,null,null,null,null,null,null,null,null,null,null,null,null,null,null,null,null,null,null,null,null,null,null,null,null,null,null,null,null,null,null,null,null,null,null,null,null,null,null,null,null,null,null,null,null,null,null,null,null,null,null,null,null,null,null,null,null,null,null,null,null,null,null,null,null,null,null,null,null,null,null,null,null,null,null,null,null,null,null,null,null,null,null,null,null,null,null,null,null,null,null,null,null,null,null,null,null,null,null,null,null,null,null,null,null,null,null,null,null,null,null,null,null,null,null,null,null,null,null,null,null,null,null,null,null,null,null,null,{"$f":"COUNTIF(AC33:HF33,\"=От\")","v":0},null,null,null,null,null,null,null,null,null,null,null,null,null,null,null,null,null,null,null,null,null,null,null,null,null,1,null,null,"Морозова Г.Н., контролёр-посадчик аттракциона Ч"]
[2,null,null,null,null,"Сперанский А.А., слесарь-ремонтник",null,null,null,null,null,null,null,null,null,null,null,null,null,null,null,null,null,1,null,null,null,null,0.375,null,null,null,null,null,0.375,null,null,null,null,null,0.375,null,null,null,null,null,0.375,null,null,null,null,null,0.375,null,null,null,null,null,"В",null,null,null,null,null,"В",null,null,null,null,null,0.375,null,null,null,null,null,0.375,null,null,null,null,null,0.375,null,null,null,null,null,0.375,null,null,null,null,null,0.375,null,null,null,null,null,"В",null,null,null,null,null,"В",null,null,null,null,null,0.375,null,null,null,null,null,0.375,null,null,null,null,null,0.375,null,null,null,null,null,0.375,null,null,null,null,null,0.375,null,null,null,null,null,"В",null,null,null,null,null,"В",null,null,null,null,null,0.375,null,null,null,null,null,0.375,null,null,null,null,null,0.375,null,null,null,null,null,0.375,null,null,null,null,null,0.375,null,null,null,null,null,"В",null,null,null,null,null,"В",null,null,null,null,null,0.375,null,null,null,null,null,0.375,null,null,null,null,null,null,null,null,null,null,null,{"$f":"COUNT(AC33:HF33)","v":22},null,null,null,null,null,null,null,null,null,null,null,null,null,null,null,null,null,{"$f":"SUM(IFERROR(AC34:HF34-AC33:HF33-AC35:HF35,0))","v":7.3333333333333313},null,{"$f":"VLOOKUP($HY$17,'[1]производственный календарь '!$B$2:$F$13,2,0)","v":176},null,null,null,null,null,null,null,null,"Хомченко Л.Е., контролёр-посадчик аттракциона Ч"]
[null,null,null,null,null,null,null,null,null,null,null,null,null,null,null,null,null,null,null,null,null,null,null,null,null,null,null,null,0.83333333333333337,null,null,null,null,null,0.83333333333333337,null,null,null,null,null,0.83333333333333337,null,null,null,null,null,0.83333333333333337,null,null,null,null,null,0.83333333333333337,null,null,null,null,null,"В",null,null,null,null,null,"В",null,null,null,null,null,0.83333333333333337,null,null,null,null,null,0.83333333333333337,null,null,null,null,null,0.83333333333333337,null,null,null,null,null,0.83333333333333337,null,null,null,null,null,0.83333333333333337,null,null,null,null,null,"В",null,null,null,null,null,"В",null,null,null,null,null,0.83333333333333337,null,null,null,null,null,0.83333333333333337,null,null,null,null,null,0.83333333333333337,null,null,null,null,null,0.83333333333333337,null,null,null,null,null,0.83333333333333337,null,null,null,null,null,"В",null,null,null,null,null,"В",null,null,null,null,null,0.83333333333333337,null,null,null,null,null,0.83333333333333337,null,null,null,null,null,0.83333333333333337,null,null,null,null,null,0.83333333333333337,null,null,null,null,null,0.83333333333333337,null,null,null,null,null,"В",null,null,null,null,null,"В",null,null,null,null,null,0.83333333333333337,null,null,null,null,null,0.83333333333333337,null,null,null,null,null,null,null,null,null,null,null,null,null,null,null,null,null,null,null,null,null,null,null,null,null,null,null,null,null,null,null,null,null,null,null,null,null,"В",null,null,"Чижова В.В., контролёр-посадчик аттракциона"]
[null,null,null,null,null,null,null,null,null,null,null,null,null,null,null,null,null,null,null,null,null,null,null,"обед","обед",null,null,null,"03:00:00",null,null,null,null,null,"03:00:00",null,null,null,null,null,"03:00:00",null,null,null,null,null,"03:00:00",null,null,null,null,null,0.125,null,null,null,null,null,"В",null,null,null,null,null,"В",null,null,null,null,null,"03:00:00",null,null,null,null,null,"03:00:00",null,null,null,null,null,"03:00:00",null,null,null,null,null,"03:00:00",null,null,null,null,null,0.125,null,null,null,null,null,"В",null,null,null,null,null,"В",null,null,null,null,null,"03:00:00",null,null,null,null,null,"03:00:00",null,null,null,null,null,"03:00:00",null,null,null,null,null,"03:00:00",null,null,null,null,null,0.125,null,null,null,null,null,"В",null,null,null,null,null,"В",null,null,null,null,null,"03:00:00",null,null,null,null,null,"03:00:00",null,null,null,null,null,"03:00:00",null,null,null,null,null,"03:00:00",null,null,null,null,null,0.125,null,null,null,null,null,"В",null,null,null,null,null,"В",null,null,null,null,null,"03:00:00",null,null,null,null,null,"03:00:00",null,null,null,null,null,null,null,null,null,null,null,null,null,null,null,null,null,null,null,null,null,null,null,null,null,null,null,null,null,null,null,null,null,null,null,null,null,"ОТ",null,null,"Середка С.Л., контролёр-посадчик аттракциона"]
[null,null,null,null,null,null,null,null,null,null,null,null,null,null,null,null,null,null,null,null,null,null,null,null,"р.д.",null,null,null,{"$f":"IFERROR(AC34-AC33-AC35,0)","v":"08:00:00"},null,null,null,null,null,{"$f":"IFERROR(AI34-AI33-AI35,0)","v":"08:00:00"},null,null,null,null,null,{"$f":"IFERROR(AO34-AO33-AO35,0)","v":"08:00:00"},null,null,null,null,null,{"$f":"IFERROR(AU34-AU33-AU35,0)","v":"08:00:00"},null,null,null,null,null,{"$f":"IFERROR(BA34-BA33-BA35,0)","v":0.33333333333333337},null,null,null,null,null,{"$f":"IFERROR(BG34-BG33-BG35,0)","v":0},null,null,null,null,null,{"$f":"IFERROR(BM34-BM33-BM35,0)","v":"00:00:00"},null,null,null,null,null,{"$f":"IFERROR(BS34-BS33-BS35,0)","v":"08:00:00"},null,null,null,null,null,{"$f":"IFERROR(BY34-BY33-BY35,0)","v":"08:00:00"},null,null,null,null,null,{"$f":"IFERROR(CE34-CE33-CE35,0)","v":"08:00:00"},null,null,null,null,null,{"$f":"IFERROR(CK34-CK33-CK35,0)","v":"08:00:00"},null,null,null,null,null,{"$f":"IFERROR(CQ34-CQ33-CQ35,0)","v":0.33333333333333337},null,null,null,null,null,{"$f":"IFERROR(CW34-CW33-CW35,0)","v":0},null,null,null,null,null,{"$f":"IFERROR(DC34-DC33-DC35,0)","v":"00:00:00"},null,null,null,null,null,{"$f":"IFERROR(DI34-DI33-DI35,0)","v":"08:00:00"},null,null,null,null,null,{"$f":"IFERROR(DO34-DO33-DO35,0)","v":"08:00:00"},null,null,null,null,null,{"$f":"IFERROR(DU34-DU33-DU35,0)","v":"08:00:00"},null,null,null,null,null,{"$f":"IFERROR(EA34-EA33-EA35,0)","v":"08:00:00"},null,null,null,null,null,{"$f":"IFERROR(EG34-EG33-EG35,0)","v":0.33333333333333337},null,null,null,null,null,{"$f":"IFERROR(EM34-EM33-EM35,0)","v":0},null,null,null,null,null,{"$f":"IFERROR(ES34-ES33-ES35,0)","v":"00:00:00"},null,null,null,null,null,{"$f":"IFERROR(EY34-EY33-EY35,0)","v":"08:00:00"},null,null,null,null,null,{"$f":"IFERROR(FE34-FE33-FE35,0)","v":"08:00:00"},null,null,null,null,null,{"$f":"IFERROR(FK34-FK33-FK35,0)","v":"08:00:00"},null,null,null,null,null,{"$f":"IFERROR(FQ34-FQ33-FQ35,0)","v":"08:00:00"},null,null,null,null,null,{"$f":"IFERROR(FW34-FW33-FW35,0)","v":0.33333333333333337},null,null,null,null,null,{"$f":"IFERROR(GC34-GC33-GC35,0)","v":0},null,null,null,null,null,{"$f":"IFERROR(GI34-GI33-GI35,0)","v":"00:00:00"},null,null,null,null,null,{"$f":"IFERROR(GO34-GO33-GO35,0)","v":"08:00:00"},null,null,null,null,null,{"$f":"IFERROR(GU34-GU33-GU35,0)","v":"08:00:00"},null,null,null,null,null,{"$f":"IFERROR(HA34-HA33-HA35,0)","v":"00:00:00"},null,null,null,null,null,null,null,null,null,null,null,null,null,null,null,null,null,null,null,null,null,null,null,{"$f":"SUM(AC36:HF36)","v":7.3333333333333313}]
[null,null,null,null,null,null,null,null,null,null,null,null,null,null,null,null,null,null,null,null,null,null,null,"пр","пр",null,null,null,null,null,null,null,null,null,null,null,null,null,null,null,null,null,null,null,null,null,null,null,null,null,null,null,null,null,null,null,null,null,null,null,null,null,null,null,null,null,null,null,null,null,null,null,null,null,null,null,null,null,null,null,null,null,null,null,null,null,null,null,null,null,null,null,null,null,null,null,null,null,null,null,null,null,null,null,null,null,null,null,null,null,null,null,null,null,null,null,null,null,null,null,null,null,null,null,null,null,null,null,null,null,null,null,null,null,null,null,null,null,null,null,null,null,null,null,null,null,null,null,null,null,null,null,null,null,null,null,null,null,null,null,null,null,null,null,null,null,null,null,null,null,null,null,null,null,null,null,null,null,null,null,null,null,null,null,null,null,null,null,null,null,null,null,null,null,null,null,null,null,null,null,null,null,null,null,null,null,null,null,null,null,null,null,null,null,{"$f":"SUM(AC37:HF37)","v":"00:00:00"}]
[null,null,null,null,null,null,null,null,null,null,null,null,null,null,null,null,null,null,null,null,null,null,null,null,"от",null,null,null,null,null,null,null,null,null,null,null,null,null,null,null,null,null,null,null,null,null,null,null,null,null,null,null,null,null,null,null,null,null,null,null,null,null,null,null,null,null,null,null,null,null,null,null,null,null,null,null,null,null,null,null,null,null,null,null,null,null,null,null,null,null,null,null,null,null,null,null,null,null,null,null,null,null,null,null,null,null,null,null,null,null,null,null,null,null,null,null,null,null,null,null,null,null,null,null,null,null,null,null,null,null,null,null,null,null,null,null,null,null,null,null,null,null,null,null,null,null,null,null,null,null,null,null,null,null,null,null,null,null,null,null,null,null,null,null,null,null,null,null,null,null,null,null,null,null,null,null,null,null,null,null,null,null,null,null,null,null,null,null,null,null,null,null,null,null,null,null,null,null,null,null,null,null,null,null,null,null,null,null,null,null,null,null,null,null,{"$f":"COUNTIF(AC39:HF39,\"=От\")","v":0}]
[3,null,null,null,null,"Лагутенко В.А., кассир билетный НЧ",null,null,null,null,null,null,null,null,null,null,null,null,null,null,null,null,null,1,null,null,null,null,0.33333333333333331,null,null,null,null,null,null,null,null,null,null,null,0.375,null,null,null,null,null,null,null,null,null,null,null,0.33333333333333331,null,null,null,null,null,null,null,null,null,null,null,0.375,null,null,null,null,null,null,null,null,null,null,null,0.375,null,null,null,null,null,null,null,null,null,null,null,0.375,null,null,null,null,null,null,null,null,null,null,null,0.33333333333333331,null,null,null,null,null,null,null,null,null,null,null,0.33333333333333331,null,null,null,null,null,null,null,null,null,null,null,0.33333333333333331,null,null,null,null,null,null,null,null,null,null,null,0.33333333333333331,null,null,null,null,null,null,null,null,null,null,null,0.33333333333333331,null,null,null,null,null,null,null,null,null,null,null,0.33333333333333331,null,null,null,null,null,null,null,null,null,null,null,0.33333333333333331,null,null,null,null,null,null,null,null,null,null,null,0.33333333333333331,null,null,null,null,null,null,null,null,null,null,null,0.33333333333333331,null,null,null,null,null,null,null,null,null,null,null,null,null,null,null,null,null,{"$f":"COUNT(AC39:HF39)","v":15},null,null,null,null,null,null,null,null,null,null,null,null,null,null,null,null,null,{"$f":"SUM(IFERROR(AC40:HF40-AC39:HF39-AC41:HF41,0))","v":7.3333333333333339},null,{"$f":"VLOOKUP($HY$17,'[1]производственный календарь '!$B$2:$F$13,2,0)","v":176}]
[null,null,null,null,null,null,null,null,null,null,null,null,null,null,null,null,null,null,null,null,null,null,null,null,null,null,null,null,0.875,null,null,null,null,null,null,null,null,null,null,null,0.875,null,null,null,null,null,null,null,null,null,null,null,0.875,null,null,null,null,null,null,null,null,null,null,null,0.875,null,null,null,null,null,null,null,null,null,null,null,0.875,null,null,null,null,null,null,null,null,null,null,null,0.875,null,null,null,null,null,null,null,null,null,null,null,0.875,null,null,null,null,null,null,null,null,null,null,null,0.875,null,null,null,null,null,null,null,null,null,null,null,0.875,null,null,null,null,null,null,null,null,null,null,null,0.875,null,null,null,null,null,null,null,null,null,null,null,0.875,null,null,null,null,null,null,null,null,null,null,null,0.875,null,null,null,null,null,null,null,null,null,null,null,0.875,null,null,null,null,null,null,null,null,null,null,null,0.875,null,null,null,null,null,null,null,null,null,null,null,0.875]
[null,null,null,null,null,null,null,null,null,null,null,null,null,null,null,null,null,null,null,null,null,null,null,"обед","обед",null,null,null,"01:00:00",null,null,null,null,null,null,null,null,null,null,null,"01:00:00",null,null,null,null,null,null,null,null,null,null,null,"01:00:00",null,null,null,null,null,null,null,null,null,null,null,"01:00:00",null,null,null,null,null,null,null,null,null,null,null,"01:00:00",null,null,null,null,null,null,null,null,null,null,null,"01:00:00",null,null,null,null,null,null,null,null,null,null,null,"01:00:00",null,null,null,null,null,null,null,null,null,null,null,"01:00:00",null,null,null,null,null,null,null,null,null,null,null,"01:00:00",null,null,null,null,null,null,null,null,null,null,null,"01:00:00",null,null,null,null,null,null,null,null,null,null,null,"01:00:00",null,null,null,null,null,null,null,null,null,null,null,"01:00:00",null,null,null,null,null,null,null,null,null,null,null,"01:00:00",null,null,null,null,null,null,null,null,null,null,null,"01:00:00",null,null,null,null,null,null,null,null,null,null,null,"01:00:00"]
[null,null,null,null,null,null,null,null,null,null,null,null,null,null,null,null,null,null,null,null,null,null,null,null,"р.д.",null,null,null,{"$f":"IFERROR(AC40-AC39-AC41,0)","v":"12:00:00"},null,null,null,null,null,{"$f":"IFERROR(AI40-AI39-AI41,0)","v":"00:00:00"},null,null,null,null,null,{"$f":"IFERROR(AO40-AO39-AO41,0)","v":"11:00:00"},null,null,null,null,null,{"$f":"IFERROR(AU40-AU39-AU41,0)","v":0},null,null,null,null,null,{"$f":"IFERROR(BA40-BA39-BA41,0)","v":0.50000000000000011},null,null,null,null,null,{"$f":"IFERROR(BG40-BG39-BG41,0)","v":0},null,null,null,null,null,{"$f":"IFERROR(BM40-BM39-BM41,0)","v":"11:00:00"},null,null,null,null,null,{"$f":"IFERROR(BS40-BS39-BS41,0)","v":"00:00:00"},null,null,null,null,null,{"$f":"IFERROR(BY40-BY39-BY41,0)","v":"11:00:00"},null,null,null,null,null,{"$f":"IFERROR(CE40-CE39-CE41,0)","v":"00:00:00"},null,null,null,null,null,{"$f":"IFERROR(CK40-CK39-CK41,0)","v":0.45833333333333331},null,null,null,null,null,{"$f":"IFERROR(CQ40-CQ39-CQ41,0)","v":0},null,null,null,null,null,{"$f":"IFERROR(CW40-CW39-CW41,0)","v":0.50000000000000011},null,null,null,null,null,{"$f":"IFERROR(DC40-DC39-DC41,0)","v":"00:00:00"},null,null,null,null,null,{"$f":"IFERROR(DI40-DI39-DI41,0)","v":"12:00:00"},null,null,null,null,null,{"$f":"IFERROR(DO40-DO39-DO41,0)","v":"00:00:00"},null,null,null,null,null,{"$f":"IFERROR(DU40-DU39-DU41,0)","v":"12:00:00"},null,null,null,null,null,{"$f":"IFERROR(EA40-EA39-EA41,0)","v":0},null,null,null,null,null,{"$f":"IFERROR(EG40-EG39-EG41,0)","v":0.50000000000000011},null,null,null,null,null,{"$f":"IFERROR(EM40-EM39-EM41,0)","v":0},null,null,null,null,null,{"$f":"IFERROR(ES40-ES39-ES41,0)","v":"12:00:00"},null,null,null,null,null,{"$f":"IFERROR(EY40-EY39-EY41,0)","v":"00:00:00"},null,null,null,null,null,{"$f":"IFERROR(FE40-FE39-FE41,0)","v":"12:00:00"},null,null,null,null,null,{"$f":"IFERROR(FK40-FK39-FK41,0)","v":"00:00:00"},null,null,null,null,null,{"$f":"IFERROR(FQ40-FQ39-FQ41,0)","v":0.50000000000000011},null,null,null,null,null,{"$f":"IFERROR(FW40-FW39-FW41,0)","v":0},null,null,null,null,null,{"$f":"IFERROR(GC40-GC39-GC41,0)","v":0.50000000000000011},null,null,null,null,null,{"$f":"IFERROR(GI40-GI39-GI41,0)","v":"00:00:00"},null,null,null,null,null,{"$f":"IFERROR(GO40-GO39-GO41,0)","v":"12:00:00"},null,null,null,null,null,{"$f":"IFERROR(GU40-GU39-GU41,0)","v":"00:00:00"},null,null,null,null,null,{"$f":"IFERROR(HA40-HA39-HA41,0)","v":"00:00:00"},null,null,null,null,null,null,null,null,null,null,null,null,null,null,null,null,null,null,null,null,null,null,null,{"$f":"SUM(AC42:HF42)","v":7.3333333333333339}]
[null,null,null,null,null,null,null,null,null,null,null,null,null,null,null,null,null,null,null,null,null,null,null,"пр","пр",null,null,null,null,null,null,null,null,null,null,null,null,null,null,null,null,null,null,null,null,null,null,null,null,null,null,null,null,null,null,null,null,null,null,null,null,null,null,null,null,null,null,null,null,null,null,null,null,null,null,null,null,null,null,null,null,null,null,null,null,null,null,null,null,null,null,null,null,null,null,null,null,null,null,null,null,null,null,null,null,null,null,null,null,null,null,null,null,null,null,null,null,null,null,null,null,null,null,null,null,null,null,null,null,null,null,null,null,null,null,null,null,null,null,null,null,null,null,null,null,null,null,null,null,null,null,null,null,null,null,null,null,null,null,null,null,null,null,null,null,null,null,null,null,null,null,null,null,null,null,null,null,null,null,null,null,null,null,null,null,null,null,null,null,null,null,null,null,null,null,null,null,null,null,null,null,null,null,null,null,null,null,null,null,null,null,null,null,null,{"$f":"SUM(AC43:HF43)","v":"00:00:00"}]
[null,null,null,null,null,null,null,null,null,null,null,null,null,null,null,null,null,null,null,null,null,null,null,null,"от",null,null,null,null,null,null,null,null,null,null,null,null,null,null,null,null,null,null,null,null,null,null,null,null,null,null,null,null,null,null,null,null,null,null,null,null,null,null,null,null,null,null,null,null,null,null,null,null,null,null,null,null,null,null,null,null,null,null,null,null,null,null,null,null,null,null,null,null,null,null,null,null,null,null,null,null,null,null,null,null,null,null,null,null,null,null,null,null,null,null,null,null,null,null,null,null,null,null,null,null,null,null,null,null,null,null,null,null,null,null,null,null,null,null,null,null,null,null,null,null,null,null,null,null,null,null,null,null,null,null,null,null,null,null,null,null,null,null,null,null,null,null,null,null,null,null,null,null,null,null,null,null,null,null,null,null,null,null,null,null,null,null,null,null,null,null,null,null,null,null,null,null,null,null,null,null,null,null,null,null,null,null,null,null,null,null,null,null,null,{"$f":"COUNTIF(AC45:HF45,\"=От\")","v":0}]
[4,null,null,null,null,"Купцова Г.И., кассир билетный Ч",null,null,null,null,null,null,null,null,null,null,null,null,null,null,null,null,null,1,null,null,null,null,null,null,null,null,null,null,0.33333333333333331,null,null,null,null,null,null,null,null,null,null,null,0.375,null,null,null,null,null,null,null,null,null,null,null,0.33333333333333331,null,null,null,null,null,null,null,null,null,null,null,0.375,null,null,null,null,null,null,null,null,null,null,null,0.375,null,null,null,null,null,null,null,null,null,null,null,0.33333333333333331,null,null,null,null,null,null,null,null,null,null,null,0.375,null,null,null,null,null,null,null,null,null,null,null,0.33333333333333331,null,null,null,null,null,null,null,null,null,null,null,0.33333333333333331,null,null,null,null,null,null,null,null,null,null,null,0.33333333333333331,null,null,null,null,null,null,null,null,null,null,null,0.33333333333333331,null,null,null,null,null,null,null,null,null,null,null,0.33333333333333331,null,null,null,null,null,null,null,null,null,null,null,0.33333333333333331,null,null,null,null,null,null,null,null,null,null,null,0.33333333333333331,null,null,null,null,null,null,null,null,null,null,null,0.33333333333333331,null,null,null,null,null,null,null,null,null,null,null,{"$f":"COUNT(AC45:HF45)","v":15},null,null,null,null,null,null,null,null,null,null,null,null,null,null,null,null,null,{"$f":"SUM(IFERROR(AC46:HF46-AC45:HF45-AC47:HF47,0))","v":7.3333333333333339},null,{"$f":"VLOOKUP($HY$17,'[1]производственный календарь '!$B$2:$F$13,2,0)","v":176}]
[null,null,null,null,null,null,null,null,null,null,null,null,null,null,null,null,null,null,null,null,null,null,null,null,null,null,null,null,null,null,null,null,null,null,0.875,null,null,null,null,null,null,null,null,null,null,null,0.875,null,null,null,null,null,null,null,null,null,null,null,0.875,null,null,null,null,null,null,null,null,null,null,null,0.875,null,null,null,null,null,null,null,null,null,null,null,0.875,null,null,null,null,null,null,null,null,null,null,null,0.875,null,null,null,null,null,null,null,null,null,null,null,0.875,null,null,null,null,null,null,null,null,null,null,null,0.875,null,null,null,null,null,null,null,null,null,null,null,0.875,null,null,null,null,null,null,null,null,null,null,null,0.875,null,null,null,null,null,null,null,null,null,null,null,0.875,null,null,null,null,null,null,null,null,null,null,null,0.875,null,null,null,null,null,null,null,null,null,null,null,0.875,null,null,null,null,null,null,null,null,null,null,null,0.875,null,null,null,null,null,null,null,null,null,null,null,0.875]
[null,null,null,null,null,null,null,null,null,null,null,null,null,null,null,null,null,null,null,null,null,null,null,"обед","обед",null,null,null,null,null,null,null,null,null,"01:00:00",null,null,null,null,null,null,null,null,null,null,null,"01:00:00",null,null,null,null,null,null,null,null,null,null,null,"01:00:00",null,null,null,null,null,null,null,null,null,null,null,"01:00:00",null,null,null,null,null,null,null,null,null,null,null,"01:00:00",null,null,null,null,null,null,null,null,null,null,null,"01:00:00",null,null,null,null,null,null,null,null,null,null,null,"01:00:00",null,null,null,null,null,null,null,null,null,null,null,"01:00:00",null,null,null,null,null,null,null,null,null,null,null,"01:00:00",null,null,null,null,null,null,null,null,null,null,null,"01:00:00",null,null,null,null,null,null,null,null,null,null,null,"01:00:00",null,null,null,null,null,null,null,null,null,null,null,"01:00:00",null,null,null,null,null,null,null,null,null,null,null,"01:00:00",null,null,null,null,null,null,null,null,null,null,null,"01:00:00",null,null,null,null,null,null,null,null,null,null,null,"01:00:00"]
[null,null,null,null,null,null,null,null,null,null,null,null,null,null,null,null,null,null,null,null,null,null,null,null,"р.д.",null,null,null,{"$f":"IFERROR(AC46-AC45-AC47,0)","v":"00:00:00"},null,null,null,null,null,{"$f":"IFERROR(AI46-AI45-AI47,0)","v":"12:00:00"},null,null,null,null,null,{"$f":"IFERROR(AO46-AO45-AO47,0)","v":"00:00:00"},null,null,null,null,null,{"$f":"IFERROR(AU46-AU45-AU47,0)","v":0.45833333333333331},null,null,null,null,null,{"$f":"IFERROR(BA46-BA45-BA47,0)","v":0},null,null,null,null,null,{"$f":"IFERROR(BG46-BG45-BG47,0)","v":0.50000000000000011},null,null,null,null,null,{"$f":"IFERROR(BM46-BM45-BM47,0)","v":"00:00:00"},null,null,null,null,null,{"$f":"IFERROR(BS46-BS45-BS47,0)","v":"11:00:00"},null,null,null,null,null,{"$f":"IFERROR(BY46-BY45-BY47,0)","v":"00:00:00"},null,null,null,null,null,{"$f":"IFERROR(CE46-CE45-CE47,0)","v":"11:00:00"},null,null,null,null,null,{"$f":"IFERROR(CK46-CK45-CK47,0)","v":0},null,null,null,null,null,{"$f":"IFERROR(CQ46-CQ45-CQ47,0)","v":0.50000000000000011},null,null,null,null,null,{"$f":"IFERROR(CW46-CW45-CW47,0)","v":0},null,null,null,null,null,{"$f":"IFERROR(DC46-DC45-DC47,0)","v":"11:00:00"},null,null,null,null,null,{"$f":"IFERROR(DI46-DI45-DI47,0)","v":"00:00:00"},null,null,null,null,null,{"$f":"IFERROR(DO46-DO45-DO47,0)","v":"12:00:00"},null,null,null,null,null,{"$f":"IFERROR(DU46-DU45-DU47,0)","v":"00:00:00"},null,null,null,null,null,{"$f":"IFERROR(EA46-EA45-EA47,0)","v":0.50000000000000011},null,null,null,null,null,{"$f":"IFERROR(EG46-EG45-EG47,0)","v":0},null,null,null,null,null,{"$f":"IFERROR(EM46-EM45-EM47,0)","v":0.50000000000000011},null,null,null,null,null,{"$f":"IFERROR(ES46-ES45-ES47,0)","v":"00:00:00"},null,null,null,null,null,{"$f":"IFERROR(EY46-EY45-EY47,0)","v":"12:00:00"},null,null,null,null,null,{"$f":"IFERROR(FE46-FE45-FE47,0)","v":"00:00:00"},null,null,null,null,null,{"$f":"IFERROR(FK46-FK45-FK47,0)","v":"12:00:00"},null,null,null,null,null,{"$f":"IFERROR(FQ46-FQ45-FQ47,0)","v":0},null,null,null,null,null,{"$f":"IFERROR(FW46-FW45-FW47,0)","v":0.50000000000000011},null,null,null,null,null,{"$f":"IFERROR(GC46-GC45-GC47,0)","v":0},null,null,null,null,null,{"$f":"IFERROR(GI46-GI45-GI47,0)","v":"12:00:00"},null,null,null,null,null,{"$f":"IFERROR(GO46-GO45-GO47,0)","v":"00:00:00"},null,null,null,null,null,{"$f":"IFERROR(GU46-GU45-GU47,0)","v":"12:00:00"},null,null,null,null,null,{"$f":"IFERROR(HA46-HA45-HA47,0)","v":"00:00:00"},null,null,null,null,null,null,null,null,null,null,null,null,null,null,null,null,null,null,null,null,null,null,null,{"$f":"SUM(AC48:GZ48)","v":7.3333333333333339}]
[null,null,null,null,null,null,null,null,null,null,null,null,null,null,null,null,null,null,null,null,null,null,null,"пр","пр",null,null,null,null,null,null,null,null,null,null,null,null,null,null,null,null,null,null,null,null,null,null,null,null,null,null,null,null,null,null,null,null,null,null,null,null,null,null,null,null,null,null,null,null,null,null,null,null,null,null,null,null,null,null,null,null,null,null,null,null,null,null,null,null,null,null,null,null,null,null,null,null,null,null,null,null,null,null,null,null,null,null,null,null,null,null,null,null,null,null,null,null,null,null,null,null,null,null,null,null,null,null,null,null,null,null,null,null,null,null,null,null,null,null,null,null,null,null,null,null,null,null,null,null,null,null,null,null,null,null,null,null,null,null,null,null,null,null,null,null,null,null,null,null,null,null,null,null,null,null,null,null,null,null,null,null,null,null,null,null,null,null,null,null,null,null,null,null,null,null,null,null,null,null,null,null,null,null,null,null,null,null,null,null,null,null,null,null,null,{"$f":"SUM(AC49:HF49)","v":"00:00:00"},null,null,null,null,null,null,null,null,null,null,null,null,null,null,null,null,null,{"$f":"SUM(AG49:HQ50)","v":"00:00:00"}]
[null,null,null,null,null,null,null,null,null,null,null,null,null,null,null,null,null,null,null,null,null,null,null,null,"от",null,null,null,null,null,null,null,null,null,null,null,null,null,null,null,null,null,null,null,null,null,null,null,null,null,null,null,null,null,null,null,null,null,null,null,null,null,null,null,null,null,null,null,null,null,null,null,null,null,null,null,null,null,null,null,null,null,null,null,null,null,null,null,null,null,null,null,null,null,null,null,null,null,null,null,null,null,null,null,null,null,null,null,null,null,null,null,null,null,null,null,null,null,null,null,null,null,null,null,null,null,null,null,null,null,null,null,null,null,null,null,null,null,null,null,null,null,null,null,null,null,null,null,null,null,null,null,null,null,null,null,null,null,null,null,null,null,null,null,null,null,null,null,null,null,null,null,null,null,null,null,null,null,null,null,null,null,null,null,null,null,null,null,null,null,null,null,null,null,null,null,null,null,null,null,null,null,null,null,null,null,null,null,null,null,null,null,null,null,{"$f":"COUNTIF(AC51:HF51,\"=От\")","v":0}]
[5,null,null,null,null,"Кипкаева Л.А., дворник",null,null,null,null,null,null,null,null,null,null,null,null,null,null,null,null,null,1,null,null,null,null,0.25,null,null,null,null,null,0.25,null,null,null,null,null,0.25,null,null,null,null,null,"В",null,null,null,null,null,0.25,null,null,null,null,null,0.25,null,null,null,null,null,0.25,null,null,null,null,null,0.25,null,null,null,null,null,0.25,null,null,null,null,null,0.25,null,null,null,null,null,"В",null,null,null,null,null,0.25,null,null,null,null,null,0.25,null,null,null,null,null,0.25,null,null,null,null,null,0.25,null,null,null,null,null,0.25,null,null,null,null,null,0.25,null,null,null,null,null,"В",null,null,null,null,null,0.25,null,null,null,null,null,0.25,null,null,null,null,null,0.25,null,null,null,null,null,0.25,null,null,null,null,null,0.25,null,null,null,null,null,0.25,null,null,null,null,null,"В",null,null,null,null,null,0.25,null,null,null,null,null,0.25,null,null,null,null,null,0.25,null,null,null,null,null,0.25,null,null,null,null,null,0.25,null,null,null,null,null,null,null,null,null,null,null,{"$f":"COUNT(AC51:HF51)","v":26},null,null,null,null,null,null,null,null,null,null,null,null,null,null,null,null,null,{"$f":"SUM(IFERROR(AC52:HF52-AC51:HF51-AC53:HF53,0))","v":7.3333333333333348},null,{"$f":"VLOOKUP($HY$17,'[1]производственный календарь '!$B$2:$F$13,2,0)","v":176}]
[null,null,null,null,null,null,null,null,null,null,null,null,null,null,null,null,null,null,null,null,null,null,null,null,null,null,null,null,0.58333333333333337,null,null,null,null,null,0.58333333333333337,null,null,null,null,null,0.5,null,null,null,null,null,"В",null,null,null,null,null,0.58333333333333337,null,null,null,null,null,0.58333333333333337,null,null,null,null,null,0.58333333333333337,null,null,null,null,null,0.58333333333333337,null,null,null,null,null,0.58333333333333337,null,null,null,null,null,0.5,null,null,null,null,null,"В",null,null,null,null,null,0.58333333333333337,null,null,null,null,null,0.58333333333333337,null,null,null,null,null,0.58333333333333337,null,null,null,null,null,0.58333333333333337,null,null,null,null,null,0.58333333333333337,null,null,null,null,null,0.5,null,null,null,null,null,"В",null,null,null,null,null,0.58333333333333337,null,null,null,null,null,0.58333333333333337,null,null,null,null,null,0.58333333333333337,null,null,null,null,null,0.58333333333333337,null,null,null,null,null,0.58333333333333337,null,null,null,null,null,0.5,null,null,null,null,null,"В",null,null,null,null,null,0.58333333333333337,null,null,null,null,null,0.58333333333333337,null,null,null,null,null,0.58333333333333337,null,null,null,null,null,0.625,null,null,null,null,null,0.625]
[null,null,null,null,null,null,null,null,null,null,null,null,null,null,null,null,null,null,null,null,null,null,null,"обед","обед",null,null,null,"01:00:00",null,null,null,null,null,"01:00:00",null,null,null,null,null,"01:00:00",null,null,null,null,null,"В",null,null,null,null,null,"01:00:00",null,null,null,null,null,"01:00:00",null,null,null,null,null,"01:00:00",null,null,null,null,null,"01:00:00",null,null,null,null,null,"01:00:00",null,null,null,null,null,"01:00:00",null,null,null,null,null,"В",null,null,null,null,null,"01:00:00",null,null,null,null,null,"01:00:00",null,null,null,null,null,"01:00:00",null,null,null,null,null,"01:00:00",null,null,null,null,null,"01:00:00",null,null,null,null,null,"01:00:00",null,null,null,null,null,"В",null,null,null,null,null,"01:00:00",null,null,null,null,null,"01:00:00",null,null,null,null,null,"01:00:00",null,null,null,null,null,"01:00:00",null,null,null,null,null,"01:00:00",null,null,null,null,null,"01:00:00",null,null,null,null,null,"В",null,null,null,null,null,"01:00:00",null,null,null,null,null,"01:00:00",null,null,null,null,null,"01:00:00",null,null,null,null,null,"01:00:00",null,null,null,null,null,"01:00:00"]
[null,null,null,null,null,null,null,null,null,null,null,null,null,null,null,null,null,null,null,null,null,null,null,null,"р.д.",null,null,null,{"$f":"IFERROR(AC52-AC51-AC53,0)","v":"07:00:00"},null,null,null,null,null,{"$f":"IFERROR(AI52-AI51-AI53,0)","v":"07:00:00"},null,null,null,null,null,{"$f":"IFERROR(AO52-AO51-AO53,0)","v":"05:00:00"},null,null,null,null,null,{"$f":"IFERROR(AU52-AU51-AU53,0)","v":0},null,null,null,null,null,{"$f":"IFERROR(BA52-BA51-BA53,0)","v":0.29166666666666669},null,null,null,null,null,{"$f":"IFERROR(BG52-BG51-BG53,0)","v":0.29166666666666669},null,null,null,null,null,{"$f":"IFERROR(BM52-BM51-BM53,0)","v":"07:00:00"},null,null,null,null,null,{"$f":"IFERROR(BS52-BS51-BS53,0)","v":"07:00:00"},null,null,null,null,null,{"$f":"IFERROR(BY52-BY51-BY53,0)","v":"07:00:00"},null,null,null,null,null,{"$f":"IFERROR(CE52-CE51-CE53,0)","v":"05:00:00"},null,null,null,null,null,{"$f":"IFERROR(CK52-CK51-CK53,0)","v":0},null,null,null,null,null,{"$f":"IFERROR(CQ52-CQ51-CQ53,0)","v":0.29166666666666669},null,null,null,null,null,{"$f":"IFERROR(CW52-CW51-CW53,0)","v":"07:00:00"},null,null,null,null,null,{"$f":"IFERROR(DC52-DC51-DC53,0)","v":"07:00:00"},null,null,null,null,null,{"$f":"IFERROR(DI52-DI51-DI53,0)","v":"07:00:00"},null,null,null,null,null,{"$f":"IFERROR(DO52-DO51-DO53,0)","v":"07:00:00"},null,null,null,null,null,{"$f":"IFERROR(DU52-DU51-DU53,0)","v":"05:00:00"},null,null,null,null,null,{"$f":"IFERROR(EA52-EA51-EA53,0)","v":0},null,null,null,null,null,{"$f":"IFERROR(EG52-EG51-EG53,0)","v":0.29166666666666669},null,null,null,null,null,{"$f":"IFERROR(EM52-EM51-EM53,0)","v":"07:00:00"},null,null,null,null,null,{"$f":"IFERROR(ES52-ES51-ES53,0)","v":"07:00:00"},null,null,null,null,null,{"$f":"IFERROR(EY52-EY51-EY53,0)","v":"07:00:00"},null,null,null,null,null,{"$f":"IFERROR(FE52-FE51-FE53,0)","v":"07:00:00"},null,null,null,null,null,{"$f":"IFERROR(FK52-FK51-FK53,0)","v":"05:00:00"},null,null,null,null,null,{"$f":"IFERROR(FQ52-FQ51-FQ53,0)","v":0},null,null,null,null,null,{"$f":"IFERROR(FW52-FW51-FW53,0)","v":0.29166666666666669},null,null,null,null,null,{"$f":"IFERROR(GC52-GC51-GC53,0)","v":"07:00:00"},null,null,null,null,null,{"$f":"IFERROR(GI52-GI51-GI53,0)","v":"07:00:00"},null,null,null,null,null,{"$f":"IFERROR(GO52-GO51-GO53,0)","v":"08:00:00"},null,null,null,null,null,{"$f":"IFERROR(GU52-GU51-GU53,0)","v":"08:00:00"},null,null,null,null,null,{"$f":"IFERROR(HA52-HA51-HA53,0)","v":"00:00:00"},null,null,null,null,null,null,null,null,null,null,null,null,null,null,null,null,null,null,null,null,null,null,null,{"$f":"SUM(AC54:GZ54)","v":7.3333333333333348}]
[null,null,null,null,null,null,null,null,null,null,null,null,null,null,null,null,null,null,null,null,null,null,null,"пр","пр",null,null,null,null,null,null,null,null,null,null,null,null,null,null,null,null,null,null,null,null,null,null,null,null,null,null,null,null,null,null,null,null,null,null,null,null,null,null,null,null,null,null,null,null,null,null,null,null,null,null,null,null,null,null,null,null,null,null,null,null,null,null,null,null,null,null,null,null,null,null,null,null,null,null,null,null,null,null,null,null,null,null,null,null,null,null,null,null,null,null,null,null,null,null,null,null,null,null,null,null,null,null,null,null,null,null,null,null,null,null,null,null,null,null,null,null,null,null,null,null,null,null,null,null,null,null,null,null,null,null,null,null,null,null,null,null,null,null,null,null,null,null,null,null,null,null,null,null,null,null,null,null,null,null,null,null,null,null,null,null,null,null,null,null,null,null,null,null,null,null,null,null,null,null,null,null,null,null,null,null,null,null,null,null,null,null,null,null,null,{"$f":"SUM(AC55:HF55)","v":"00:00:00"}]
[null,null,null,null,null,null,null,null,null,null,null,null,null,null,null,null,null,null,null,null,null,null,null,null,"от",null,null,null,null,null,null,null,null,null,null,null,null,null,null,null,null,null,null,null,null,null,null,null,null,null,null,null,null,null,null,null,null,null,null,null,null,null,null,null,null,null,null,null,null,null,null,null,null,null,null,null,null,null,null,null,null,null,null,null,null,null,null,null,null,null,null,null,null,null,null,null,null,null,null,null,null,null,null,null,null,null,null,null,null,null,null,null,null,null,null,null,null,null,null,null,null,null,null,null,null,null,null,null,null,null,null,null,null,null,null,null,null,null,null,null,null,null,null,null,null,null,null,null,null,null,null,null,null,null,null,null,null,null,null,null,null,null,null,null,null,null,null,null,null,null,null,null,null,null,null,null,null,null,null,null,null,null,null,null,null,null,null,null,null,null,null,null,null,null,null,null,null,null,null,null,null,null,null,null,null,null,null,null,null,null,null,null,null,null,{"$f":"COUNTIF(AC57:HF57,\"=От\")","v":0}]
[6,null,null,null,null,"Морозова Г.Н., контролёр-посадчик аттракциона НЧ",null,null,null,null,null,null,null,null,null,null,null,null,null,null,null,null,null,1,null,null,null,null,0.33333333333333331,null,null,null,null,null,null,null,null,null,null,null,0.375,null,null,null,null,null,null,null,null,null,null,null,0.33333333333333331,null,null,null,null,null,null,null,null,null,null,null,0.375,null,null,null,null,null,null,null,null,null,null,null,0.375,null,null,null,null,null,null,null,null,null,null,null,0.375,null,null,null,null,null,null,null,null,null,null,null,0.33333333333333331,null,null,null,null,null,null,null,null,null,null,null,0.33333333333333331,null,null,null,null,null,null,null,null,null,null,null,0.33333333333333331,null,null,null,null,null,null,null,null,null,null,null,0.33333333333333331,null,null,null,null,null,null,null,null,null,null,null,0.33333333333333331,null,null,null,null,null,null,null,null,null,null,null,0.33333333333333331,null,null,null,null,null,null,null,null,null,null,null,0.33333333333333331,null,null,null,null,null,null,null,null,null,null,null,0.33333333333333331,null,null,null,null,null,null,null,null,null,null,null,0.33333333333333331,null,null,null,null,null,null,null,null,null,null,null,null,null,null,null,null,null,{"$f":"COUNT(AC57:HF57)","v":15},null,null,null,null,null,null,null,null,null,null,null,null,null,null,null,null,null,{"$f":"SUM(IFERROR(AC58:HF58-AC57:HF57-AC59:HF59,0))","v":7.3333333333333339},null,{"$f":"VLOOKUP($HY$17,'[1]производственный календарь '!$B$2:$F$13,2,0)","v":176}]
[null,null,null,null,null,null,null,null,null,null,null,null,null,null,null,null,null,null,null,null,null,null,null,null,null,null,null,null,0.875,null,null,null,null,null,null,null,null,null,null,null,0.875,null,null,null,null,null,null,null,null,null,null,null,0.875,null,null,null,null,null,null,null,null,null,null,null,0.875,null,null,null,null,null,null,null,null,null,null,null,0.875,null,null,null,null,null,null,null,null,null,null,null,0.875,null,null,null,null,null,null,null,null,null,null,null,0.875,null,null,null,null,null,null,null,null,null,null,null,0.875,null,null,null,null,null,null,null,null,null,null,null,0.875,null,null,null,null,null,null,null,null,null,null,null,0.875,null,null,null,null,null,null,null,null,null,null,null,0.875,null,null,null,null,null,null,null,null,null,null,null,0.875,null,null,null,null,null,null,null,null,null,null,null,0.875,null,null,null,null,null,null,null,null,null,null,null,0.875,null,null,null,null,null,null,null,null,null,null,null,0.875]
[null,null,null,null,null,null,null,null,null,null,null,null,null,null,null,null,null,null,null,null,null,null,null,"обед","обед",null,null,null,"01:00:00",null,null,null,null,null,null,null,null,null,null,null,"01:00:00",null,null,null,null,null,null,null,null,null,null,null,"01:00:00",null,null,null,null,null,null,null,null,null,null,null,"01:00:00",null,null,null,null,null,null,null,null,null,null,null,"01:00:00",null,null,null,null,null,null,null,null,null,null,null,"01:00:00",null,null,null,null,null,null,null,null,null,null,null,"01:00:00",null,null,null,null,null,null,null,null,null,null,null,"01:00:00",null,null,null,null,null,null,null,null,null,null,null,"01:00:00",null,null,null,null,null,null,null,null,null,null,null,"01:00:00",null,null,null,null,null,null,null,null,null,null,null,"01:00:00",null,null,null,null,null,null,null,null,null,null,null,"01:00:00",null,null,null,null,null,null,null,null,null,null,null,"01:00:00",null,null,null,null,null,null,null,null,null,null,null,"01:00:00",null,null,null,null,null,null,null,null,null,null,null,"01:00:00"]
[null,null,null,null,null,null,null,null,null,null,null,null,null,null,null,null,null,null,null,null,null,null,null,null,"р.д.",null,null,null,{"$f":"IFERROR(AC58-AC57-AC59,0)","v":"12:00:00"},null,null,null,null,null,{"$f":"IFERROR(AI58-AI57-AI59,0)","v":"00:00:00"},null,null,null,null,null,{"$f":"IFERROR(AO58-AO57-AO59,0)","v":"11:00:00"},null,null,null,null,null,{"$f":"IFERROR(AU58-AU57-AU59,0)","v":"00:00:00"},null,null,null,null,null,{"$f":"IFERROR(BA58-BA57-BA59,0)","v":0.50000000000000011},null,null,null,null,null,{"$f":"IFERROR(BG58-BG57-BG59,0)","v":0},null,null,null,null,null,{"$f":"IFERROR(BM58-BM57-BM59,0)","v":"11:00:00"},null,null,null,null,null,{"$f":"IFERROR(BS58-BS57-BS59,0)","v":"00:00:00"},null,null,null,null,null,{"$f":"IFERROR(BY58-BY57-BY59,0)","v":"11:00:00"},null,null,null,null,null,{"$f":"IFERROR(CE58-CE57-CE59,0)","v":"00:00:00"},null,null,null,null,null,{"$f":"IFERROR(CK58-CK57-CK59,0)","v":"11:00:00"},null,null,null,null,null,{"$f":"IFERROR(CQ58-CQ57-CQ59,0)","v":0},null,null,null,null,null,{"$f":"IFERROR(CW58-CW57-CW59,0)","v":0.50000000000000011},null,null,null,null,null,{"$f":"IFERROR(DC58-DC57-DC59,0)","v":"00:00:00"},null,null,null,null,null,{"$f":"IFERROR(DI58-DI57-DI59,0)","v":"12:00:00"},null,null,null,null,null,{"$f":"IFERROR(DO58-DO57-DO59,0)","v":"00:00:00"},null,null,null,null,null,{"$f":"IFERROR(DU58-DU57-DU59,0)","v":"12:00:00"},null,null,null,null,null,{"$f":"IFERROR(EA58-EA57-EA59,0)","v":"00:00:00"},null,null,null,null,null,{"$f":"IFERROR(EG58-EG57-EG59,0)","v":0.50000000000000011},null,null,null,null,null,{"$f":"IFERROR(EM58-EM57-EM59,0)","v":0},null,null,null,null,null,{"$f":"IFERROR(ES58-ES57-ES59,0)","v":"12:00:00"},null,null,null,null,null,{"$f":"IFERROR(EY58-EY57-EY59,0)","v":"00:00:00"},null,null,null,null,null,{"$f":"IFERROR(FE58-FE57-FE59,0)","v":"12:00:00"},null,null,null,null,null,{"$f":"IFERROR(FK58-FK57-FK59,0)","v":"00:00:00"},null,null,null,null,null,{"$f":"IFERROR(FQ58-FQ57-FQ59,0)","v":"12:00:00"},null,null,null,null,null,{"$f":"IFERROR(FW58-FW57-FW59,0)","v":0},null,null,null,null,null,{"$f":"IFERROR(GC58-GC57-GC59,0)","v":0.50000000000000011},null,null,null,null,null,{"$f":"IFERROR(GI58-GI57-GI59,0)","v":"00:00:00"},null,null,null,null,null,{"$f":"IFERROR(GO58-GO57-GO59,0)","v":"12:00:00"},null,null,null,null,null,{"$f":"IFERROR(GU58-GU57-GU59,0)","v":"00:00:00"},null,null,null,null,null,{"$f":"IFERROR(HA58-HA57-HA59,0)","v":"00:00:00"},null,null,null,null,null,null,null,null,null,null,null,null,null,null,null,null,null,null,null,null,null,null,null,{"$f":"SUM(AC60:HF60)","v":7.3333333333333339}]
[null,null,null,null,null,null,null,null,null,null,null,null,null,null,null,null,null,null,null,null,null,null,null,"пр","пр",null,null,null,null,null,null,null,null,null,null,null,null,null,null,null,null,null,null,null,null,null,null,null,null,null,null,null,null,null,null,null,null,null,null,null,null,null,null,null,null,null,null,null,null,null,null,null,null,null,null,null,null,null,null,null,null,null,null,null,null,null,null,null,null,null,null,null,null,null,null,null,null,null,null,null,null,null,null,null,null,null,null,null,null,null,null,null,null,null,null,null,null,null,null,null,null,null,null,null,null,null,null,null,null,null,null,null,null,null,null,null,null,null,null,null,null,null,null,null,null,null,null,null,null,null,null,null,null,null,null,null,null,null,null,null,null,null,null,null,null,null,null,null,null,null,null,null,null,null,null,null,null,null,null,null,null,null,null,null,null,null,null,null,null,null,null,null,null,null,null,null,null,null,null,null,null,null,null,null,null,null,null,null,null,null,null,null,null,null,{"$f":"SUM(AC61:HF61)","v":"00:00:00"}]
[null,null,null,null,null,null,null,null,null,null,null,null,null,null,null,null,null,null,null,null,null,null,null,null,"от",null,null,null,null,null,null,null,null,null,null,null,null,null,null,null,null,null,null,null,null,null,null,null,null,null,null,null,null,null,null,null,null,null,null,null,null,null,null,null,null,null,null,null,null,null,null,null,null,null,null,null,null,null,null,null,null,null,null,null,null,null,null,null,null,null,null,null,null,null,null,null,null,null,null,null,null,null,null,null,null,null,null,null,null,null,null,null,null,null,null,null,null,null,null,null,null,null,null,null,null,null,null,null,null,null,null,null,null,null,null,null,null,null,null,null,null,null,null,null,null,null,null,null,null,null,null,null,null,null,null,null,null,null,null,null,null,null,null,null,null,null,null,null,null,null,null,null,null,null,null,null,null,null,null,null,null,null,null,null,null,null,null,null,null,null,null,null,null,null,null,null,null,null,null,null,null,null,null,null,null,null,null,null,null,null,null,null,null,null,{"$f":"COUNTIF(AC63:HF63,\"=От\")","v":0}]
[7,null,null,null,null,"Нурлиева Е.А., котролёр-посадчик аттракциона Ч",null,null,null,null,null,null,null,null,null,null,null,null,null,null,null,null,null,1,null,null,null,null,null,null,null,null,null,null,0.33333333333333331,null,null,null,null,null,null,null,null,null,null,null,0.375,null,null,null,null,null,null,null,null,null,null,null,0.33333333333333331,null,null,null,null,null,null,null,null,null,null,null,0.375,null,null,null,null,null,null,null,null,null,null,null,0.375,null,null,null,null,null,null,null,null,null,null,null,0.33333333333333331,null,null,null,null,null,null,null,null,null,null,null,0.375,null,null,null,null,null,null,null,null,null,null,null,0.33333333333333331,null,null,null,null,null,null,null,null,null,null,null,0.33333333333333331,null,null,null,null,null,null,null,null,null,null,null,0.33333333333333331,null,null,null,null,null,null,null,null,null,null,null,0.33333333333333331,null,null,null,null,null,null,null,null,null,null,null,0.33333333333333331,null,null,null,null,null,null,null,null,null,null,null,0.33333333333333331,null,null,null,null,null,null,null,null,null,null,null,0.33333333333333331,null,null,null,null,null,null,null,null,null,null,null,0.33333333333333331,null,null,null,null,null,null,null,null,null,null,null,{"$f":"COUNT(AC63:HF63)","v":15},null,null,null,null,null,null,null,null,null,null,null,null,null,null,null,null,null,{"$f":"SUM(IFERROR(AC64:HF64-AC63:HF63-AC65:HF65,0))","v":7.3333333333333339},null,{"$f":"VLOOKUP($HY$17,'[1]производственный календарь '!$B$2:$F$13,2,0)","v":176}]
[null,null,null,null,null,null,null,null,null,null,null,null,null,null,null,null,null,null,null,null,null,null,null,null,null,null,null,null,null,null,null,null,null,null,0.875,null,null,null,null,null,null,null,null,null,null,null,0.875,null,null,null,null,null,null,null,null,null,null,null,0.875,null,null,null,null,null,null,null,null,null,null,null,0.875,null,null,null,null,null,null,null,null,null,null,null,0.875,null,null,null,null,null,null,null,null,null,null,null,0.875,null,null,null,null,null,null,null,null,null,null,null,0.875,null,null,null,null,null,null,null,null,null,null,null,0.875,null,null,null,null,null,null,null,null,null,null,null,0.875,null,null,null,null,null,null,null,null,null,null,null,0.875,null,null,null,null,null,null,null,null,null,null,null,0.875,null,null,null,null,null,null,null,null,null,null,null,0.875,null,null,null,null,null,null,null,null,null,null,null,0.875,null,null,null,null,null,null,null,null,null,null,null,0.875,null,null,null,null,null,null,null,null,null,null,null,0.875]
[null,null,null,null,null,null,null,null,null,null,null,null,null,null,null,null,null,null,null,null,null,null,null,"обед","обед",null,null,null,null,null,null,null,null,null,"01:00:00",null,null,null,null,null,null,null,null,null,null,null,"01:00:00",null,null,null,null,null,null,null,null,null,null,null,"01:00:00",null,null,null,null,null,null,null,null,null,null,null,"01:00:00",null,null,null,null,null,null,null,null,null,null,null,"01:00:00",null,null,null,null,null,null,null,null,null,null,null,"01:00:00",null,null,null,null,null,null,null,null,null,null,null,"01:00:00",null,null,null,null,null,null,null,null,null,null,null,"01:00:00",null,null,null,null,null,null,null,null,null,null,null,"01:00:00",null,null,null,null,null,null,null,null,null,null,null,"01:00:00",null,null,null,null,null,null,null,null,null,null,null,"01:00:00",null,null,null,null,null,null,null,null,null,null,null,"01:00:00",null,null,null,null,null,null,null,null,null,null,null,"01:00:00",null,null,null,null,null,null,null,null,null,null,null,"01:00:00",null,null,null,null,null,null,null,null,null,null,null,"01:00:00"]
[null,null,null,null,null,null,null,null,null,null,null,null,null,null,null,null,null,null,null,null,null,null,null,null,"р.д.",null,null,null,{"$f":"IFERROR(AC64-AC63-AC65,0)","v":"00:00:00"},null,null,null,null,null,{"$f":"IFERROR(AI64-AI63-AI65,0)","v":"12:00:00"},null,null,null,null,null,{"$f":"IFERROR(AO64-AO63-AO65,0)","v":"00:00:00"},null,null,null,null,null,{"$f":"IFERROR(AU64-AU63-AU65,0)","v":"11:00:00"},null,null,null,null,null,{"$f":"IFERROR(BA64-BA63-BA65,0)","v":0},null,null,null,null,null,{"$f":"IFERROR(BG64-BG63-BG65,0)","v":0.50000000000000011},null,null,null,null,null,{"$f":"IFERROR(BM64-BM63-BM65,0)","v":"00:00:00"},null,null,null,null,null,{"$f":"IFERROR(BS64-BS63-BS65,0)","v":"11:00:00"},null,null,null,null,null,{"$f":"IFERROR(BY64-BY63-BY65,0)","v":"00:00:00"},null,null,null,null,null,{"$f":"IFERROR(CE64-CE63-CE65,0)","v":"11:00:00"},null,null,null,null,null,{"$f":"IFERROR(CK64-CK63-CK65,0)","v":"00:00:00"},null,null,null,null,null,{"$f":"IFERROR(CQ64-CQ63-CQ65,0)","v":0.50000000000000011},null,null,null,null,null,{"$f":"IFERROR(CW64-CW63-CW65,0)","v":0},null,null,null,null,null,{"$f":"IFERROR(DC64-DC63-DC65,0)","v":"11:00:00"},null,null,null,null,null,{"$f":"IFERROR(DI64-DI63-DI65,0)","v":"00:00:00"},null,null,null,null,null,{"$f":"IFERROR(DO64-DO63-DO65,0)","v":"12:00:00"},null,null,null,null,null,{"$f":"IFERROR(DU64-DU63-DU65,0)","v":"00:00:00"},null,null,null,null,null,{"$f":"IFERROR(EA64-EA63-EA65,0)","v":"12:00:00"},null,null,null,null,null,{"$f":"IFERROR(EG64-EG63-EG65,0)","v":0},null,null,null,null,null,{"$f":"IFERROR(EM64-EM63-EM65,0)","v":0.50000000000000011},null,null,null,null,null,{"$f":"IFERROR(ES64-ES63-ES65,0)","v":"00:00:00"},null,null,null,null,null,{"$f":"IFERROR(EY64-EY63-EY65,0)","v":"12:00:00"},null,null,null,null,null,{"$f":"IFERROR(FE64-FE63-FE65,0)","v":"00:00:00"},null,null,null,null,null,{"$f":"IFERROR(FK64-FK63-FK65,0)","v":"12:00:00"},null,null,null,null,null,{"$f":"IFERROR(FQ64-FQ63-FQ65,0)","v":"00:00:00"},null,null,null,null,null,{"$f":"IFERROR(FW64-FW63-FW65,0)","v":0.50000000000000011},null,null,null,null,null,{"$f":"IFERROR(GC64-GC63-GC65,0)","v":0},null,null,null,null,null,{"$f":"IFERROR(GI64-GI63-GI65,0)","v":"12:00:00"},null,null,null,null,null,{"$f":"IFERROR(GO64-GO63-GO65,0)","v":"00:00:00"},null,null,null,null,null,{"$f":"IFERROR(GU64-GU63-GU65,0)","v":"12:00:00"},null,null,null,null,null,{"$f":"IFERROR(HA64-HA63-HA65,0)","v":"00:00:00"},null,null,null,null,null,null,null,null,null,null,null,null,null,null,null,null,null,null,null,null,null,null,null,{"$f":"SUM(AC66:GZ66)","v":7.3333333333333339}]
[null,null,null,null,null,null,null,null,null,null,null,null,null,null,null,null,null,null,null,null,null,null,null,"пр","пр",null,null,null,null,null,null,null,null,null,null,null,null,null,null,null,null,null,null,null,null,null,null,null,null,null,null,null,null,null,null,null,null,null,null,null,null,null,null,null,null,null,null,null,null,null,null,null,null,null,null,null,null,null,null,null,null,null,null,null,null,null,null,null,null,null,null,null,null,null,null,null,null,null,null,null,null,null,null,null,null,null,null,null,null,null,null,null,null,null,null,null,null,null,null,null,null,null,null,null,null,null,null,null,null,null,null,null,null,null,null,null,null,null,null,null,null,null,null,null,null,null,null,null,null,null,null,null,null,null,null,null,null,null,null,null,null,null,null,null,null,null,null,null,null,null,null,null,null,null,null,null,null,null,null,null,null,null,null,null,null,null,null,null,null,null,null,null,null,null,null,null,null,null,null,null,null,null,null,null,null,null,null,null,null,null,null,null,null,null,{"$f":"SUM(AC67:HF67)","v":"00:00:00"}]
[null,null,null,null,null,null,null,null,null,null,null,null,null,null,null,null,null,null,null,null,null,null,null,null,"от",null,null,null,null,null,null,null,null,null,null,null,null,null,null,null,null,null,null,null,null,null,null,null,null,null,null,null,null,null,null,null,null,null,null,null,null,null,null,null,null,null,null,null,null,null,null,null,null,null,null,null,null,null,null,null,null,null,null,null,null,null,null,null,null,null,null,null,null,null,null,null,null,null,null,null,null,null,null,null,null,null,null,null,null,null,null,null,null,null,null,null,null,null,null,null,null,null,null,null,null,null,null,null,null,null,null,null,null,null,null,null,null,null,null,null,null,null,null,null,null,null,null,null,null,null,null,null,null,null,null,null,null,null,null,null,null,null,null,null,null,null,null,null,null,null,null,null,null,null,null,null,null,null,null,null,null,null,null,null,null,null,null,null,null,null,null,null,null,null,null,null,null,null,null,null,null,null,null,null,null,null,null,null,null,null,null,null,null,null,{"$f":"COUNTIF(AC69:HF69,\"=От\")","v":0}]
[8,null,null,null,null,"Хомченко Л.Е., контролёр-посадчик аттракциона НЧ",null,null,null,null,null,null,null,null,null,null,null,null,null,null,null,null,null,1,null,null,null,null,0.33333333333333331,null,null,null,null,null,null,null,null,null,null,null,0.375,null,null,null,null,null,null,null,null,null,null,null,0.33333333333333331,null,null,null,null,null,null,null,null,null,null,null,0.375,null,null,null,null,null,null,null,null,null,null,null,0.375,null,null,null,null,null,null,null,null,null,null,null,0.375,null,null,null,null,null,null,null,null,null,null,null,0.33333333333333331,null,null,null,null,null,null,null,null,null,null,null,0.33333333333333331,null,null,null,null,null,null,null,null,null,null,null,0.33333333333333331,null,null,null,null,null,null,null,null,null,null,null,0.33333333333333331,null,null,null,null,null,null,null,null,null,null,null,0.33333333333333331,null,null,null,null,null,null,null,null,null,null,null,0.33333333333333331,null,null,null,null,null,null,null,null,null,null,null,0.33333333333333331,null,null,null,null,null,null,null,null,null,null,null,0.33333333333333331,null,null,null,null,null,null,null,null,null,null,null,0.33333333333333331,null,null,null,null,null,null,null,null,null,null,null,null,null,null,null,null,null,{"$f":"COUNT(AC69:HF69)","v":15},null,null,null,null,null,null,null,null,null,null,null,null,null,null,null,null,null,{"$f":"SUM(IFERROR(AC70:HF70-AC69:HF69-AC71:HF71,0))","v":7.3333333333333339},null,{"$f":"VLOOKUP($HY$17,'[1]производственный календарь '!$B$2:$F$13,2,0)","v":176}]
[null,null,null,null,null,null,null,null,null,null,null,null,null,null,null,null,null,null,null,null,null,null,null,null,null,null,null,null,0.875,null,null,null,null,null,null,null,null,null,null,null,0.875,null,null,null,null,null,null,null,null,null,null,null,0.875,null,null,null,null,null,null,null,null,null,null,null,0.875,null,null,null,null,null,null,null,null,null,null,null,0.875,null,null,null,null,null,null,null,null,null,null,null,0.875,null,null,null,null,null,null,null,null,null,null,null,0.875,null,null,null,null,null,null,null,null,null,null,null,0.875,null,null,null,null,null,null,null,null,null,null,null,0.875,null,null,null,null,null,null,null,null,null,null,null,0.875,null,null,null,null,null,null,null,null,null,null,null,0.875,null,null,null,null,null,null,null,null,null,null,null,0.875,null,null,null,null,null,null,null,null,null,null,null,0.875,null,null,null,null,null,null,null,null,null,null,null,0.875,null,null,null,null,null,null,null,null,null,null,null,0.875]
[null,null,null,null,null,null,null,null,null,null,null,null,null,null,null,null,null,null,null,null,null,null,null,"обед","обед",null,null,null,"01:00:00",null,null,null,null,null,null,null,null,null,null,null,"01:00:00",null,null,null,null,null,null,null,null,null,null,null,"01:00:00",null,null,null,null,null,null,null,null,null,null,null,"01:00:00",null,null,null,null,null,null,null,null,null,null,null,"01:00:00",null,null,null,null,null,null,null,null,null,null,null,"01:00:00",null,null,null,null,null,null,null,null,null,null,null,"01:00:00",null,null,null,null,null,null,null,null,null,null,null,"01:00:00",null,null,null,null,null,null,null,null,null,null,null,"01:00:00",null,null,null,null,null,null,null,null,null,null,null,"01:00:00",null,null,null,null,null,null,null,null,null,null,null,"01:00:00",null,null,null,null,null,null,null,null,null,null,null,"01:00:00",null,null,null,null,null,null,null,null,null,null,null,"01:00:00",null,null,null,null,null,null,null,null,null,null,null,"01:00:00",null,null,null,null,null,null,null,null,null,null,null,"01:00:00"]
[null,null,null,null,null,null,null,null,null,null,null,null,null,null,null,null,null,null,null,null,null,null,null,null,"р.д.",null,null,null,{"$f":"IFERROR(AC70-AC69-AC71,0)","v":"12:00:00"},null,null,null,null,null,{"$f":"IFERROR(AI70-AI69-AI71,0)","v":"00:00:00"},null,null,null,null,null,{"$f":"IFERROR(AO70-AO69-AO71,0)","v":"11:00:00"},null,null,null,null,null,{"$f":"IFERROR(AU70-AU69-AU71,0)","v":"00:00:00"},null,null,null,null,null,{"$f":"IFERROR(BA70-BA69-BA71,0)","v":0.50000000000000011},null,null,null,null,null,{"$f":"IFERROR(BG70-BG69-BG71,0)","v":0},null,null,null,null,null,{"$f":"IFERROR(BM70-BM69-BM71,0)","v":"11:00:00"},null,null,null,null,null,{"$f":"IFERROR(BS70-BS69-BS71,0)","v":"00:00:00"},null,null,null,null,null,{"$f":"IFERROR(BY70-BY69-BY71,0)","v":"11:00:00"},null,null,null,null,null,{"$f":"IFERROR(CE70-CE69-CE71,0)","v":"00:00:00"},null,null,null,null,null,{"$f":"IFERROR(CK70-CK69-CK71,0)","v":"11:00:00"},null,null,null,null,null,{"$f":"IFERROR(CQ70-CQ69-CQ71,0)","v":0},null,null,null,null,null,{"$f":"IFERROR(CW70-CW69-CW71,0)","v":0.50000000000000011},null,null,null,null,null,{"$f":"IFERROR(DC70-DC69-DC71,0)","v":"00:00:00"},null,null,null,null,null,{"$f":"IFERROR(DI70-DI69-DI71,0)","v":"12:00:00"},null,null,null,null,null,{"$f":"IFERROR(DO70-DO69-DO71,0)","v":"00:00:00"},null,null,null,null,null,{"$f":"IFERROR(DU70-DU69-DU71,0)","v":"12:00:00"},null,null,null,null,null,{"$f":"IFERROR(EA70-EA69-EA71,0)","v":"00:00:00"},null,null,null,null,null,{"$f":"IFERROR(EG70-EG69-EG71,0)","v":0.50000000000000011},null,null,null,null,null,{"$f":"IFERROR(EM70-EM69-EM71,0)","v":0},null,null,null,null,null,{"$f":"IFERROR(ES70-ES69-ES71,0)","v":"12:00:00"},null,null,null,null,null,{"$f":"IFERROR(EY70-EY69-EY71,0)","v":"00:00:00"},null,null,null,null,null,{"$f":"IFERROR(FE70-FE69-FE71,0)","v":"12:00:00"},null,null,null,null,null,{"$f":"IFERROR(FK70-FK69-FK71,0)","v":"00:00:00"},null,null,null,null,null,{"$f":"IFERROR(FQ70-FQ69-FQ71,0)","v":"12:00:00"},null,null,null,null,null,{"$f":"IFERROR(FW70-FW69-FW71,0)","v":0},null,null,null,null,null,{"$f":"IFERROR(GC70-GC69-GC71,0)","v":0.50000000000000011},null,null,null,null,null,{"$f":"IFERROR(GI70-GI69-GI71,0)","v":"00:00:00"},null,null,null,null,null,{"$f":"IFERROR(GO70-GO69-GO71,0)","v":"12:00:00"},null,null,null,null,null,{"$f":"IFERROR(GU70-GU69-GU71,0)","v":"00:00:00"},null,null,null,null,null,{"$f":"IFERROR(HA70-HA69-HA71,0)","v":"00:00:00"},null,null,null,null,null,null,null,null,null,null,null,null,null,null,null,null,null,null,null,null,null,null,null,{"$f":"SUM(AC72:HF72)","v":7.3333333333333339}]
[null,null,null,null,null,null,null,null,null,null,null,null,null,null,null,null,null,null,null,null,null,null,null,"пр","пр",null,null,null,null,null,null,null,null,null,null,null,null,null,null,null,null,null,null,null,null,null,null,null,null,null,null,null,null,null,null,null,null,null,null,null,null,null,null,null,null,null,null,null,null,null,null,null,null,null,null,null,null,null,null,null,null,null,null,null,null,null,null,null,null,null,null,null,null,null,null,null,null,null,null,null,null,null,null,null,null,null,null,null,null,null,null,null,null,null,null,null,null,null,null,null,null,null,null,null,null,null,null,null,null,null,null,null,null,null,null,null,null,null,null,null,null,null,null,null,null,null,null,null,null,null,null,null,null,null,null,null,null,null,null,null,null,null,null,null,null,null,null,null,null,null,null,null,null,null,null,null,null,null,null,null,null,null,null,null,null,null,null,null,null,null,null,null,null,null,null,null,null,null,null,null,null,null,null,null,null,null,null,null,null,null,null,null,null,null,{"$f":"SUM(AC73:HF73)","v":"00:00:00"}]
[null,null,null,null,null,null,null,null,null,null,null,null,null,null,null,null,null,null,null,null,null,null,null,null,"от",null,null,null,null,null,null,null,null,null,null,null,null,null,null,null,null,null,null,null,null,null,null,null,null,null,null,null,null,null,null,null,null,null,null,null,null,null,null,null,null,null,null,null,null,null,null,null,null,null,null,null,null,null,null,null,null,null,null,null,null,null,null,null,null,null,null,null,null,null,null,null,null,null,null,null,null,null,null,null,null,null,null,null,null,null,null,null,null,null,null,null,null,null,null,null,null,null,null,null,null,null,null,null,null,null,null,null,null,null,null,null,null,null,null,null,null,null,null,null,null,null,null,null,null,null,null,null,null,null,null,null,null,null,null,null,null,null,null,null,null,null,null,null,null,null,null,null,null,null,null,null,null,null,null,null,null,null,null,null,null,null,null,null,null,null,null,null,null,null,null,null,null,null,null,null,null,null,null,null,null,null,null,null,null,null,null,null,null,null,{"$f":"COUNTIF(AC87:HF87,\"=От\")","v":0}]
[null,null,null,null,null,"Чижова В.В., контролёр-посадчик аттракциона",null,null,null,null,null,null,null,null,null,null,null,null,null,null,null,null,null,null,0.5,null,null,null,null,null,null,null,null,null,null,null,null,null,null,null,null,null,null,null,null,null,null,null,null,null,null,null,null,null,null,null,null,null,null,null,null,null,null,null,null,null,null,null,null,null,null,null,null,null,null,null,null,null,null,null,null,null,null,null,null,null,null,null,null,null,null,null,null,null,null,null,null,null,null,null,null,null,null,null,null,null,null,null,null,null,null,null,null,null,null,null,null,null,null,null,null,null,null,null,null,null,null,null,null,null,null,null,null,null,null,null,null,null,null,null,null,null,null,null,null,null,null,null,null,null,null,null,null,null,null,null,null,null,null,null,null,null,null,null,null,null,null,null,null,null,null,null,null,null,null,null,null,null,null,null,null,null,null,null,null,null,null,null,null,null,null,null,null,null,null,null,null,null,null,null,null,null,null,null,null,null,null,null,null,null,null,null,null,null,{"$f":"COUNT(AC75:HF75)","v":0},null,null,null,null,null,null,null,null,null,null,null,null,null,null,null,null,null,{"$f":"SUM(IFERROR(AC76:HF76-AC75:HF75-AC77:HF77,0))","v":0}]
[]
[null,null,null,null,null,null,null,null,null,null,null,null,null,null,null,null,null,null,null,null,null,null,null,null,"обед"]
[null,null,null,null,null,null,null,null,null,null,null,null,null,null,null,null,null,null,null,null,null,null,null,null,"р.д.",null,null,null,{"$f":"IFERROR(AC76-AC75-AC77,0)","v":"00:00:00"},null,null,null,null,null,{"$f":"IFERROR(AI76-AI75-AI77,0)","v":"00:00:00"},null,null,null,null,null,{"$f":"IFERROR(AO76-AO75-AO77,0)","v":"00:00:00"},null,null,null,null,null,{"$f":"IFERROR(AU76-AU75-AU77,0)","v":"00:00:00"},null,null,null,null,null,{"$f":"IFERROR(BA76-BA75-BA77,0)","v":0},null,null,null,null,null,{"$f":"IFERROR(BG76-BG75-BG77,0)","v":0},null,null,null,null,null,{"$f":"IFERROR(BM76-BM75-BM77,0)","v":"00:00:00"},null,null,null,null,null,{"$f":"IFERROR(BS76-BS75-BS77,0)","v":"00:00:00"},null,null,null,null,null,{"$f":"IFERROR(BY76-BY75-BY77,0)","v":"00:00:00"},null,null,null,null,null,{"$f":"IFERROR(CE76-CE75-CE77,0)","v":"00:00:00"},null,null,null,null,null,{"$f":"IFERROR(CK76-CK75-CK77,0)","v":"00:00:00"},null,null,null,null,null,{"$f":"IFERROR(CQ76-CQ75-CQ77,0)","v":0},null,null,null,null,null,{"$f":"IFERROR(CW76-CW75-CW77,0)","v":0},null,null,null,null,null,{"$f":"IFERROR(DC76-DC75-DC77,0)","v":"00:00:00"},null,null,null,null,null,{"$f":"IFERROR(DI76-DI75-DI77,0)","v":"00:00:00"},null,null,null,null,null,{"$f":"IFERROR(DO76-DO75-DO77,0)","v":"00:00:00"},null,null,null,null,null,{"$f":"IFERROR(DU76-DU75-DU77,0)","v":"00:00:00"},null,null,null,null,null,{"$f":"IFERROR(EA76-EA75-EA77,0)","v":"00:00:00"},null,null,null,null,null,{"$f":"IFERROR(EG76-EG75-EG77,0)","v":0},null,null,null,null,null,{"$f":"IFERROR(EM76-EM75-EM77,0)","v":0},null,null,null,null,null,{"$f":"IFERROR(ES76-ES75-ES77,0)","v":"00:00:00"},null,null,null,null,null,{"$f":"IFERROR(EY76-EY75-EY77,0)","v":"00:00:00"},null,null,null,null,null,{"$f":"IFERROR(FE76-FE75-FE77,0)","v":"00:00:00"},null,null,null,null,null,{"$f":"IFERROR(FK76-FK75-FK77,0)","v":"00:00:00"},null,null,null,null,null,{"$f":"IFERROR(FQ76-FQ75-FQ77,0)","v":"00:00:00"},null,null,null,null,null,{"$f":"IFERROR(FW76-FW75-FW77,0)","v":0},null,null,null,null,null,{"$f":"IFERROR(GC76-GC75-GC77,0)","v":0},null,null,null,null,null,{"$f":"IFERROR(GI76-GI75-GI77,0)","v":"00:00:00"},null,null,null,null,null,{"$f":"IFERROR(GO76-GO75-GO77,0)","v":"00:00:00"},null,null,null,null,null,{"$f":"IFERROR(GU76-GU75-GU77,0)","v":"00:00:00"},null,null,null,null,null,"00:00:00",null,null,null,null,null,null,null,null,null,null,null,null,null,null,null,null,null,null,null,null,null,null,null,{"$f":"SUM(AC78:HF78)","v":0}]
[null,null,null,null,null,null,null,null,null,null,null,null,null,null,null,null,null,null,null,null,null,null,null,null,"пр"]
[null,null,null,null,null,null,null,null,null,null,null,null,null,null,null,null,null,null,null,null,null,null,null,null,"от"]
[null,null,null,null,null,"Середка С.Л., контролёр-посадчик аттракциона",null,null,null,null,null,null,null,null,null,null,null,null,null,null,null,null,null,null,0.5,null,null,null,null,null,null,null,null,null,null,null,null,null,null,null,null,null,null,null,null,null,null,null,null,null,null,null,null,null,null,null,null,null,null,null,null,null,null,null,null,null,null,null,null,null,null,null,null,null,null,null,null,null,null,null,null,null,null,null,null,null,null,null,null,null,null,null,null,null,null,null,null,null,null,null,null,null,null,null,null,null,null,null,null,null,null,null,null,null,null,null,null,null,null,null,null,null,null,null,null,null,null,null,null,null,null,null,null,null,null,null,null,null,null,null,null,null,null,null,null,null,null,null,null,null,null,null,null,null,null,null,null,null,null,null,null,null,null,null,null,null,null,null,null,null,null,null,null,null,null,null,null,null,null,null,null,null,null,null,null,null,null,null,null,null,null,null,null,null,null,null,null,null,null,null,null,null,null,null,null,null,null,null,null,null,null,null,null,null,{"$f":"COUNT(AC81:HF81)","v":0}]
[null,null,null,null,null,null,null,null,null,null,null,null,null,null,null,null,null,null,null,null,null,null,null,null,null,null,null,null,null,null,null,null,null,null,null,null,null,null,null,null,null,null,null,null,null,null,null,null,null,null,null,null,null,null,null,null,null,null,null,null,null,null,null,null,null,null,null,null,null,null,null,null,null,null,null,null,null,null,null,null,null,null,null,null,null,null,null,null,null,null,null,null,null,null,null,null,null,null,null,null,null,null,null,null,null,null,null,null,null,null,null,null,null,null,null,null,null,null,null,null,null,null,null,null,null,null,null,null,null,null,null,null,null,null,null,null,null,null,null,null,null,null,null,null,null,null,null,null,null,null,null,null,null,null,null,null,null,null,null,null,null,null,null,null,null,null,null,null,null,null,null,null,null,null,null,null,null,null,null,null,null,null,null,null,null,null,null,null,null,null,null,null,null,null,null,null,null,null,null,null,null,null,null,null,null,null,null,null,null,null,null,null,null,null,null,null,null,null,null,null,null,null,null,null,null,null,null,null,null,null,null,null,{"$f":"SUM(IFERROR(AC83:HF83-AC82:HF82-AC84:HF84,0))","v":0}]
[null,null,null,null,null,null,null,null,null,null,null,null,null,null,null,null,null,null,null,null,null,null,null,null,"обед"]
[null,null,null,null,null,null,null,null,null,null,null,null,null,null,null,null,null,null,null,null,null,null,null,null,"р.д.",null,null,null,{"$f":"IFERROR(AC82-AC81-AC83,0)","v":"00:00:00"},null,null,null,null,null,{"$f":"IFERROR(AI82-AI81-AI83,0)","v":"00:00:00"},null,null,null,null,null,{"$f":"IFERROR(AO82-AO81-AO83,0)","v":"00:00:00"},null,null,null,null,null,{"$f":"IFERROR(AU82-AU81-AU83,0)","v":"00:00:00"},null,null,null,null,null,{"$f":"IFERROR(BA82-BA81-BA83,0)","v":0},null,null,null,null,null,{"$f":"IFERROR(BG82-BG81-BG83,0)","v":0},null,null,null,null,null,{"$f":"IFERROR(BM82-BM81-BM83,0)","v":"00:00:00"},null,null,null,null,null,{"$f":"IFERROR(BS82-BS81-BS83,0)","v":"00:00:00"},null,null,null,null,null,{"$f":"IFERROR(BY82-BY81-BY83,0)","v":"00:00:00"},null,null,null,null,null,{"$f":"IFERROR(CE82-CE81-CE83,0)","v":"00:00:00"},null,null,null,null,null,{"$f":"IFERROR(CK82-CK81-CK83,0)","v":"00:00:00"},null,null,null,null,null,{"$f":"IFERROR(CQ82-CQ81-CQ83,0)","v":0},null,null,null,null,null,{"$f":"IFERROR(CW82-CW81-CW83,0)","v":0},null,null,null,null,null,{"$f":"IFERROR(DC82-DC81-DC83,0)","v":"00:00:00"},null,null,null,null,null,{"$f":"IFERROR(DI82-DI81-DI83,0)","v":"00:00:00"},null,null,null,null,null,{"$f":"IFERROR(DO82-DO81-DO83,0)","v":"00:00:00"},null,null,null,null,null,{"$f":"IFERROR(DU82-DU81-DU83,0)","v":"00:00:00"},null,null,null,null,null,{"$f":"IFERROR(EA82-EA81-EA83,0)","v":"00:00:00"},null,null,null,null,null,{"$f":"IFERROR(EG82-EG81-EG83,0)","v":0},null,null,null,null,null,{"$f":"IFERROR(EM82-EM81-EM83,0)","v":0},null,null,null,null,null,{"$f":"IFERROR(ES82-ES81-ES83,0)","v":"00:00:00"},null,null,null,null,null,{"$f":"IFERROR(EY82-EY81-EY83,0)","v":"00:00:00"},null,null,null,null,null,{"$f":"IFERROR(FE82-FE81-FE83,0)","v":"00:00:00"},null,null,null,null,null,{"$f":"IFERROR(FK82-FK81-FK83,0)","v":"00:00:00"},null,null,null,null,null,{"$f":"IFERROR(FQ82-FQ81-FQ83,0)","v":"00:00:00"},null,null,null,null,null,{"$f":"IFERROR(FW82-FW81-FW83,0)","v":0},null,null,null,null,null,{"$f":"IFERROR(GC82-GC81-GC83,0)","v":0},null,null,null,null,null,{"$f":"IFERROR(GI82-GI81-GI83,0)","v":"00:00:00"},null,null,null,null,null,{"$f":"IFERROR(GO82-GO81-GO83,0)","v":"00:00:00"},null,null,null,null,null,{"$f":"IFERROR(GU82-GU81-GU83,0)","v":"00:00:00"},null,null,null,null,null,{"$f":"IFERROR(HA82-HA81-HA83,0)","v":"00:00:00"}]
[null,null,null,null,null,null,null,null,null,null,null,null,null,null,null,null,null,null,null,null,null,null,null,null,"пр"]
[null,null,null,null,null,null,null,null,null,null,null,null,null,null,null,null,null,null,null,null,null,null,null,null,"от"]
[9,null,null,null,null,"Кондратюк Н.В., сторож",null,null,null,null,null,null,null,null,null,null,null,null,null,null,null,null,null,1,null,null,null,null,0.66666666666666663,null,null,null,null,null,0,null,null,null,null,null,null,null,null,null,null,null,0.66666666666666663,null,null,null,null,null,0,null,null,null,null,null,null,null,null,null,null,null,0.66666666666666663,null,null,null,null,null,0,null,null,null,null,null,null,null,null,null,null,null,0.66666666666666663,null,null,null,null,null,0,null,null,null,null,null,null,null,null,null,null,null,0.625,null,null,null,null,null,0,null,null,null,null,null,null,null,null,null,null,null,0.625,null,null,null,null,null,0,null,null,null,null,null,null,null,null,null,null,null,0.625,null,null,null,null,null,0,null,null,null,null,null,null,null,null,null,null,null,0.625,null,null,null,null,null,0,null,null,null,null,null,null,null,null,null,null,null,0.625,null,null,null,null,null,0,null,null,null,null,null,null,null,null,null,null,null,0.625,null,null,null,null,null,0,null,null,null,null,null,null,null,null,null,null,null,null,null,null,null,null,null,{"$f":"COUNT(AC87:HF87)","v":20},null,null,null,null,null,null,null,null,null,null,null,null,null,null,null,null,null,{"$f":"SUM(IF(ISNUMBER(AC87:HF87),AC88:HF88-AC87:HF87+(AC88:HF88<AC87:HF87),))*24","v":176},null,{"$f":"VLOOKUP($HY$17,'[1]производственный календарь '!$B$2:$F$13,2,0)","v":176}]
[null,null,null,null,null,null,null,null,null,null,null,null,null,null,null,null,null,null,null,null,null,null,null,null,null,null,null,null,1,null,null,null,null,null,0.375,null,null,null,null,null,null,null,null,null,null,null,1,null,null,null,null,null,0.375,null,null,null,null,null,null,null,null,null,null,null,1,null,null,null,null,null,0.375,null,null,null,null,null,null,null,null,null,null,null,1,null,null,null,null,null,0.375,null,null,null,null,null,null,null,null,null,null,null,1,null,null,null,null,null,0.375,null,null,null,null,null,null,null,null,null,null,null,1,null,null,null,null,null,0.375,null,null,null,null,null,null,null,null,null,null,null,1,null,null,null,null,null,0.375,null,null,null,null,null,null,null,null,null,null,null,1,null,null,null,null,null,0.375,null,null,null,null,null,null,null,null,null,null,null,1,null,null,null,null,null,0.375,null,null,null,null,null,null,null,null,null,null,null,1,null,null,null,null,null,0.375]
[null,null,null,null,null,null,null,null,null,null,null,null,null,null,null,null,null,null,null,null,null,null,null,null,null,null,null,null,{"$f":"IFERROR(AC88-AC87,0)","v":0.33333333333333337},null,null,null,null,null,{"$f":"IFERROR(AI88-AI87,0)","v":0.375},null,null,null,null,null,{"$f":"IFERROR(AO88-AO87,0)","v":0},null,null,null,null,null,{"$f":"IFERROR(AU88-AU87,0)","v":0.33333333333333337},null,null,null,null,null,{"$f":"IFERROR(BA88-BA87,0)","v":0.375},null,null,null,null,null,{"$f":"IFERROR(BG88-BG87,0)","v":0},null,null,null,null,null,{"$f":"IFERROR(BM88-BM87,0)","v":0.33333333333333337},null,null,null,null,null,{"$f":"IFERROR(BS88-BS87,0)","v":0.375},null,null,null,null,null,{"$f":"IFERROR(BY88-BY87,0)","v":0},null,null,null,null,null,{"$f":"IFERROR(CE88-CE87,0)","v":0.33333333333333337},null,null,null,null,null,{"$f":"IFERROR(CK88-CK87,0)","v":0.375},null,null,null,null,null,{"$f":"IFERROR(CQ88-CQ87,0)","v":0},null,null,null,null,null,{"$f":"IFERROR(CW88-CW87,0)","v":0.375},null,null,null,null,null,{"$f":"IFERROR(DC88-DC87,0)","v":0.375},null,null,null,null,null,{"$f":"IFERROR(DI88-DI87,0)","v":0},null,null,null,null,null,{"$f":"IFERROR(DO88-DO87,0)","v":0.375},null,null,null,null,null,{"$f":"IFERROR(DU88-DU87,0)","v":0.375},null,null,null,null,null,{"$f":"IFERROR(EA88-EA87,0)","v":0},null,null,null,null,null,{"$f":"IFERROR(EG88-EG87,0)","v":0.375},null,null,null,null,null,{"$f":"IFERROR(EM88-EM87,0)","v":0.375},null,null,null,null,null,{"$f":"IFERROR(ES88-ES87,0)","v":0},null,null,null,null,null,{"$f":"IFERROR(EY88-EY87,0)","v":0.375},null,null,null,null,null,{"$f":"IFERROR(FE88-FE87,0)","v":0.375},null,null,null,null,null,{"$f":"IFERROR(FK88-FK87,0)","v":0},null,null,null,null,null,{"$f":"IFERROR(FQ88-FQ87,0)","v":0.375},null,null,null,null,null,{"$f":"IFERROR(FW88-FW87,0)","v":0.375},null,null,null,null,null,{"$f":"IFERROR(GC88-GC87,0)","v":0},null,null,null,null,null,{"$f":"IFERROR(GI88-GI87,0)","v":0.375},null,null,null,null,null,{"$f":"IFERROR(GO88-GO87,0)","v":0.375},null,null,null,null,null,{"$f":"IFERROR(GU88-GU87,0)","v":0},null,null,null,null,null,null,null,null,null,null,null,null,null,null,null,null,null,null,null,null,null,null,null,null,null,null,null,null,null,{"$f":"SUM(AC89:HF89)","v":7.3333333333333339}]
[]
[null,null,null,null,null,null,null,null,null,null,null,null,null,null,null,null,null,null,null,null,null,null,null,"НОЧЬ",null,null,null,null,{"$f":"(MIN(AC88,6/24)-MIN(AC87,6/24)+MAX(AC88,22/24)-MAX(AC87,22/24))*24+(AC88<AC87)*8","v":2.0000000000000009},null,null,null,null,null,{"$f":"(MIN(AI88,6/24)-MIN(AI87,6/24)+MAX(AI88,22/24)-MAX(AI87,22/24))*24+(AI88<AI87)*8","v":5.9999999999999973},null,null,null,null,null,{"$f":"(MIN(AO88,6/24)-MIN(AO87,6/24)+MAX(AO88,22/24)-MAX(AO87,22/24))*24+(AO88<AO87)*8","v":0},null,null,null,null,null,{"$f":"(MIN(AU88,6/24)-MIN(AU87,6/24)+MAX(AU88,22/24)-MAX(AU87,22/24))*24+(AU88<AU87)*8","v":2.0000000000000009},null,null,null,null,null,{"$f":"(MIN(BA88,6/24)-MIN(BA87,6/24)+MAX(BA88,22/24)-MAX(BA87,22/24))*24+(BA88<BA87)*8","v":5.9999999999999973},null,null,null,null,null,{"$f":"(MIN(BG88,6/24)-MIN(BG87,6/24)+MAX(BG88,22/24)-MAX(BG87,22/24))*24+(BG88<BG87)*8","v":0},null,null,null,null,null,{"$f":"(MIN(BM88,6/24)-MIN(BM87,6/24)+MAX(BM88,22/24)-MAX(BM87,22/24))*24+(BM88<BM87)*8","v":2.0000000000000009},null,null,null,null,null,{"$f":"(MIN(BS88,6/24)-MIN(BS87,6/24)+MAX(BS88,22/24)-MAX(BS87,22/24))*24+(BS88<BS87)*8","v":5.9999999999999973},null,null,null,null,null,{"$f":"(MIN(BY88,6/24)-MIN(BY87,6/24)+MAX(BY88,22/24)-MAX(BY87,22/24))*24+(BY88<BY87)*8","v":0},null,null,null,null,null,{"$f":"(MIN(CE88,6/24)-MIN(CE87,6/24)+MAX(CE88,22/24)-MAX(CE87,22/24))*24+(CE88<CE87)*8","v":2.0000000000000009},null,null,null,null,null,{"$f":"(MIN(CK88,6/24)-MIN(CK87,6/24)+MAX(CK88,22/24)-MAX(CK87,22/24))*24+(CK88<CK87)*8","v":5.9999999999999973},null,null,null,null,null,{"$f":"(MIN(CQ88,6/24)-MIN(CQ87,6/24)+MAX(CQ88,22/24)-MAX(CQ87,22/24))*24+(CQ88<CQ87)*8","v":0},null,null,null,null,null,{"$f":"(MIN(CW88,6/24)-MIN(CW87,6/24)+MAX(CW88,22/24)-MAX(CW87,22/24))*24+(CW88<CW87)*8","v":2.0000000000000009},null,null,null,null,null,{"$f":"(MIN(DC88,6/24)-MIN(DC87,6/24)+MAX(DC88,22/24)-MAX(DC87,22/24))*24+(DC88<DC87)*8","v":5.9999999999999973},null,null,null,null,null,{"$f":"(MIN(DI88,6/24)-MIN(DI87,6/24)+MAX(DI88,22/24)-MAX(DI87,22/24))*24+(DI88<DI87)*8","v":0},null,null,null,null,null,{"$f":"(MIN(DO88,6/24)-MIN(DO87,6/24)+MAX(DO88,22/24)-MAX(DO87,22/24))*24+(DO88<DO87)*8","v":2.0000000000000009},null,null,null,null,null,{"$f":"(MIN(DU88,6/24)-MIN(DU87,6/24)+MAX(DU88,22/24)-MAX(DU87,22/24))*24+(DU88<DU87)*8","v":5.9999999999999973},null,null,null,null,null,{"$f":"(MIN(EA88,6/24)-MIN(EA87,6/24)+MAX(EA88,22/24)-MAX(EA87,22/24))*24+(EA88<EA87)*8","v":0},null,null,null,null,null,{"$f":"(MIN(EG88,6/24)-MIN(EG87,6/24)+MAX(EG88,22/24)-MAX(EG87,22/24))*24+(EG88<EG87)*8","v":2.0000000000000009},null,null,null,null,null,{"$f":"(MIN(EM88,6/24)-MIN(EM87,6/24)+MAX(EM88,22/24)-MAX(EM87,22/24))*24+(EM88<EM87)*8","v":5.9999999999999973},null,null,null,null,null,{"$f":"(MIN(ES88,6/24)-MIN(ES87,6/24)+MAX(ES88,22/24)-MAX(ES87,22/24))*24+(ES88<ES87)*8","v":0},null,null,null,null,null,{"$f":"(MIN(EY88,6/24)-MIN(EY87,6/24)+MAX(EY88,22/24)-MAX(EY87,22/24))*24+(EY88<EY87)*8","v":2.0000000000000009},null,null,null,null,null,{"$f":"(MIN(FE88,6/24)-MIN(FE87,6/24)+MAX(FE88,22/24)-MAX(FE87,22/24))*24+(FE88<FE87)*8","v":5.9999999999999973},null,null,null,null,null,{"$f":"(MIN(FK88,6/24)-MIN(FK87,6/24)+MAX(FK88,22/24)-MAX(FK87,22/24))*24+(FK88<FK87)*8","v":0},null,null,null,null,null,{"$f":"(MIN(FQ88,6/24)-MIN(FQ87,6/24)+MAX(FQ88,22/24)-MAX(FQ87,22/24))*24+(FQ88<FQ87)*8","v":2.0000000000000009},null,null,null,null,null,{"$f":"(MIN(FW88,6/24)-MIN(FW87,6/24)+MAX(FW88,22/24)-MAX(FW87,22/24))*24+(FW88<FW87)*8","v":5.9999999999999973},null,null,null,null,null,{"$f":"(MIN(GC88,6/24)-MIN(GC87,6/24)+MAX(GC88,22/24)-MAX(GC87,22/24))*24+(GC88<GC87)*8","v":0},null,null,null,null,null,{"$f":"(MIN(GI88,6/24)-MIN(GI87,6/24)+MAX(GI88,22/24)-MAX(GI87,22/24))*24+(GI88<GI87)*8","v":2.0000000000000009},null,null,null,null,null,{"$f":"(MIN(GO88,6/24)-MIN(GO87,6/24)+MAX(GO88,22/24)-MAX(GO87,22/24))*24+(GO88<GO87)*8","v":5.9999999999999973},null,null,null,null,null,{"$f":"(MIN(GU88,6/24)-MIN(GU87,6/24)+MAX(GU88,22/24)-MAX(GU87,22/24))*24+(GU88<GU87)*8","v":0},null,null,null,null,null,{"$f":"(MIN(HA88,6/24)-MIN(HA87,6/24)+MAX(HA88,22/24)-MAX(HA87,22/24))*24+(HA88<HA87)*8","v":0},null,null,null,null,null,null,null,null,null,null,null,null,null,null,null,null,null,null,null,null,null,null,null,{"$f":"SUM(AC91:HF91)","v":80}]
[]
[null,null,null,null,null,null,null,null,null,null,null,null,null,null,null,null,null,null,null,null,null,null,null,"пр","пр",null,null,null,null,null,null,null,null,null,null,null,null,null,null,null,null,null,null,null,null,null,null,null,null,null,null,null,null,null,null,null,null,null,null,null,null,null,null,null,null,null,null,null,null,null,null,null,null,null,null,null,null,null,null,null,null,null,null,null,null,null,null,null,null,null,null,null,null,null,null,null,null,null,null,null,null,null,null,null,null,null,null,null,null,null,null,null,null,null,null,null,null,null,null,null,null,null,null,null,null,null,null,null,null,null,null,null,null,null,null,null,null,null,null,null,null,null,null,null,null,null,null,null,null,null,null,null,null,null,null,null,null,null,null,null,null,null,null,null,null,null,null,null,null,null,null,null,null,null,null,null,null,null,null,null,null,null,null,null,null,null,null,null,null,null,null,null,null,null,null,null,null,null,null,null,null,null,null,null,null,null,null,null,null,null,null,null,null,null,{"$f":"COUNT(AC93:HF93)","v":0},null,null,null,null,null,null,null,null,null,null,null,null,null,null,null,null,null,{"$f":"SUM(AC93:HF93)","v":0}]
[null,null,null,null,null,null,null,null,null,null,null,null,null,null,null,null,null,null,null,null,null,null,null,null,"от",null,null,null,"ОТ",null,null,null,null,null,"ОТ",null,null,null,null,null,"ОТ",null,null,null,null,null,"ОТ",null,null,null,null,null,"ОТ",null,null,null,null,null,"ОТ",null,null,null,null,null,"ОТ",null,null,null,null,null,"ОТ",null,null,null,null,null,"ОТ",null,null,null,null,null,"ОТ",null,null,null,null,null,"ОТ",null,null,null,null,null,"ОТ",null,null,null,null,null,"ОТ",null,null,null,null,null,"ОТ",null,null,null,null,null,"ОТ",null,null,null,null,null,"ОТ",null,null,null,null,null,"ОТ",null,null,null,null,null,"ОТ",null,null,null,null,null,"ОТ",null,null,null,null,null,"ОТ",null,null,null,null,null,"ОТ",null,null,null,null,null,"ОТ",null,null,null,null,null,"ОТ",null,null,null,null,null,"ОТ",null,null,null,null,null,"ОТ",null,null,null,null,null,"ОТ",null,null,null,null,null,"ОТ",null,null,null,null,null,"ОТ",null,null,null,null,null,null,null,null,null,null,null,null,null,null,null,null,null,null,null,null,null,null,null,{"$f":"COUNTIF(AC94:HF94,\"ОТ\")","v":28}]
[]
[]
[null,null,null,null,null,"С графиком ознакомлен(а):"]
[]
[null,null,null,null,null,1,null,null,"Сапожников А.С.",null,null,null,null,null,null,null,null,null,null,null,null,null,null,null,null,null,null,null,null,null,null,null,null,null,null,null,null,null,null,null,null,null,null,null,null,null,null,null,null,null,null,null,null,null,null,null,null,null,null,null,null,null,null,"\"___\"______________2020"]
[null,null,null,null,null,2,null,null,"Сперанский А.А.",null,null,null,null,null,null,null,null,null,null,null,null,null,null,null,null,null,null,null,null,null,null,null,null,null,null,null,null,null,null,null,null,null,null,null,null,null,null,null,null,null,null,null,null,null,null,null,null,null,null,null,null,null,null,"\"___\"______________2020"]
[null,null,null,null,null,3,null,null,"Купцова Г.И.",null,null,null,null,null,null,null,null,null,null,null,null,null,null,null,null,null,null,null,null,null,null,null,null,null,null,null,null,null,null,null,null,null,null,null,null,null,null,null,null,null,null,null,null,null,null,null,null,null,null,null,null,null,null,"\"___\"______________2020"]
[null,null,null,null,null,4,null,null,"Лагутенко В.А.",null,null,null,null,null,null,null,null,null,null,null,null,null,null,null,null,null,null,null,null,null,null,null,null,null,null,null,null,null,null,null,null,null,null,null,null,null,null,null,null,null,null,null,null,null,null,null,null,null,null,null,null,null,null,"\"___\"______________2020"]
[null,null,null,null,null,5,null,null,"Кипкаева Л.А.",null,null,null,null,null,null,null,null,null,null,null,null,null,null,null,null,null,null,null,null,null,null,null,null,null,null,null,null,null,null,null,null,null,null,null,null,null,null,null,null,null,null,null,null,null,null,null,null,null,null,null,null,null,null,"\"___\"______________2020"]
[null,null,null,null,null,6,null,null,"Морозова Г.Н.",null,null,null,null,null,null,null,null,null,null,null,null,null,null,null,null,null,null,null,null,null,null,null,null,null,null,null,null,null,null,null,null,null,null,null,null,null,null,null,null,null,null,null,null,null,null,null,null,null,null,null,null,null,null,"\"___\"______________2020"]
[null,null,null,null,null,7,null,null,"Нурлиева Е.А.",null,null,null,null,null,null,null,null,null,null,null,null,null,null,null,null,null,null,null,null,null,null,null,null,null,null,null,null,null,null,null,null,null,null,null,null,null,null,null,null,null,null,null,null,null,null,null,null,null,null,null,null,null,null,"\"___\"______________2020"]
[null,null,null,null,null,8,null,null,"Кондратюк Н.В.",null,null,null,null,null,null,null,null,null,null,null,null,null,null,null,null,null,null,null,null,null,null,null,null,null,null,null,null,null,null,null,null,null,null,null,null,null,null,null,null,null,null,null,null,null,null,null,null,null,null,null,null,null,null,"\"___\"______________2020"]
[null,null,null,null,null,9,null,null,"Хомченко Л.Е.",null,null,null,null,null,null,null,null,null,null,null,null,null,null,null,null,null,null,null,null,null,null,null,null,null,null,null,null,null,null,null,null,null,null,null,null,null,null,null,null,null,null,null,null,null,null,null,null,null,null,null,null,null,null,"\"___\"______________2020"]
[null,null,null,null,null,10,null,null,null,null,null,null,null,null,null,null,null,null,null,null,null,null,null,null,null,null,null,null,null,null,null,null,null,null,null,null,null,null,null,null,null,null,null,null,null,null,null,null,null,null,null,null,null,null,null,null,null,null,null,null,null,null,null,"\"___\"______________2020"]
[null,null,null,null,null,11,null,null,null,null,null,null,null,null,null,null,null,null,null,null,null,null,null,null,null,null,null,null,null,null,null,null,null,null,null,null,null,null,null,null,null,null,null,null,null,null,null,null,null,null,null,null,null,null,null,null,null,null,null,null,null,null,null,"\"___\"______________2020"]
[null,null,null,null,null,12,null,null,null,null,null,null,null,null,null,null,null,null,null,null,null,null,null,null,null,null,null,null,null,null,null,null,null,null,null,null,null,null,null,null,null,null,null,null,null,null,null,null,null,null,null,null,null,null,null,null,null,null,null,null,null,null,null,"\"___\"______________2020"]